Department Family,Entity,Date,Expense Type,Expense area,Supplier,Transaction Number,Amount,VAT registration Number
Department of Health,Salisbury NHS Foundation Trust,21/05/2020,ENERGY - ELECTRICITY,Facilities,SCOTTISH POWER,106871773,8814.01,
Department of Health,Salisbury NHS Foundation Trust,21/05/2020,ENERGY - ELECTRICITY,Facilities,SCOTTISH POWER,106871773,75636.36,
Department of Health,Salisbury NHS Foundation Trust,21/05/2020,ENERGY - ELECTRICITY,Facilities,SCOTTISH POWER,106871773,440.7,
Department of Health,Salisbury NHS Foundation Trust,21/05/2020,ENERGY - ELECTRICITY,Facilities,SCOTTISH POWER,106871773,15127.27,
Department of Health,Salisbury NHS Foundation Trust,21/05/2020,ENERGY - WATER,Facilities,BWBSL,1055397499,33979.92,
Department of Health,Salisbury NHS Foundation Trust,21/05/2020,ETS UNITARY CHARGE,Finance charges & Reserves,SALISBURY HEALTHCARE FACILITIES LTD,468,327090.62,
Department of Health,Salisbury NHS Foundation Trust,01/05/2020,NETWORKING COSTS,Capital,DELL PRODUCTS,7402605152,4850,
Department of Health,Salisbury NHS Foundation Trust,01/05/2020,NETWORKING COSTS,Capital,DELL PRODUCTS,7402605152,24250,
Department of Health,Salisbury NHS Foundation Trust,01/05/2020,NETWORKING COSTS,Capital,DELL PRODUCTS,7402605152,4850,
Department of Health,Salisbury NHS Foundation Trust,21/05/2020,ENERGY - SEWERAGE,Facilities,BWBSL,1055397499,11247.12,
Department of Health,Salisbury NHS Foundation Trust,01/05/2020,NETWORKING COSTS,Capital,DELL PRODUCTS,7402605152,24250,
Department of Health,Salisbury NHS Foundation Trust,01/05/2020,NETWORKING COSTS,Capital,DELL PRODUCTS,7402605151,24250,
Department of Health,Salisbury NHS Foundation Trust,01/05/2020,NETWORKING COSTS,Capital,DELL PRODUCTS,7402605151,4850,
Department of Health,Salisbury NHS Foundation Trust,01/05/2020,NETWORKING COSTS,Capital,DELL PRODUCTS,7402605151,24250,
Department of Health,Salisbury NHS Foundation Trust,01/05/2020,NETWORKING COSTS,Capital,DELL PRODUCTS,7402605151,4850,
Department of Health,Salisbury NHS Foundation Trust,06/05/2020,NETWORKING COSTS,Capital,DELL PRODUCTS,7402607112,53172,
Department of Health,Salisbury NHS Foundation Trust,06/05/2020,NETWORKING COSTS,Capital,DELL PRODUCTS,7402607112,10634.4,
Department of Health,Salisbury NHS Foundation Trust,01/05/2020,HARD/SOFTWARE-SOFTWARE BESPOKE,Corporate - Finance & Procurement,VERSION 1 SOLUTIONS LIMITED,INVSOL005926,31307,
Department of Health,Salisbury NHS Foundation Trust,01/05/2020,HARD/SOFTWARE-SOFTWARE BESPOKE,Corporate - Finance & Procurement,VERSION 1 SOLUTIONS LIMITED,INVSOL005926,4643,
Department of Health,Salisbury NHS Foundation Trust,01/05/2020,HARD/SOFTWARE-SOFTWARE BESPOKE,Corporate - Finance & Procurement,VERSION 1 SOLUTIONS LIMITED,INVSOL005926,7800,
Department of Health,Salisbury NHS Foundation Trust,01/05/2020,MEDICAL EQUIPMENT 5 YEARS,Capital,TUTELA SYSTEMS LTD,37260,14341.2,
Department of Health,Salisbury NHS Foundation Trust,01/05/2020,MEDICAL EQUIPMENT 5 YEARS,Capital,TUTELA SYSTEMS LTD,37260,378,
Department of Health,Salisbury NHS Foundation Trust,01/05/2020,MEDICAL EQUIPMENT 5 YEARS,Capital,TUTELA SYSTEMS LTD,37260,1890,
Department of Health,Salisbury NHS Foundation Trust,01/05/2020,MEDICAL EQUIPMENT 5 YEARS,Capital,TUTELA SYSTEMS LTD,37260,3672,
Department of Health,Salisbury NHS Foundation Trust,01/05/2020,MEDICAL EQUIPMENT 5 YEARS,Capital,TUTELA SYSTEMS LTD,37260,1530,
Department of Health,Salisbury NHS Foundation Trust,01/05/2020,M&S EQUIPMENT - OTHER,Clinical Support,COBALT HEALTH,45799,25714.29,
Department of Health,Salisbury NHS Foundation Trust,01/05/2020,MEDICAL EQUIPMENT 5 YEARS,Capital,TUTELA SYSTEMS LTD,37260,734.4,
Department of Health,Salisbury NHS Foundation Trust,01/05/2020,MEDICAL EQUIPMENT 5 YEARS,Capital,TUTELA SYSTEMS LTD,37260,306,
Department of Health,Salisbury NHS Foundation Trust,01/05/2020,MEDICAL EQUIPMENT 5 YEARS,Capital,TUTELA SYSTEMS LTD,37260,2868.24,
Department of Health,Salisbury NHS Foundation Trust,01/05/2020,NETWORKING COSTS,Capital,DELL PRODUCTS,7402607114,24250,
Department of Health,Salisbury NHS Foundation Trust,01/05/2020,NETWORKING COSTS,Capital,DELL PRODUCTS,7402607114,4850,
Department of Health,Salisbury NHS Foundation Trust,01/05/2020,NETWORKING COSTS,Capital,DELL PRODUCTS,7402607115,24250,
Department of Health,Salisbury NHS Foundation Trust,01/05/2020,NETWORKING COSTS,Capital,DELL PRODUCTS,7402607115,4850,
Department of Health,Salisbury NHS Foundation Trust,07/05/2020,MEDICAL EQUIPMENT 10 YEARS,Capital,CARLETON OPTICAL EQUIPMENT,65618,400,
Department of Health,Salisbury NHS Foundation Trust,07/05/2020,MEDICAL EQUIPMENT 10 YEARS,Capital,CARLETON OPTICAL EQUIPMENT,65618,8523,
Department of Health,Salisbury NHS Foundation Trust,07/05/2020,MEDICAL EQUIPMENT 10 YEARS,Capital,CARLETON OPTICAL EQUIPMENT,65618,8510,
Department of Health,Salisbury NHS Foundation Trust,07/05/2020,MEDICAL EQUIPMENT 10 YEARS,Capital,CARLETON OPTICAL EQUIPMENT,65618,160,
Department of Health,Salisbury NHS Foundation Trust,07/05/2020,MEDICAL EQUIPMENT 10 YEARS,Capital,CARLETON OPTICAL EQUIPMENT,65618,1649,
Department of Health,Salisbury NHS Foundation Trust,07/05/2020,MEDICAL EQUIPMENT 10 YEARS,Capital,CARLETON OPTICAL EQUIPMENT,65618,1845,
Department of Health,Salisbury NHS Foundation Trust,07/05/2020,MEDICAL EQUIPMENT 10 YEARS,Capital,CARLETON OPTICAL EQUIPMENT,65618,500,
Department of Health,Salisbury NHS Foundation Trust,07/05/2020,MEDICAL EQUIPMENT 10 YEARS,Capital,CARLETON OPTICAL EQUIPMENT,65618,100,
Department of Health,Salisbury NHS Foundation Trust,07/05/2020,MEDICAL EQUIPMENT 10 YEARS,Capital,CARLETON OPTICAL EQUIPMENT,65618,1704.6,
Department of Health,Salisbury NHS Foundation Trust,07/05/2020,MEDICAL EQUIPMENT 10 YEARS,Capital,CARLETON OPTICAL EQUIPMENT,65618,1702,
Department of Health,Salisbury NHS Foundation Trust,07/05/2020,MEDICAL EQUIPMENT 10 YEARS,Capital,CARLETON OPTICAL EQUIPMENT,65618,32,
Department of Health,Salisbury NHS Foundation Trust,07/05/2020,MEDICAL EQUIPMENT 10 YEARS,Capital,CARLETON OPTICAL EQUIPMENT,65618,80,
Department of Health,Salisbury NHS Foundation Trust,07/05/2020,MEDICAL EQUIPMENT 10 YEARS,Capital,CARLETON OPTICAL EQUIPMENT,65618,329.8,
Department of Health,Salisbury NHS Foundation Trust,07/05/2020,MEDICAL EQUIPMENT 10 YEARS,Capital,CARLETON OPTICAL EQUIPMENT,65618,369,
Department of Health,Salisbury NHS Foundation Trust,15/05/2020,MEDSURGCONS-OTHER,Medicine,NHS LOGISTICS,1121016036,25,
Department of Health,Salisbury NHS Foundation Trust,15/05/2020,SURGICAL INSTRUMENTS - GENERAL,Clinical Support,NHS LOGISTICS,1121016036,172.5,
Department of Health,Salisbury NHS Foundation Trust,15/05/2020,MEDSURGCONS-OTHER,Surgery,NHS LOGISTICS,1121016036,400,
Department of Health,Salisbury NHS Foundation Trust,15/05/2020,MEDSURGCONS-OTHER,Medicine,NHS LOGISTICS,1121016036,300,
Department of Health,Salisbury NHS Foundation Trust,15/05/2020,DRESSINGS  -  PROCEDURE PACKS,Clinical Support,NHS LOGISTICS,1121016036,553.75,
Department of Health,Salisbury NHS Foundation Trust,15/05/2020,DRESSINGS  -  PROCEDURE PACKS,Clinical Support,NHS LOGISTICS,1121016036,484,
Department of Health,Salisbury NHS Foundation Trust,01/05/2020,NETWORKING COSTS,Capital,CORE TECHNOLOGY SYSTEMS (UK) LIMITED,INV-01779,47250,
Department of Health,Salisbury NHS Foundation Trust,01/05/2020,NETWORKING COSTS,Capital,CORE TECHNOLOGY SYSTEMS (UK) LIMITED,INV-01779,9450,
Department of Health,Salisbury NHS Foundation Trust,07/05/2020,NETWORKING COSTS,Capital,APPTECHNOLOGY LIMITED,AT001380,21840,
Department of Health,Salisbury NHS Foundation Trust,07/05/2020,NETWORKING COSTS,Capital,APPTECHNOLOGY LIMITED,AT001380,4368,
Department of Health,Salisbury NHS Foundation Trust,15/05/2020,SURGICAL INSTRUMENTS - DISPOSABLE,Medicine,NHS LOGISTICS,1121016036,8.2,
Department of Health,Salisbury NHS Foundation Trust,15/05/2020,COST OF SALES,Medicine,NHS LOGISTICS,1121016036,358.2,
Department of Health,Salisbury NHS Foundation Trust,15/05/2020,COST OF SALES,Medicine,NHS LOGISTICS,1121016036,358.2,
Department of Health,Salisbury NHS Foundation Trust,15/05/2020,MED PROSTH - PACEMAKERS,Surgery,NHS LOGISTICS,1121016036,540,
Department of Health,Salisbury NHS Foundation Trust,15/05/2020,DRESSINGS - PRE STERILE,Medicine,NHS LOGISTICS,1121016036,29.56,
Department of Health,Salisbury NHS Foundation Trust,15/05/2020,DRESSINGS - PRE STERILE,Medicine,NHS LOGISTICS,1121016036,29.56,
Department of Health,Salisbury NHS Foundation Trust,15/05/2020,MED SURG EQUIP REP MAINT CLEANING,Clinical Support,NHS LOGISTICS,1121016036,150.69,
Department of Health,Salisbury NHS Foundation Trust,15/05/2020,MEDSURGCONS-OTHER,Clinical Support,NHS LOGISTICS,1121016036,15.56,
Department of Health,Salisbury NHS Foundation Trust,15/05/2020,MEDSURGCONS-OTHER,Clinical Support,NHS LOGISTICS,1121016036,80,
Department of Health,Salisbury NHS Foundation Trust,15/05/2020,MEDSURGCONS-OTHER,Medicine,NHS LOGISTICS,1121016036,87.7,
Department of Health,Salisbury NHS Foundation Trust,15/05/2020,MEDSURGCONS-OTHER,Medicine,NHS LOGISTICS,1121016036,193.75,
Department of Health,Salisbury NHS Foundation Trust,15/05/2020,MEDSURGCONS-OTHER,Medicine,NHS LOGISTICS,1121016036,959.88,
Department of Health,Salisbury NHS Foundation Trust,15/05/2020,MEDSURGCONS-OTHER,Medicine,NHS LOGISTICS,1121016036,959.88,
Department of Health,Salisbury NHS Foundation Trust,15/05/2020,MEDSURGCONS-OTHER,Medicine,NHS LOGISTICS,1121016036,200,
Department of Health,Salisbury NHS Foundation Trust,15/05/2020,DRESSINGS - PRE STERILE,Surgery,NHS LOGISTICS,1121016036,139.98,
Department of Health,Salisbury NHS Foundation Trust,15/05/2020,SURGICAL INSTRUMENTS - GENERAL,Clinical Support,NHS LOGISTICS,1121016036,637.5,
Department of Health,Salisbury NHS Foundation Trust,15/05/2020,SURGICAL INSTRUMENTS - GENERAL,Clinical Support,NHS LOGISTICS,1121016036,10,
Department of Health,Salisbury NHS Foundation Trust,15/05/2020,TISSUES HAND TOWELS & TOILET PAPER,Clinical Support,NHS LOGISTICS,1121016036,21.06,
Department of Health,Salisbury NHS Foundation Trust,15/05/2020,DRUGS,Clinical Support,NHS LOGISTICS,1121016036,72.36,
Department of Health,Salisbury NHS Foundation Trust,15/05/2020,BAGS SACKS - OTHER,Facilities,NHS LOGISTICS,1121016036,24.36,
Department of Health,Salisbury NHS Foundation Trust,15/05/2020,BAGS SACKS - OTHER,Facilities,NHS LOGISTICS,1121016036,16.56,
Department of Health,Salisbury NHS Foundation Trust,15/05/2020,BAGS SACKS - OTHER,Facilities,NHS LOGISTICS,1121016036,89.28,
Department of Health,Salisbury NHS Foundation Trust,15/05/2020,BAGS SACKS - OTHER,Facilities,NHS LOGISTICS,1121016036,87.36,
Department of Health,Salisbury NHS Foundation Trust,15/05/2020,BAGS SACKS - OTHER,Facilities,NHS LOGISTICS,1121016036,19.76,
Department of Health,Salisbury NHS Foundation Trust,15/05/2020,DRESSINGS - PRE STERILE,Medicine,NHS LOGISTICS,1121016036,1.18,
Department of Health,Salisbury NHS Foundation Trust,15/05/2020,DRESSINGS - PRE STERILE,Medicine,NHS LOGISTICS,1121016036,0.71,
Department of Health,Salisbury NHS Foundation Trust,15/05/2020,DRESSINGS - PRE STERILE,Medicine,NHS LOGISTICS,1121016036,6.87,
Department of Health,Salisbury NHS Foundation Trust,15/05/2020,DRESSINGS - PRE STERILE,Medicine,NHS LOGISTICS,1121016036,6.87,
Department of Health,Salisbury NHS Foundation Trust,15/05/2020,DRESSINGS - PRE STERILE,Medicine,NHS LOGISTICS,1121016036,7.2,
Department of Health,Salisbury NHS Foundation Trust,15/05/2020,DRESSINGS - PRE STERILE,Medicine,NHS LOGISTICS,1121016036,3.6,
Department of Health,Salisbury NHS Foundation Trust,15/05/2020,SURGICAL INSTRUMENTS - GENERAL,Clinical Support,NHS LOGISTICS,1121016036,64.6,
Department of Health,Salisbury NHS Foundation Trust,15/05/2020,PATIENTS INCONTINENCE,Surgery,NHS LOGISTICS,1121016036,7.62,
Department of Health,Salisbury NHS Foundation Trust,15/05/2020,PATIENT APPLIANCES,Surgery,NHS LOGISTICS,1121016036,6.4,
Department of Health,Salisbury NHS Foundation Trust,15/05/2020,MEDSURGCONS-OTHER,Clinical Support,NHS LOGISTICS,1121016036,29.17,
Department of Health,Salisbury NHS Foundation Trust,15/05/2020,MEDSURGCONS-OTHER,Clinical Support,NHS LOGISTICS,1121016036,64.8,
Department of Health,Salisbury NHS Foundation Trust,15/05/2020,MEDSURGCONS-OTHER,Clinical Support,NHS LOGISTICS,1121016036,5.32,
Department of Health,Salisbury NHS Foundation Trust,15/05/2020,DISPOSABLE THEATRE DRAPES WIPES,Medicine,NHS LOGISTICS,1121016036,167.3,
Department of Health,Salisbury NHS Foundation Trust,15/05/2020,DISPOSABLE THEATRE DRAPES WIPES,Surgery,NHS LOGISTICS,1121016036,167.3,
Department of Health,Salisbury NHS Foundation Trust,15/05/2020,M & S EQUIPELECTEQUIPINST - OTHER,Clinical Support,NHS LOGISTICS,1121016036,150,
Department of Health,Salisbury NHS Foundation Trust,15/05/2020,ANAESTHETIC EQUIPMENT ACCESSORIES,Surgery,NHS LOGISTICS,1121016036,151.2,
Department of Health,Salisbury NHS Foundation Trust,15/05/2020,ANAESTHETIC EQUIPMENT ACCESSORIES,Surgery,NHS LOGISTICS,1121016036,151.2,
Department of Health,Salisbury NHS Foundation Trust,15/05/2020,ANAESTHETIC EQUIPMENT ACCESSORIES,Surgery,NHS LOGISTICS,1121016036,62.5,
Department of Health,Salisbury NHS Foundation Trust,15/05/2020,DISPOSABLE THEATRE DRAPES WIPES,Surgery,NHS LOGISTICS,1121016036,167.3,
Department of Health,Salisbury NHS Foundation Trust,15/05/2020,TISSUES HAND TOWELS & TOILET PAPER,Facilities,NHS LOGISTICS,1121016036,1.2,
Department of Health,Salisbury NHS Foundation Trust,15/05/2020,TOILETRIES PERSONAL HYGIENE PRODUCT,Facilities,NHS LOGISTICS,1121016036,3.54,
Department of Health,Salisbury NHS Foundation Trust,15/05/2020,TOILETRIES PERSONAL HYGIENE PRODUCT,Facilities,NHS LOGISTICS,1121016036,2.88,
Department of Health,Salisbury NHS Foundation Trust,15/05/2020,MEDSURGCONS-OTHER,Facilities,NHS LOGISTICS,1121016036,6.4,
Department of Health,Salisbury NHS Foundation Trust,15/05/2020,MEDSURGCONS-OTHER,Facilities,NHS LOGISTICS,1121016036,0.4,
Department of Health,Salisbury NHS Foundation Trust,15/05/2020,MEDSURGCONS-OTHER,Facilities,NHS LOGISTICS,1121016036,0.24,
Department of Health,Salisbury NHS Foundation Trust,15/05/2020,MEDSURGCONS-OTHER,Facilities,NHS LOGISTICS,1121016036,9.6,
Department of Health,Salisbury NHS Foundation Trust,15/05/2020,MEDSURGCONS-OTHER,Facilities,NHS LOGISTICS,1121016036,11.9,
Department of Health,Salisbury NHS Foundation Trust,15/05/2020,MEDSURGCONS-OTHER,Medicine,NHS LOGISTICS,1121016036,270,
Department of Health,Salisbury NHS Foundation Trust,15/05/2020,MEDSURGCONS-OTHER,Medicine,NHS LOGISTICS,1121016036,270,
Department of Health,Salisbury NHS Foundation Trust,15/05/2020,MEDSURGCONS-OTHER,Medicine,NHS LOGISTICS,1121016036,850,
Department of Health,Salisbury NHS Foundation Trust,15/05/2020,MEDSURGCONS-OTHER,Medicine,NHS LOGISTICS,1121016036,25,
Department of Health,Salisbury NHS Foundation Trust,15/05/2020,MEDSURGCONS-OTHER,Medicine,NHS LOGISTICS,1121016036,630,
Department of Health,Salisbury NHS Foundation Trust,15/05/2020,MEDSURGCONS-OTHER,Medicine,NHS LOGISTICS,1121016036,21,
Department of Health,Salisbury NHS Foundation Trust,15/05/2020,MEDSURGCONS-OTHER,Medicine,NHS LOGISTICS,1121016036,21,
Department of Health,Salisbury NHS Foundation Trust,15/05/2020,DRESSINGS  -  PROCEDURE PACKS,Clinical Support,NHS LOGISTICS,1121016036,153.32,
Department of Health,Salisbury NHS Foundation Trust,15/05/2020,MEDSURGCONS-OTHER,Clinical Support,NHS LOGISTICS,1121016036,100,
Department of Health,Salisbury NHS Foundation Trust,15/05/2020,MEDSURGCONS-OTHER,Clinical Support,NHS LOGISTICS,1121016036,58,
Department of Health,Salisbury NHS Foundation Trust,15/05/2020,OFFICE EQUIP MACHINERY  -  OTHER,Surgery,NHS LOGISTICS,1121016036,7.27,
Department of Health,Salisbury NHS Foundation Trust,15/05/2020,OFFICE EQUIP MACHINERY  -  OTHER,Surgery,NHS LOGISTICS,1121016036,7.27,
Department of Health,Salisbury NHS Foundation Trust,15/05/2020,OFFICE EQUIP MACHINERY  -  OTHER,Surgery,NHS LOGISTICS,1121016036,7.27,
Department of Health,Salisbury NHS Foundation Trust,15/05/2020,MEDSURGCONS-OTHER,Medicine,NHS LOGISTICS,1121016036,248,
Department of Health,Salisbury NHS Foundation Trust,15/05/2020,MEDSURGCONS-OTHER,Medicine,NHS LOGISTICS,1121016036,370,
Department of Health,Salisbury NHS Foundation Trust,15/05/2020,MEDSURGCONS-OTHER,Medicine,NHS LOGISTICS,1121016036,370,
Department of Health,Salisbury NHS Foundation Trust,15/05/2020,MEDSURGCONS-OTHER,Medicine,NHS LOGISTICS,1121016036,185,
Department of Health,Salisbury NHS Foundation Trust,15/05/2020,MEDSURGCONS-OTHER,Medicine,NHS LOGISTICS,1121016036,555,
Department of Health,Salisbury NHS Foundation Trust,15/05/2020,MEDSURGCONS-OTHER,Medicine,NHS LOGISTICS,1121016036,185,
Department of Health,Salisbury NHS Foundation Trust,15/05/2020,MEDSURGCONS-OTHER,Medicine,NHS LOGISTICS,1121016036,370,
Department of Health,Salisbury NHS Foundation Trust,15/05/2020,MEDSURGCONS-OTHER,Medicine,NHS LOGISTICS,1121016036,370,
Department of Health,Salisbury NHS Foundation Trust,15/05/2020,MEDSURGCONS-OTHER,Medicine,NHS LOGISTICS,1121016036,185,
Department of Health,Salisbury NHS Foundation Trust,15/05/2020,MEDSURGCONS-OTHER,Medicine,NHS LOGISTICS,1121016036,370,
Department of Health,Salisbury NHS Foundation Trust,15/05/2020,MEDSURGCONS-OTHER,Medicine,NHS LOGISTICS,1121016036,370,
Department of Health,Salisbury NHS Foundation Trust,15/05/2020,MEDSURGCONS-OTHER,Medicine,NHS LOGISTICS,1121016036,370,
Department of Health,Salisbury NHS Foundation Trust,15/05/2020,MEDSURGCONS-OTHER,Medicine,NHS LOGISTICS,1121016036,185,
Department of Health,Salisbury NHS Foundation Trust,15/05/2020,MEDSURGCONS-OTHER,Medicine,NHS LOGISTICS,1121016036,185,
Department of Health,Salisbury NHS Foundation Trust,15/05/2020,MEDSURGCONS-OTHER,Medicine,NHS LOGISTICS,1121016036,185,
Department of Health,Salisbury NHS Foundation Trust,15/05/2020,MEDSURGCONS-OTHER,Medicine,NHS LOGISTICS,1121016036,21,
Department of Health,Salisbury NHS Foundation Trust,15/05/2020,MEDSURGCONS-OTHER,Medicine,NHS LOGISTICS,1121016036,21,
Department of Health,Salisbury NHS Foundation Trust,15/05/2020,MEDSURGCONS-OTHER,Medicine,NHS LOGISTICS,1121016036,42,
Department of Health,Salisbury NHS Foundation Trust,15/05/2020,MEDSURGCONS-OTHER,Medicine,NHS LOGISTICS,1121016036,250,
Department of Health,Salisbury NHS Foundation Trust,15/05/2020,MEDSURGCONS-OTHER,Surgery,NHS LOGISTICS,1121016036,25.2,
Department of Health,Salisbury NHS Foundation Trust,15/05/2020,CLEANING MATERIAL PRODUCTS SUNDRIES,Facilities,NHS LOGISTICS,1121016036,12.3,
Department of Health,Salisbury NHS Foundation Trust,15/05/2020,LIQUID REFRESHMENTS,Facilities,NHS LOGISTICS,1121016036,5.4,
Department of Health,Salisbury NHS Foundation Trust,15/05/2020,CLEANING MATERIAL PRODUCTS SUNDRIES,Facilities,NHS LOGISTICS,1121016036,36.48,
Department of Health,Salisbury NHS Foundation Trust,15/05/2020,CLEANING MATERIAL PRODUCTS SUNDRIES,Facilities,NHS LOGISTICS,1121016036,147.5,
Department of Health,Salisbury NHS Foundation Trust,15/05/2020,CLEANING MATERIAL PRODUCTS SUNDRIES,Facilities,NHS LOGISTICS,1121016036,8,
Department of Health,Salisbury NHS Foundation Trust,15/05/2020,CLEANING MATERIAL PRODUCTS SUNDRIES,Facilities,NHS LOGISTICS,1121016036,63.72,
Department of Health,Salisbury NHS Foundation Trust,15/05/2020,SOFT FURNISHINGS,Facilities,NHS LOGISTICS,1121016036,604.8,
Department of Health,Salisbury NHS Foundation Trust,15/05/2020,DISPOSABLE THEATRE DRAPES WIPES,Medicine,NHS LOGISTICS,1121016036,167.3,
Department of Health,Salisbury NHS Foundation Trust,15/05/2020,M & S EQUIPELECTEQUIPINST - OTHER,Facilities,NHS LOGISTICS,1121016036,97.2,
Department of Health,Salisbury NHS Foundation Trust,15/05/2020,M & S EQUIPELECTEQUIPINST - OTHER,Facilities,NHS LOGISTICS,1121016036,97.2,
Department of Health,Salisbury NHS Foundation Trust,15/05/2020,M & S EQUIPELECTEQUIPINST - OTHER,Facilities,NHS LOGISTICS,1121016036,1.42,
Department of Health,Salisbury NHS Foundation Trust,15/05/2020,MEDSURGCONS-OTHER,Medicine,NHS LOGISTICS,1121016036,200,
Department of Health,Salisbury NHS Foundation Trust,15/05/2020,SURGICAL INSTRUMENTS - DISPOSABLE,Medicine,NHS LOGISTICS,1121016036,15.78,
Department of Health,Salisbury NHS Foundation Trust,15/05/2020,DRESSINGS - PRE STERILE,Musculo-Skeletal,NHS LOGISTICS,1121016036,27.61,
Department of Health,Salisbury NHS Foundation Trust,15/05/2020,DRESSINGS - PRE STERILE,Musculo-Skeletal,NHS LOGISTICS,1121016036,27.61,
Department of Health,Salisbury NHS Foundation Trust,15/05/2020,PATIENTS BEDWEAR UNISEX,Medicine,NHS LOGISTICS,1121016036,97.23,
Department of Health,Salisbury NHS Foundation Trust,15/05/2020,ANAESTHETIC EQUIPMENT ACCESSORIES,Musculo-Skeletal,NHS LOGISTICS,1121016036,18.8,
Department of Health,Salisbury NHS Foundation Trust,15/05/2020,ANAESTHETIC EQUIPMENT ACCESSORIES,Musculo-Skeletal,NHS LOGISTICS,1121016036,30,
Department of Health,Salisbury NHS Foundation Trust,15/05/2020,DISPOSABLE THEATRE DRAPES WIPES,Clinical Support,NHS LOGISTICS,1121016036,1.81,
Department of Health,Salisbury NHS Foundation Trust,15/05/2020,TUBES,Surgery,NHS LOGISTICS,1121016036,139,
Department of Health,Salisbury NHS Foundation Trust,15/05/2020,MEDSURGCONS-OTHER,Medicine,NHS LOGISTICS,1121016036,724,
Department of Health,Salisbury NHS Foundation Trust,15/05/2020,MEDSURGCONS-OTHER,Medicine,NHS LOGISTICS,1121016036,1075,
Department of Health,Salisbury NHS Foundation Trust,15/05/2020,MEDSURGCONS-OTHER,Medicine,NHS LOGISTICS,1121016036,2150,
Department of Health,Salisbury NHS Foundation Trust,15/05/2020,MED PROSTH - PACEMAKERS,Medicine,NHS LOGISTICS,1121016036,30,
Department of Health,Salisbury NHS Foundation Trust,15/05/2020,MED PROSTH - PACEMAKERS,Medicine,NHS LOGISTICS,1121016036,6600,
Department of Health,Salisbury NHS Foundation Trust,15/05/2020,MED PROSTH - PACEMAKERS,Medicine,NHS LOGISTICS,1121016036,2750,
Department of Health,Salisbury NHS Foundation Trust,15/05/2020,MED PROSTH - PACEMAKERS,Medicine,NHS LOGISTICS,1121016036,400,
Department of Health,Salisbury NHS Foundation Trust,15/05/2020,MED PROSTH - OTHER,Medicine,NHS LOGISTICS,1121016036,900,
Department of Health,Salisbury NHS Foundation Trust,15/05/2020,MED PROSTH - OTHER,Medicine,NHS LOGISTICS,1121016036,900,
Department of Health,Salisbury NHS Foundation Trust,15/05/2020,CLEANING MATERIAL PRODUCTS SUNDRIES,Clinical Support,NHS LOGISTICS,1121016036,6.6,
Department of Health,Salisbury NHS Foundation Trust,15/05/2020,CLEANING MATERIAL PRODUCTS SUNDRIES,Clinical Support,NHS LOGISTICS,1121016036,6.6,
Department of Health,Salisbury NHS Foundation Trust,15/05/2020,DRESSINGS,Clinical Support,NHS LOGISTICS,1121016036,23.28,
Department of Health,Salisbury NHS Foundation Trust,15/05/2020,TISSUES HAND TOWELS & TOILET PAPER,Facilities,NHS LOGISTICS,1121016036,126.48,
Department of Health,Salisbury NHS Foundation Trust,15/05/2020,TISSUES HAND TOWELS & TOILET PAPER,Facilities,NHS LOGISTICS,1121016036,379.2,
Department of Health,Salisbury NHS Foundation Trust,15/05/2020,BAGS SACKS - OTHER,Clinical Support,NHS LOGISTICS,1121016036,3.3,
Department of Health,Salisbury NHS Foundation Trust,15/05/2020,BAGS SACKS - OTHER,Clinical Support,NHS LOGISTICS,1121016036,12.48,
Department of Health,Salisbury NHS Foundation Trust,15/05/2020,MEDSURGCONS-OTHER,Medicine,NHS LOGISTICS,1121016036,1440,
Department of Health,Salisbury NHS Foundation Trust,15/05/2020,MEDSURGCONS-OTHER,Medicine,NHS LOGISTICS,1121016036,640,
Department of Health,Salisbury NHS Foundation Trust,15/05/2020,MEDSURGCONS-OTHER,Medicine,NHS LOGISTICS,1121016036,1919.76,
Department of Health,Salisbury NHS Foundation Trust,15/05/2020,MEDSURGCONS-OTHER,Medicine,NHS LOGISTICS,1121016036,1919.76,
Department of Health,Salisbury NHS Foundation Trust,15/05/2020,MEDSURGCONS-OTHER,Medicine,NHS LOGISTICS,1121016036,320,
Department of Health,Salisbury NHS Foundation Trust,15/05/2020,MEDSURGCONS-OTHER,Medicine,NHS LOGISTICS,1121016036,200,
Department of Health,Salisbury NHS Foundation Trust,15/05/2020,DISPOSABLE THEATRE DRAPES WIPES,Facilities,NHS LOGISTICS,1121016036,218.88,
Department of Health,Salisbury NHS Foundation Trust,15/05/2020,DISPOSABLE THEATRE DRAPES WIPES,Facilities,NHS LOGISTICS,1121016036,218.88,
Department of Health,Salisbury NHS Foundation Trust,15/05/2020,DISPOSABLE THEATRE DRAPES WIPES,Facilities,NHS LOGISTICS,1121016036,291.84,
Department of Health,Salisbury NHS Foundation Trust,15/05/2020,DISPOSABLE THEATRE DRAPES WIPES,Clinical Support,NHS LOGISTICS,1121016036,2.93,
Department of Health,Salisbury NHS Foundation Trust,15/05/2020,LAB EQUIP-LABORATORY APPARATUS,Surgery,NHS LOGISTICS,1121016036,4.45,
Department of Health,Salisbury NHS Foundation Trust,15/05/2020,REFUSE DISPOSAL-CLIN CONT SERVICE,Facilities,NHS LOGISTICS,1121016036,275.2,
Department of Health,Salisbury NHS Foundation Trust,15/05/2020,NON DISPOSABLE BED LINEN,Clinical Support,NHS LOGISTICS,1121016036,47.25,
Department of Health,Salisbury NHS Foundation Trust,15/05/2020,NON DISPOSABLE BED LINEN,Clinical Support,NHS LOGISTICS,1121016036,5.64,
Department of Health,Salisbury NHS Foundation Trust,15/05/2020,OTHER MEDICAL SUPPLIES,Medicine,NHS LOGISTICS,1121016036,41,
Department of Health,Salisbury NHS Foundation Trust,15/05/2020,OTHER MEDICAL SUPPLIES,Medicine,NHS LOGISTICS,1121016036,7.12,
Department of Health,Salisbury NHS Foundation Trust,15/05/2020,OTHER MEDICAL SUPPLIES,Clinical Support,NHS LOGISTICS,1121016036,6,
Department of Health,Salisbury NHS Foundation Trust,15/05/2020,OTHER MEDICAL SUPPLIES,Clinical Support,NHS LOGISTICS,1121016036,2.68,
Department of Health,Salisbury NHS Foundation Trust,15/05/2020,MEDSURGCONS-OTHER,Medicine,NHS LOGISTICS,1121016036,5.43,
Department of Health,Salisbury NHS Foundation Trust,15/05/2020,MEDSURGCONS-OTHER,Medicine,NHS LOGISTICS,1121016036,12.5,
Department of Health,Salisbury NHS Foundation Trust,15/05/2020,MEDSURGCONS-OTHER,Medicine,NHS LOGISTICS,1121016036,5.1,
Department of Health,Salisbury NHS Foundation Trust,15/05/2020,MEDSURGCONS-OTHER,Medicine,NHS LOGISTICS,1121016036,12.8,
Department of Health,Salisbury NHS Foundation Trust,15/05/2020,MEDSURGCONS-OTHER,Medicine,NHS LOGISTICS,1121016036,45.78,
Department of Health,Salisbury NHS Foundation Trust,15/05/2020,SURGICAL INSTRUMENTS - GENERAL,Surgery,NHS LOGISTICS,1121016036,18.5,
Department of Health,Salisbury NHS Foundation Trust,15/05/2020,TUBES,Medicine,NHS LOGISTICS,1121016036,5.82,
Department of Health,Salisbury NHS Foundation Trust,15/05/2020,ANAESTHETIC EQUIPMENT ACCESSORIES,Medicine,NHS LOGISTICS,1121016036,2.88,
Department of Health,Salisbury NHS Foundation Trust,15/05/2020,PATIENTS INCONTINENCE,Medicine,NHS LOGISTICS,1121016036,14.05,
Department of Health,Salisbury NHS Foundation Trust,15/05/2020,PATIENTS INCONTINENCE,Medicine,NHS LOGISTICS,1121016036,2.25,
Department of Health,Salisbury NHS Foundation Trust,15/05/2020,TISSUES HAND TOWELS & TOILET PAPER,Medicine,NHS LOGISTICS,1121016036,0.6,
Department of Health,Salisbury NHS Foundation Trust,15/05/2020,DENTAL SURGERY SUNDRIES,Medicine,NHS LOGISTICS,1121016036,2.52,
Department of Health,Salisbury NHS Foundation Trust,15/05/2020,NON DISPOSABLE BED LINEN,Medicine,NHS LOGISTICS,1121016036,11.28,
Department of Health,Salisbury NHS Foundation Trust,15/05/2020,DISPOSABLE THEATRE DRAPES WIPES,Medicine,NHS LOGISTICS,1121016036,2.93,
Department of Health,Salisbury NHS Foundation Trust,15/05/2020,DISPOSABLE THEATRE DRAPES WIPES,Medicine,NHS LOGISTICS,1121016036,167.3,
Department of Health,Salisbury NHS Foundation Trust,15/05/2020,OTHER MEDICAL SUPPLIES,Clinical Support,NHS LOGISTICS,1121016036,32.59,
Department of Health,Salisbury NHS Foundation Trust,15/05/2020,OTHER MEDICAL SUPPLIES,Clinical Support,NHS LOGISTICS,1121016036,1.8,
Department of Health,Salisbury NHS Foundation Trust,15/05/2020,OTHER MEDICAL SUPPLIES,Clinical Support,NHS LOGISTICS,1121016036,20.7,
Department of Health,Salisbury NHS Foundation Trust,15/05/2020,OTHER MEDICAL SUPPLIES,Clinical Support,NHS LOGISTICS,1121016036,5.36,
Department of Health,Salisbury NHS Foundation Trust,15/05/2020,ELECTRICAL EQUIPMENT,Medicine,NHS LOGISTICS,1121016036,1.48,
Department of Health,Salisbury NHS Foundation Trust,15/05/2020,MEDSURGCONS-OTHER,Medicine,NHS LOGISTICS,1121016036,44.88,
Department of Health,Salisbury NHS Foundation Trust,15/05/2020,MEDSURGCONS-OTHER,Medicine,NHS LOGISTICS,1121016036,6.4,
Department of Health,Salisbury NHS Foundation Trust,15/05/2020,ANAESTHETIC EQUIPMENT ACCESSORIES,Medicine,NHS LOGISTICS,1121016036,1.44,
Department of Health,Salisbury NHS Foundation Trust,15/05/2020,DRESSINGS  -  PROCEDURE PACKS,Medicine,NHS LOGISTICS,1121016036,1.05,
Department of Health,Salisbury NHS Foundation Trust,15/05/2020,TISSUES HAND TOWELS & TOILET PAPER,Clinical Support,NHS LOGISTICS,1121016036,0.6,
Department of Health,Salisbury NHS Foundation Trust,15/05/2020,OTHER MEDICAL SUPPLIES,Medicine,NHS LOGISTICS,1121016036,7.12,
Department of Health,Salisbury NHS Foundation Trust,15/05/2020,DRESSINGS - PRE STERILE,Clinical Support,NHS LOGISTICS,1121016036,2.79,
Department of Health,Salisbury NHS Foundation Trust,15/05/2020,DRESSINGS - PRE STERILE,Clinical Support,NHS LOGISTICS,1121016036,49.1,
Department of Health,Salisbury NHS Foundation Trust,15/05/2020,DRESSINGS - PRE STERILE,Clinical Support,NHS LOGISTICS,1121016036,81,
Department of Health,Salisbury NHS Foundation Trust,15/05/2020,DRESSINGS - PRE STERILE,Clinical Support,NHS LOGISTICS,1121016036,91.1,
Department of Health,Salisbury NHS Foundation Trust,15/05/2020,TUBES,Clinical Support,NHS LOGISTICS,1121016036,5.24,
Department of Health,Salisbury NHS Foundation Trust,15/05/2020,TUBES,Clinical Support,NHS LOGISTICS,1121016036,5.82,
Department of Health,Salisbury NHS Foundation Trust,15/05/2020,DISPOSABLE THEATRE DRAPES WIPES,Medicine,NHS LOGISTICS,1121016036,167.3,
Department of Health,Salisbury NHS Foundation Trust,15/05/2020,DISPOSABLE THEATRE DRAPES WIPES,Surgery,NHS LOGISTICS,1121016036,167.3,
Department of Health,Salisbury NHS Foundation Trust,15/05/2020,DISPOSABLE THEATRE DRAPES WIPES,Musculo-Skeletal,NHS LOGISTICS,1121016036,167.3,
Department of Health,Salisbury NHS Foundation Trust,15/05/2020,DISPOSABLE THEATRE DRAPES WIPES,Medicine,NHS LOGISTICS,1121016036,167.3,
Department of Health,Salisbury NHS Foundation Trust,15/05/2020,PATIENTS BEDWEAR UNISEX,Clinical Support,NHS LOGISTICS,1121016036,37.5,
Department of Health,Salisbury NHS Foundation Trust,15/05/2020,DISPOSABLE THEATRE DRAPES WIPES,Medicine,NHS LOGISTICS,1121016036,1.73,
Department of Health,Salisbury NHS Foundation Trust,15/05/2020,DISPOSABLE THEATRE DRAPES WIPES,Surgery,NHS LOGISTICS,1121016036,167.3,
Department of Health,Salisbury NHS Foundation Trust,15/05/2020,BAGS SACKS - OTHER,Clinical Support,NHS LOGISTICS,1121016036,0.67,
Department of Health,Salisbury NHS Foundation Trust,15/05/2020,DRESSINGS - PRE STERILE,Clinical Support,NHS LOGISTICS,1121016036,5,
Department of Health,Salisbury NHS Foundation Trust,15/05/2020,BABY TEXTURE MODIFIED FOODS,Clinical Support,NHS LOGISTICS,1121016036,17.76,
Department of Health,Salisbury NHS Foundation Trust,15/05/2020,BABY TEXTURE MODIFIED FOODS,Clinical Support,NHS LOGISTICS,1121016036,19.68,
Department of Health,Salisbury NHS Foundation Trust,15/05/2020,MEDSURGCONS-OTHER,Surgery,NHS LOGISTICS,1121016036,20.28,
Department of Health,Salisbury NHS Foundation Trust,15/05/2020,MEDSURGCONS-OTHER,Surgery,NHS LOGISTICS,1121016036,21.72,
Department of Health,Salisbury NHS Foundation Trust,15/05/2020,MEDSURGCONS-OTHER,Surgery,NHS LOGISTICS,1121016036,6.12,
Department of Health,Salisbury NHS Foundation Trust,15/05/2020,MEDSURGCONS-OTHER,Surgery,NHS LOGISTICS,1121016036,4.78,
Department of Health,Salisbury NHS Foundation Trust,15/05/2020,MEDSURGCONS-OTHER,Surgery,NHS LOGISTICS,1121016036,192.64,
Department of Health,Salisbury NHS Foundation Trust,15/05/2020,MEDSURGCONS-OTHER,Surgery,NHS LOGISTICS,1121016036,16.8,
Department of Health,Salisbury NHS Foundation Trust,15/05/2020,OTHER MEDICAL SUPPLIES,Surgery,NHS LOGISTICS,1121016036,19.5,
Department of Health,Salisbury NHS Foundation Trust,15/05/2020,OTHER MEDICAL SUPPLIES,Surgery,NHS LOGISTICS,1121016036,6.63,
Department of Health,Salisbury NHS Foundation Trust,15/05/2020,OTHER MEDICAL SUPPLIES,Surgery,NHS LOGISTICS,1121016036,10.72,
Department of Health,Salisbury NHS Foundation Trust,15/05/2020,DRUGS,Surgery,NHS LOGISTICS,1121016036,42.48,
Department of Health,Salisbury NHS Foundation Trust,15/05/2020,DISPOSABLE THEATRE DRAPES WIPES,Surgery,NHS LOGISTICS,1121016036,167.3,
Department of Health,Salisbury NHS Foundation Trust,15/05/2020,DISPOSABLE THEATRE DRAPES WIPES,Medicine,NHS LOGISTICS,1121016036,167.3,
Department of Health,Salisbury NHS Foundation Trust,15/05/2020,DISPOSABLE THEATRE DRAPES WIPES,Clinical Support,NHS LOGISTICS,1121016036,167.3,
Department of Health,Salisbury NHS Foundation Trust,15/05/2020,TUBES,Facilities,NHS LOGISTICS,1121016036,5.82,
Department of Health,Salisbury NHS Foundation Trust,15/05/2020,TUBES,Facilities,NHS LOGISTICS,1121016036,12,
Department of Health,Salisbury NHS Foundation Trust,15/05/2020,PATIENT APPLIANCES,Facilities,NHS LOGISTICS,1121016036,4.34,
Department of Health,Salisbury NHS Foundation Trust,15/05/2020,DRESSINGS - PRE STERILE,Facilities,NHS LOGISTICS,1121016036,1.42,
Department of Health,Salisbury NHS Foundation Trust,15/05/2020,DRESSINGS - PRE STERILE,Facilities,NHS LOGISTICS,1121016036,8.16,
Department of Health,Salisbury NHS Foundation Trust,15/05/2020,ANAESTHETIC EQUIPMENT ACCESSORIES,Facilities,NHS LOGISTICS,1121016036,4.8,
Department of Health,Salisbury NHS Foundation Trust,15/05/2020,SURGICAL INSTRUMENTS - DISPOSABLE,Facilities,NHS LOGISTICS,1121016036,4.5,
Department of Health,Salisbury NHS Foundation Trust,15/05/2020,DRESSINGS - PRE STERILE,Surgery,NHS LOGISTICS,1121016036,6.22,
Department of Health,Salisbury NHS Foundation Trust,15/05/2020,NON DISPOSABLE BED LINEN,Medicine,NHS LOGISTICS,1121016036,5.31,
Department of Health,Salisbury NHS Foundation Trust,15/05/2020,M & S EQUIPELECTEQUIPINST - OTHER,Musculo-Skeletal,NHS LOGISTICS,1121016036,13.17,
Department of Health,Salisbury NHS Foundation Trust,15/05/2020,MEDPROST-TRAUMA PRODUCTS,Surgery,NHS LOGISTICS,1121016036,135.38,
Department of Health,Salisbury NHS Foundation Trust,15/05/2020,MEDPROST-TRAUMA PRODUCTS,Surgery,NHS LOGISTICS,1121016036,126.83,
Department of Health,Salisbury NHS Foundation Trust,15/05/2020,PATIENTS BABY WEAR,Medicine,NHS LOGISTICS,1121016036,6.66,
Department of Health,Salisbury NHS Foundation Trust,15/05/2020,PATIENTS BABY WEAR,Medicine,NHS LOGISTICS,1121016036,6.17,
Department of Health,Salisbury NHS Foundation Trust,15/05/2020,PATIENTS BABY WEAR,Medicine,NHS LOGISTICS,1121016036,5.94,
Department of Health,Salisbury NHS Foundation Trust,15/05/2020,DRESSINGS - PRE STERILE,Musculo-Skeletal,NHS LOGISTICS,1121016036,57.48,
Department of Health,Salisbury NHS Foundation Trust,15/05/2020,SURGICAL INSTRUMENTS - DISPOSABLE,Medicine,NHS LOGISTICS,1121016036,9,
Department of Health,Salisbury NHS Foundation Trust,15/05/2020,SURGICAL INSTRUMENTS - DISPOSABLE,Medicine,NHS LOGISTICS,1121016036,11.4,
Department of Health,Salisbury NHS Foundation Trust,15/05/2020,SURGICAL INSTRUMENTS - DISPOSABLE,Medicine,NHS LOGISTICS,1121016036,6.75,
Department of Health,Salisbury NHS Foundation Trust,15/05/2020,PATIENT APPLIANCES,Medicine,NHS LOGISTICS,1121016036,3.3,
Department of Health,Salisbury NHS Foundation Trust,15/05/2020,PATIENT APPLIANCES,Clinical Support,NHS LOGISTICS,1121016036,2.46,
Department of Health,Salisbury NHS Foundation Trust,15/05/2020,DRESSINGS - PRE STERILE,Musculo-Skeletal,NHS LOGISTICS,1121016036,22.68,
Department of Health,Salisbury NHS Foundation Trust,15/05/2020,DRESSINGS - PRE STERILE,Musculo-Skeletal,NHS LOGISTICS,1121016036,8.4,
Department of Health,Salisbury NHS Foundation Trust,15/05/2020,DRESSINGS - PRE STERILE,Musculo-Skeletal,NHS LOGISTICS,1121016036,6.2,
Department of Health,Salisbury NHS Foundation Trust,15/05/2020,DRESSINGS - PRE STERILE,Musculo-Skeletal,NHS LOGISTICS,1121016036,8.97,
Department of Health,Salisbury NHS Foundation Trust,15/05/2020,OFFICE EQUIP MACHINERY  -  OTHER,Clinical Support,NHS LOGISTICS,1121016036,21.81,
Department of Health,Salisbury NHS Foundation Trust,15/05/2020,OFFICE EQUIP MACHINERY  -  OTHER,Clinical Support,NHS LOGISTICS,1121016036,14.54,
Department of Health,Salisbury NHS Foundation Trust,15/05/2020,DENTAL SURGERY SUNDRIES,Facilities,NHS LOGISTICS,1121016036,2.52,
Department of Health,Salisbury NHS Foundation Trust,15/05/2020,MEDSURGCONS-OTHER,Surgery,NHS LOGISTICS,1121016036,8.8,
Department of Health,Salisbury NHS Foundation Trust,15/05/2020,MEDSURGCONS-SUTURES,Surgery,NHS LOGISTICS,1121016036,27.67,
Department of Health,Salisbury NHS Foundation Trust,15/05/2020,MEDSURGCONS-SUTURES,Surgery,NHS LOGISTICS,1121016036,23.04,
Department of Health,Salisbury NHS Foundation Trust,15/05/2020,TUBES,Surgery,NHS LOGISTICS,1121016036,4.6,
Department of Health,Salisbury NHS Foundation Trust,15/05/2020,NON DISPOSABLE BED LINEN,Surgery,NHS LOGISTICS,1121016036,11.28,
Department of Health,Salisbury NHS Foundation Trust,15/05/2020,CLEANING MATERIAL PRODUCTS SUNDRIES,Surgery,NHS LOGISTICS,1121016036,3.92,
Department of Health,Salisbury NHS Foundation Trust,15/05/2020,MEDSURGCONS-OTHER,Musculo-Skeletal,NHS LOGISTICS,1121016036,6.76,
Department of Health,Salisbury NHS Foundation Trust,15/05/2020,TUBES,Musculo-Skeletal,NHS LOGISTICS,1121016036,5.82,
Department of Health,Salisbury NHS Foundation Trust,15/05/2020,ANAESTHETIC EQUIPMENT ACCESSORIES,Musculo-Skeletal,NHS LOGISTICS,1121016036,2.4,
Department of Health,Salisbury NHS Foundation Trust,15/05/2020,PATIENTS INCONTINENCE,Musculo-Skeletal,NHS LOGISTICS,1121016036,20.32,
Department of Health,Salisbury NHS Foundation Trust,15/05/2020,TUBES,Medicine,NHS LOGISTICS,1121016036,5.82,
Department of Health,Salisbury NHS Foundation Trust,15/05/2020,ANAESTHETIC EQUIPMENT ACCESSORIES,Medicine,NHS LOGISTICS,1121016036,2.88,
Department of Health,Salisbury NHS Foundation Trust,15/05/2020,PATIENTS INCONTINENCE,Facilities,NHS LOGISTICS,1121016036,23.76,
Department of Health,Salisbury NHS Foundation Trust,15/05/2020,DRESSINGS - PRE STERILE,Facilities,NHS LOGISTICS,1121016036,4.08,
Department of Health,Salisbury NHS Foundation Trust,15/05/2020,MEDSURGCONS-OTHER,Facilities,NHS LOGISTICS,1121016036,19.2,
Department of Health,Salisbury NHS Foundation Trust,15/05/2020,DRESSINGS - PRE STERILE,Musculo-Skeletal,NHS LOGISTICS,1121016036,11.9,
Department of Health,Salisbury NHS Foundation Trust,15/05/2020,TISSUES HAND TOWELS & TOILET PAPER,Musculo-Skeletal,NHS LOGISTICS,1121016036,0.6,
Department of Health,Salisbury NHS Foundation Trust,15/05/2020,MEDSURGCONS-OTHER,Musculo-Skeletal,NHS LOGISTICS,1121016036,6.76,
Department of Health,Salisbury NHS Foundation Trust,15/05/2020,DRESSINGS - PRE STERILE,Musculo-Skeletal,NHS LOGISTICS,1121016036,0.71,
Department of Health,Salisbury NHS Foundation Trust,15/05/2020,DRESSINGS  -  PROCEDURE PACKS,Musculo-Skeletal,NHS LOGISTICS,1121016036,0.7,
Department of Health,Salisbury NHS Foundation Trust,15/05/2020,TOILETRIES PERSONAL HYGIENE PRODUCT,Musculo-Skeletal,NHS LOGISTICS,1121016036,3.26,
Department of Health,Salisbury NHS Foundation Trust,15/05/2020,DRESSINGS - PRE STERILE,Musculo-Skeletal,NHS LOGISTICS,1121016036,2.84,
Department of Health,Salisbury NHS Foundation Trust,15/05/2020,MEDSURGCONS-OTHER,Musculo-Skeletal,NHS LOGISTICS,1121016036,12.8,
Department of Health,Salisbury NHS Foundation Trust,15/05/2020,MEDSURGCONS-OTHER,Facilities,NHS LOGISTICS,1121016036,2.6,
Department of Health,Salisbury NHS Foundation Trust,15/05/2020,MED SURG EQUIP REP MAINT CLEANING,Clinical Support,NHS LOGISTICS,1121016036,36.4,
Department of Health,Salisbury NHS Foundation Trust,15/05/2020,M & S EQUIPELECTEQUIPINST - OTHER,Clinical Support,NHS LOGISTICS,1121016036,178.97,
Department of Health,Salisbury NHS Foundation Trust,15/05/2020,MEDSURGCONS-OTHER,Facilities,NHS LOGISTICS,1121016036,1.55,
Department of Health,Salisbury NHS Foundation Trust,15/05/2020,MEDSURGCONS-OTHER,Facilities,NHS LOGISTICS,1121016036,157.5,
Department of Health,Salisbury NHS Foundation Trust,15/05/2020,PATIENTS INCONTINENCE,Medicine,NHS LOGISTICS,1121016036,5.94,
Department of Health,Salisbury NHS Foundation Trust,15/05/2020,PATIENTS INCONTINENCE,Medicine,NHS LOGISTICS,1121016036,4.72,
Department of Health,Salisbury NHS Foundation Trust,15/05/2020,MEDSURGCONS-OTHER,Medicine,NHS LOGISTICS,1121016036,2.5,
Department of Health,Salisbury NHS Foundation Trust,15/05/2020,MEDSURGCONS-OTHER,Medicine,NHS LOGISTICS,1121016036,2.55,
Department of Health,Salisbury NHS Foundation Trust,15/05/2020,PATIENTS INCONTINENCE,Medicine,NHS LOGISTICS,1121016036,5.08,
Department of Health,Salisbury NHS Foundation Trust,15/05/2020,MEDSURGCONS-OTHER,Medicine,NHS LOGISTICS,1121016036,12.8,
Department of Health,Salisbury NHS Foundation Trust,15/05/2020,TISSUES HAND TOWELS & TOILET PAPER,Medicine,NHS LOGISTICS,1121016036,0.6,
Department of Health,Salisbury NHS Foundation Trust,15/05/2020,MEDSURGCONS-OTHER,Medicine,NHS LOGISTICS,1121016036,0.78,
Department of Health,Salisbury NHS Foundation Trust,15/05/2020,MEDSURGCONS-OTHER,Medicine,NHS LOGISTICS,1121016036,2.4,
Department of Health,Salisbury NHS Foundation Trust,15/05/2020,MEDSURGCONS-OTHER,Medicine,NHS LOGISTICS,1121016036,201.5,
Department of Health,Salisbury NHS Foundation Trust,15/05/2020,MEDSURGCONS-OTHER,Medicine,NHS LOGISTICS,1121016036,201.5,
Department of Health,Salisbury NHS Foundation Trust,15/05/2020,MEDSURGCONS-OTHER,Medicine,NHS LOGISTICS,1121016036,80,
Department of Health,Salisbury NHS Foundation Trust,15/05/2020,MEDSURGCONS-OTHER,Medicine,NHS LOGISTICS,1121016036,3.38,
Department of Health,Salisbury NHS Foundation Trust,15/05/2020,MEDSURGCONS-OTHER,Medicine,NHS LOGISTICS,1121016036,12.76,
Department of Health,Salisbury NHS Foundation Trust,15/05/2020,MEDSURGCONS-OTHER,Medicine,NHS LOGISTICS,1121016036,1.53,
Department of Health,Salisbury NHS Foundation Trust,15/05/2020,NON DISPOSABLE BED LINEN,Medicine,NHS LOGISTICS,1121016036,11.28,
Department of Health,Salisbury NHS Foundation Trust,15/05/2020,DRESSINGS - PRE STERILE,Surgery,NHS LOGISTICS,1121016036,11.9,
Department of Health,Salisbury NHS Foundation Trust,15/05/2020,MEDSURGCONS-OTHER,Surgery,NHS LOGISTICS,1121016036,1.55,
Department of Health,Salisbury NHS Foundation Trust,15/05/2020,MEDSURGCONS-OTHER,Surgery,NHS LOGISTICS,1121016036,0.78,
Department of Health,Salisbury NHS Foundation Trust,15/05/2020,MEDSURGCONS-OTHER,Musculo-Skeletal,NHS LOGISTICS,1121016036,4.8,
Department of Health,Salisbury NHS Foundation Trust,15/05/2020,MEDSURGCONS-OTHER,Musculo-Skeletal,NHS LOGISTICS,1121016036,3.12,
Department of Health,Salisbury NHS Foundation Trust,15/05/2020,MEDSURGCONS-OTHER,Musculo-Skeletal,NHS LOGISTICS,1121016036,2.1,
Department of Health,Salisbury NHS Foundation Trust,15/05/2020,DISPOSABLE THEATRE DRAPES WIPES,Musculo-Skeletal,NHS LOGISTICS,1121016036,167.3,
Department of Health,Salisbury NHS Foundation Trust,15/05/2020,DISPOSABLE THEATRE DRAPES WIPES,Surgery,NHS LOGISTICS,1121016036,167.3,
Department of Health,Salisbury NHS Foundation Trust,15/05/2020,DISPOSABLE THEATRE DRAPES WIPES,Medicine,NHS LOGISTICS,1121016036,167.3,
Department of Health,Salisbury NHS Foundation Trust,15/05/2020,DISPOSABLE THEATRE DRAPES WIPES,Medicine,NHS LOGISTICS,1121016036,167.3,
Department of Health,Salisbury NHS Foundation Trust,15/05/2020,DISPOSABLE THEATRE DRAPES WIPES,Surgery,NHS LOGISTICS,1121016036,167.3,
Department of Health,Salisbury NHS Foundation Trust,15/05/2020,DISPOSABLE THEATRE DRAPES WIPES,Clinical Support,NHS LOGISTICS,1121016036,167.3,
Department of Health,Salisbury NHS Foundation Trust,15/05/2020,DISPOSABLE THEATRE DRAPES WIPES,Surgery,NHS LOGISTICS,1121016036,167.3,
Department of Health,Salisbury NHS Foundation Trust,15/05/2020,DISPOSABLE THEATRE DRAPES WIPES,Medicine,NHS LOGISTICS,1121016036,167.3,
Department of Health,Salisbury NHS Foundation Trust,15/05/2020,DISPOSABLE THEATRE DRAPES WIPES,Medicine,NHS LOGISTICS,1121016036,167.3,
Department of Health,Salisbury NHS Foundation Trust,15/05/2020,DISPOSABLE THEATRE DRAPES WIPES,Surgery,NHS LOGISTICS,1121016036,167.3,
Department of Health,Salisbury NHS Foundation Trust,15/05/2020,DISPOSABLE THEATRE DRAPES WIPES,Medicine,NHS LOGISTICS,1121016036,167.3,
Department of Health,Salisbury NHS Foundation Trust,15/05/2020,DISPOSABLE THEATRE DRAPES WIPES,Medicine,NHS LOGISTICS,1121016036,167.3,
Department of Health,Salisbury NHS Foundation Trust,15/05/2020,MEDSURGCONS-OTHER,Clinical Support,NHS LOGISTICS,1121016036,14.58,
Department of Health,Salisbury NHS Foundation Trust,15/05/2020,DRESSINGS - PRE STERILE,Clinical Support,NHS LOGISTICS,1121016036,27.26,
Department of Health,Salisbury NHS Foundation Trust,15/05/2020,MEDSURGCONS-OTHER,Clinical Support,NHS LOGISTICS,1121016036,49.8,
Department of Health,Salisbury NHS Foundation Trust,15/05/2020,OTHER MEDICAL SUPPLIES,Clinical Support,NHS LOGISTICS,1121016036,3,
Department of Health,Salisbury NHS Foundation Trust,15/05/2020,OTHER MEDICAL SUPPLIES,Clinical Support,NHS LOGISTICS,1121016036,1.34,
Department of Health,Salisbury NHS Foundation Trust,15/05/2020,DISPOSABLE THEATRE DRAPES WIPES,Surgery,NHS LOGISTICS,1121016036,167.3,
Department of Health,Salisbury NHS Foundation Trust,15/05/2020,MEDSURGCONS-OTHER,Clinical Support,NHS LOGISTICS,1121016036,45,
Department of Health,Salisbury NHS Foundation Trust,15/05/2020,NON DISPOSABLE BED LINEN,Clinical Support,NHS LOGISTICS,1121016036,26.25,
Department of Health,Salisbury NHS Foundation Trust,15/05/2020,NON DISPOSABLE BED LINEN,Clinical Support,NHS LOGISTICS,1121016036,5.64,
Department of Health,Salisbury NHS Foundation Trust,15/05/2020,MEDSURGCONS-OTHER,Medicine,NHS LOGISTICS,1121016036,10.14,
Department of Health,Salisbury NHS Foundation Trust,15/05/2020,DRESSINGS  -  PROCEDURE PACKS,Medicine,NHS LOGISTICS,1121016036,7,
Department of Health,Salisbury NHS Foundation Trust,15/05/2020,MEDSURGCONS-OTHER,Medicine,NHS LOGISTICS,1121016036,22.5,
Department of Health,Salisbury NHS Foundation Trust,15/05/2020,MEDSURGCONS-OTHER,Medicine,NHS LOGISTICS,1121016036,5,
Department of Health,Salisbury NHS Foundation Trust,15/05/2020,MEDSURGCONS-OTHER,Medicine,NHS LOGISTICS,1121016036,69,
Department of Health,Salisbury NHS Foundation Trust,15/05/2020,MEDSURGCONS-OTHER,Medicine,NHS LOGISTICS,1121016036,12.8,
Department of Health,Salisbury NHS Foundation Trust,15/05/2020,MEDSURGCONS-OTHER,Medicine,NHS LOGISTICS,1121016036,7.75,
Department of Health,Salisbury NHS Foundation Trust,15/05/2020,MEDSURGCONS-OTHER,Facilities,NHS LOGISTICS,1121016036,157.5,
Department of Health,Salisbury NHS Foundation Trust,15/05/2020,OTHER MEDICAL SUPPLIES,Clinical Support,NHS LOGISTICS,1121016036,32.59,
Department of Health,Salisbury NHS Foundation Trust,15/05/2020,OTHER MEDICAL SUPPLIES,Clinical Support,NHS LOGISTICS,1121016036,42.5,
Department of Health,Salisbury NHS Foundation Trust,15/05/2020,OTHER MEDICAL SUPPLIES,Clinical Support,NHS LOGISTICS,1121016036,20.7,
Department of Health,Salisbury NHS Foundation Trust,15/05/2020,MEDSURGCONS-OTHER,Clinical Support,NHS LOGISTICS,1121016036,3.38,
Department of Health,Salisbury NHS Foundation Trust,15/05/2020,MEDSURGCONS-OTHER,Clinical Support,NHS LOGISTICS,1121016036,2.39,
Department of Health,Salisbury NHS Foundation Trust,15/05/2020,MEDSURGCONS-OTHER,Medicine,NHS LOGISTICS,1121016036,49.5,
Department of Health,Salisbury NHS Foundation Trust,15/05/2020,MEDSURGCONS-OTHER,Medicine,NHS LOGISTICS,1121016036,44.9,
Department of Health,Salisbury NHS Foundation Trust,15/05/2020,MEDSURGCONS-OTHER,Medicine,NHS LOGISTICS,1121016036,20,
Department of Health,Salisbury NHS Foundation Trust,15/05/2020,MEDSURGCONS-OTHER,Medicine,NHS LOGISTICS,1121016036,1.55,
Department of Health,Salisbury NHS Foundation Trust,15/05/2020,DISPOSABLE THEATRE DRAPES WIPES,Medicine,NHS LOGISTICS,1121016036,5.86,
Department of Health,Salisbury NHS Foundation Trust,15/05/2020,OTHER MEDICAL SUPPLIES,Surgery,NHS LOGISTICS,1121016036,23,
Department of Health,Salisbury NHS Foundation Trust,15/05/2020,MEDSURGCONS-OTHER,Surgery,NHS LOGISTICS,1121016036,99.5,
Department of Health,Salisbury NHS Foundation Trust,15/05/2020,OTHER MEDICAL SUPPLIES,Surgery,NHS LOGISTICS,1121016036,41.4,
Department of Health,Salisbury NHS Foundation Trust,15/05/2020,OTHER MEDICAL SUPPLIES,Surgery,NHS LOGISTICS,1121016036,2.8,
Department of Health,Salisbury NHS Foundation Trust,15/05/2020,OTHER MEDICAL SUPPLIES,Surgery,NHS LOGISTICS,1121016036,15.6,
Department of Health,Salisbury NHS Foundation Trust,15/05/2020,OTHER MEDICAL SUPPLIES,Surgery,NHS LOGISTICS,1121016036,8.04,
Department of Health,Salisbury NHS Foundation Trust,15/05/2020,DRUGS,Surgery,NHS LOGISTICS,1121016036,42.48,
Department of Health,Salisbury NHS Foundation Trust,15/05/2020,DRUGS,Surgery,NHS LOGISTICS,1121016036,169.84,
Department of Health,Salisbury NHS Foundation Trust,15/05/2020,MEDSURGCONS-SUTURES,Surgery,NHS LOGISTICS,1121016036,114.84,
Department of Health,Salisbury NHS Foundation Trust,15/05/2020,TISSUES HAND TOWELS & TOILET PAPER,Medicine,NHS LOGISTICS,1121016036,6.1,
Department of Health,Salisbury NHS Foundation Trust,15/05/2020,TISSUES HAND TOWELS & TOILET PAPER,Medicine,NHS LOGISTICS,1121016036,3.6,
Department of Health,Salisbury NHS Foundation Trust,15/05/2020,MEDSURGCONS-OTHER,Medicine,NHS LOGISTICS,1121016036,25.52,
Department of Health,Salisbury NHS Foundation Trust,15/05/2020,DRESSINGS  -  PROCEDURE PACKS,Medicine,NHS LOGISTICS,1121016036,14.5,
Department of Health,Salisbury NHS Foundation Trust,15/05/2020,DRESSINGS  -  PROCEDURE PACKS,Medicine,NHS LOGISTICS,1121016036,1.4,
Department of Health,Salisbury NHS Foundation Trust,15/05/2020,OTHER MEDICAL SUPPLIES,Medicine,NHS LOGISTICS,1121016036,6.63,
Department of Health,Salisbury NHS Foundation Trust,15/05/2020,MEDSURGCONS-OTHER,Medicine,NHS LOGISTICS,1121016036,12.32,
Department of Health,Salisbury NHS Foundation Trust,15/05/2020,MEDSURGCONS-OTHER,Medicine,NHS LOGISTICS,1121016036,0.78,
Department of Health,Salisbury NHS Foundation Trust,15/05/2020,MEDSURGCONS-OTHER,Medicine,NHS LOGISTICS,1121016036,3.24,
Department of Health,Salisbury NHS Foundation Trust,15/05/2020,PATIENTS INCONTINENCE,Facilities,NHS LOGISTICS,1121016036,13.12,
Department of Health,Salisbury NHS Foundation Trust,15/05/2020,PATIENTS INCONTINENCE,Facilities,NHS LOGISTICS,1121016036,11.88,
Department of Health,Salisbury NHS Foundation Trust,15/05/2020,M & S EQUIPELECTEQUIPINST - OTHER,Facilities,NHS LOGISTICS,1121016036,25.04,
Department of Health,Salisbury NHS Foundation Trust,15/05/2020,TUBES,Facilities,NHS LOGISTICS,1121016036,5.24,
Department of Health,Salisbury NHS Foundation Trust,15/05/2020,MEDSURGCONS-OTHER,Facilities,NHS LOGISTICS,1121016036,44.9,
Department of Health,Salisbury NHS Foundation Trust,15/05/2020,MEDSURGCONS-OTHER,Facilities,NHS LOGISTICS,1121016036,6.76,
Department of Health,Salisbury NHS Foundation Trust,15/05/2020,MEDSURGCONS-OTHER,Facilities,NHS LOGISTICS,1121016036,5.43,
Department of Health,Salisbury NHS Foundation Trust,15/05/2020,M & S EQUIPELECTEQUIPINST - OTHER,Facilities,NHS LOGISTICS,1121016036,9.5,
Department of Health,Salisbury NHS Foundation Trust,15/05/2020,MEDSURGCONS-OTHER,Facilities,NHS LOGISTICS,1121016036,22.5,
Department of Health,Salisbury NHS Foundation Trust,15/05/2020,SURGICAL INSTRUMENTS - DISPOSABLE,Facilities,NHS LOGISTICS,1121016036,4.5,
Department of Health,Salisbury NHS Foundation Trust,15/05/2020,MEDSURGCONS-OTHER,Facilities,NHS LOGISTICS,1121016036,1.55,
Department of Health,Salisbury NHS Foundation Trust,15/05/2020,MED SURG EQUIP REP MAINT CLEANING,Facilities,NHS LOGISTICS,1121016036,8.99,
Department of Health,Salisbury NHS Foundation Trust,15/05/2020,TUBES,Facilities,NHS LOGISTICS,1121016036,12,
Department of Health,Salisbury NHS Foundation Trust,15/05/2020,MEDSURGCONS-OTHER,Facilities,NHS LOGISTICS,1121016036,0.24,
Department of Health,Salisbury NHS Foundation Trust,15/05/2020,MEDSURGCONS-OTHER,Facilities,NHS LOGISTICS,1121016036,9.6,
Department of Health,Salisbury NHS Foundation Trust,15/05/2020,BAGS SACKS - OTHER,Clinical Support,NHS LOGISTICS,1121016036,10.84,
Department of Health,Salisbury NHS Foundation Trust,15/05/2020,BAGS SACKS - OTHER,Clinical Support,NHS LOGISTICS,1121016036,12.18,
Department of Health,Salisbury NHS Foundation Trust,15/05/2020,M & S EQUIPELECTEQUIPINST - OTHER,Facilities,NHS LOGISTICS,1121016036,44.4,
Department of Health,Salisbury NHS Foundation Trust,15/05/2020,TUBES,Surgery,NHS LOGISTICS,1121016036,5.24,
Department of Health,Salisbury NHS Foundation Trust,15/05/2020,MEDSURGCONS-OTHER,Surgery,NHS LOGISTICS,1121016036,62.1,
Department of Health,Salisbury NHS Foundation Trust,15/05/2020,MEDSURGCONS-OTHER,Surgery,NHS LOGISTICS,1121016036,3.38,
Department of Health,Salisbury NHS Foundation Trust,15/05/2020,DRESSINGS - PRE STERILE,Surgery,NHS LOGISTICS,1121016036,2.9,
Department of Health,Salisbury NHS Foundation Trust,15/05/2020,MEDSURGCONS-OTHER,Surgery,NHS LOGISTICS,1121016036,1.4,
Department of Health,Salisbury NHS Foundation Trust,15/05/2020,ANAESTHETIC EQUIPMENT ACCESSORIES,Surgery,NHS LOGISTICS,1121016036,23.6,
Department of Health,Salisbury NHS Foundation Trust,15/05/2020,MEDSURGCONS-OTHER,Surgery,NHS LOGISTICS,1121016036,13.52,
Department of Health,Salisbury NHS Foundation Trust,15/05/2020,DRESSINGS - PRE STERILE,Surgery,NHS LOGISTICS,1121016036,2.84,
Department of Health,Salisbury NHS Foundation Trust,15/05/2020,ANAESTHETIC EQUIPMENT ACCESSORIES,Surgery,NHS LOGISTICS,1121016036,2.4,
Department of Health,Salisbury NHS Foundation Trust,15/05/2020,MEDSURGCONS-OTHER,Surgery,NHS LOGISTICS,1121016036,5.1,
Department of Health,Salisbury NHS Foundation Trust,15/05/2020,OTHER MEDICAL SUPPLIES,Surgery,NHS LOGISTICS,1121016036,2.68,
Department of Health,Salisbury NHS Foundation Trust,15/05/2020,BAGS SACKS - OTHER,Surgery,NHS LOGISTICS,1121016036,13.55,
Department of Health,Salisbury NHS Foundation Trust,15/05/2020,TUBES,Medicine,NHS LOGISTICS,1121016036,5.82,
Department of Health,Salisbury NHS Foundation Trust,15/05/2020,TUBES,Medicine,NHS LOGISTICS,1121016036,3,
Department of Health,Salisbury NHS Foundation Trust,15/05/2020,DISPOSABLE THEATRE DRAPES WIPES,Clinical Support,NHS LOGISTICS,1121016036,167.3,
Department of Health,Salisbury NHS Foundation Trust,15/05/2020,DISPOSABLE THEATRE DRAPES WIPES,Clinical Support,NHS LOGISTICS,1121016036,167.3,
Department of Health,Salisbury NHS Foundation Trust,15/05/2020,DRESSINGS - PRE STERILE,Clinical Support,NHS LOGISTICS,1121016036,4.35,
Department of Health,Salisbury NHS Foundation Trust,15/05/2020,ELECTRICAL EQUIPMENT,Clinical Support,NHS LOGISTICS,1121016036,2.96,
Department of Health,Salisbury NHS Foundation Trust,15/05/2020,TUBES,Surgery,NHS LOGISTICS,1121016036,20.96,
Department of Health,Salisbury NHS Foundation Trust,15/05/2020,TUBES,Surgery,NHS LOGISTICS,1121016036,12,
Department of Health,Salisbury NHS Foundation Trust,15/05/2020,TUBES,Surgery,NHS LOGISTICS,1121016036,10.48,
Department of Health,Salisbury NHS Foundation Trust,15/05/2020,TUBES,Surgery,NHS LOGISTICS,1121016036,6,
Department of Health,Salisbury NHS Foundation Trust,15/05/2020,DISPOSABLE THEATRE DRAPES WIPES,Clinical Support,NHS LOGISTICS,1121016036,2.93,
Department of Health,Salisbury NHS Foundation Trust,15/05/2020,DISPOSABLE THEATRE DRAPES WIPES,Clinical Support,NHS LOGISTICS,1121016036,167.3,
Department of Health,Salisbury NHS Foundation Trust,15/05/2020,DISPOSABLE THEATRE DRAPES WIPES,Clinical Support,NHS LOGISTICS,1121016036,1.73,
Department of Health,Salisbury NHS Foundation Trust,15/05/2020,DISPOSABLE THEATRE DRAPES WIPES,Clinical Support,NHS LOGISTICS,1121016036,167.3,
Department of Health,Salisbury NHS Foundation Trust,15/05/2020,DISPOSABLE THEATRE DRAPES WIPES,Corporate - Finance & Procurement,NHS LOGISTICS,1121016036,836,
Department of Health,Salisbury NHS Foundation Trust,15/05/2020,DISPOSABLE THEATRE DRAPES WIPES,Corporate - Finance & Procurement,NHS LOGISTICS,1121016036,836,
Department of Health,Salisbury NHS Foundation Trust,15/05/2020,TELECOMS - TELEPHONES,Surgery,NHS LOGISTICS,1121016036,37.49,
Department of Health,Salisbury NHS Foundation Trust,15/05/2020,DRESSINGS  -  PROCEDURE PACKS,Medicine,NHS LOGISTICS,1121016036,0.7,
Department of Health,Salisbury NHS Foundation Trust,15/05/2020,DISPOSABLE THEATRE DRAPES WIPES,Medicine,NHS LOGISTICS,1121016036,167.3,
Department of Health,Salisbury NHS Foundation Trust,15/05/2020,DISPOSABLE THEATRE DRAPES WIPES,Medicine,NHS LOGISTICS,1121016036,167.3,
Department of Health,Salisbury NHS Foundation Trust,15/05/2020,DISPOSABLE THEATRE DRAPES WIPES,Medicine,NHS LOGISTICS,1121016036,167.3,
Department of Health,Salisbury NHS Foundation Trust,15/05/2020,SERVICES FROM NHS BODIES,Clinical Support,NHS LOGISTICS,1121016036,18,
Department of Health,Salisbury NHS Foundation Trust,15/05/2020,DISPOSABLE THEATRE DRAPES WIPES,Clinical Support,NHS LOGISTICS,1121016036,1.73,
Department of Health,Salisbury NHS Foundation Trust,15/05/2020,DRESSINGS  -  PROCEDURE PACKS,Clinical Support,NHS LOGISTICS,1121016036,0.4,
Department of Health,Salisbury NHS Foundation Trust,15/05/2020,DRESSINGS  -  PROCEDURE PACKS,Clinical Support,NHS LOGISTICS,1121016036,1.6,
Department of Health,Salisbury NHS Foundation Trust,15/05/2020,DISPOSABLE THEATRE DRAPES WIPES,Surgery,NHS LOGISTICS,1121016036,167.3,
Department of Health,Salisbury NHS Foundation Trust,15/05/2020,DISPOSABLE THEATRE DRAPES WIPES,Surgery,NHS LOGISTICS,1121016036,167.3,
Department of Health,Salisbury NHS Foundation Trust,15/05/2020,DISPOSABLE THEATRE DRAPES WIPES,Musculo-Skeletal,NHS LOGISTICS,1121016036,167.3,
Department of Health,Salisbury NHS Foundation Trust,15/05/2020,DISPOSABLE THEATRE DRAPES WIPES,Musculo-Skeletal,NHS LOGISTICS,1121016036,167.3,
Department of Health,Salisbury NHS Foundation Trust,15/05/2020,DISPOSABLE THEATRE DRAPES WIPES,Surgery,NHS LOGISTICS,1121016036,167.3,
Department of Health,Salisbury NHS Foundation Trust,15/05/2020,DISPOSABLE THEATRE DRAPES WIPES,Surgery,NHS LOGISTICS,1121016036,167.3,
Department of Health,Salisbury NHS Foundation Trust,15/05/2020,OTHER MEDICAL SUPPLIES,Facilities,NHS LOGISTICS,1121016036,82,
Department of Health,Salisbury NHS Foundation Trust,15/05/2020,OTHER MEDICAL SUPPLIES,Facilities,NHS LOGISTICS,1121016036,14.24,
Department of Health,Salisbury NHS Foundation Trust,15/05/2020,OTHER MEDICAL SUPPLIES,Facilities,NHS LOGISTICS,1121016036,5.36,
Department of Health,Salisbury NHS Foundation Trust,15/05/2020,DRESSINGS  -  PROCEDURE PACKS,Medicine,NHS LOGISTICS,1121016036,4.8,
Department of Health,Salisbury NHS Foundation Trust,15/05/2020,DRUGS,Surgery,NHS LOGISTICS,1121016036,6.9,
Department of Health,Salisbury NHS Foundation Trust,15/05/2020,TOILETRIES PERSONAL HYGIENE PRODUCT,Corporate - Finance & Procurement,NHS LOGISTICS,1121016036,63.6,
Department of Health,Salisbury NHS Foundation Trust,15/05/2020,BEVERAGES & AMBIENT FOOD,Surgery,NHS LOGISTICS,1121016036,1.71,
Department of Health,Salisbury NHS Foundation Trust,15/05/2020,BEVERAGES & AMBIENT FOOD,Surgery,NHS LOGISTICS,1121016036,2.88,
Department of Health,Salisbury NHS Foundation Trust,15/05/2020,OTHER MEDICAL SUPPLIES,Musculo-Skeletal,NHS LOGISTICS,1121016036,27.6,
Department of Health,Salisbury NHS Foundation Trust,15/05/2020,M & S EQUIPELECTEQUIPINST - OTHER,Musculo-Skeletal,NHS LOGISTICS,1121016036,13.52,
Department of Health,Salisbury NHS Foundation Trust,15/05/2020,DRESSINGS - PRE STERILE,Musculo-Skeletal,NHS LOGISTICS,1121016036,1.42,
Department of Health,Salisbury NHS Foundation Trust,15/05/2020,DRESSINGS  -  PROCEDURE PACKS,Musculo-Skeletal,NHS LOGISTICS,1121016036,6.4,
Department of Health,Salisbury NHS Foundation Trust,15/05/2020,DRESSINGS  -  PROCEDURE PACKS,Musculo-Skeletal,NHS LOGISTICS,1121016036,29,
Department of Health,Salisbury NHS Foundation Trust,15/05/2020,SURGICAL INSTRUMENTS - GENERAL,Musculo-Skeletal,NHS LOGISTICS,1121016036,0.62,
Department of Health,Salisbury NHS Foundation Trust,15/05/2020,DISPOSABLE THEATRE DRAPES WIPES,Musculo-Skeletal,NHS LOGISTICS,1121016036,5.86,
Department of Health,Salisbury NHS Foundation Trust,15/05/2020,OTHER MEDICAL SUPPLIES,Musculo-Skeletal,NHS LOGISTICS,1121016036,7.04,
Department of Health,Salisbury NHS Foundation Trust,15/05/2020,SURGICAL INSTRUMENTS - DISPOSABLE,Clinical Support,NHS LOGISTICS,1121016036,147.9,
Department of Health,Salisbury NHS Foundation Trust,15/05/2020,TISSUES HAND TOWELS & TOILET PAPER,Clinical Support,NHS LOGISTICS,1121016036,2.44,
Department of Health,Salisbury NHS Foundation Trust,15/05/2020,PATIENT APPLIANCES,Surgery,NHS LOGISTICS,1121016036,166,
Department of Health,Salisbury NHS Foundation Trust,15/05/2020,PATIENT APPLIANCES,Medicine,NHS LOGISTICS,1121016036,21,
Department of Health,Salisbury NHS Foundation Trust,15/05/2020,MEDSURGCONS-OTHER,Corporate - Finance & Procurement,NHS LOGISTICS,1121016036,157.5,
Department of Health,Salisbury NHS Foundation Trust,15/05/2020,MEDSURGCONS-OTHER,Corporate - Finance & Procurement,NHS LOGISTICS,1121016036,157.5,
Department of Health,Salisbury NHS Foundation Trust,15/05/2020,MEDSURGCONS-OTHER,Corporate - Finance & Procurement,NHS LOGISTICS,1121016036,157.5,
Department of Health,Salisbury NHS Foundation Trust,15/05/2020,MEDSURGCONS-OTHER,Corporate - Finance & Procurement,NHS LOGISTICS,1121016036,157.5,
Department of Health,Salisbury NHS Foundation Trust,15/05/2020,ADULTS HEARING AIDS,Surgery,NHS LOGISTICS,1121016036,52,
Department of Health,Salisbury NHS Foundation Trust,15/05/2020,ADULTS HEARING AIDS,Surgery,NHS LOGISTICS,1121016036,43.2,
Department of Health,Salisbury NHS Foundation Trust,15/05/2020,OTHER MEDICAL SUPPLIES,Surgery,NHS LOGISTICS,1121016036,43.8,
Department of Health,Salisbury NHS Foundation Trust,15/05/2020,DRESSINGS - PRE STERILE,Medicine,NHS LOGISTICS,1121016036,11.9,
Department of Health,Salisbury NHS Foundation Trust,15/05/2020,DRESSINGS - PRE STERILE,Medicine,NHS LOGISTICS,1121016036,1.3,
Department of Health,Salisbury NHS Foundation Trust,15/05/2020,DRESSINGS - PRE STERILE,Medicine,NHS LOGISTICS,1121016036,0.71,
Department of Health,Salisbury NHS Foundation Trust,15/05/2020,DRESSINGS - PRE STERILE,Medicine,NHS LOGISTICS,1121016036,1.12,
Department of Health,Salisbury NHS Foundation Trust,15/05/2020,SURGICAL INSTRUMENTS - DISPOSABLE,Medicine,NHS LOGISTICS,1121016036,2.25,
Department of Health,Salisbury NHS Foundation Trust,15/05/2020,TOILETRIES PERSONAL HYGIENE PRODUCT,Medicine,NHS LOGISTICS,1121016036,2.88,
Department of Health,Salisbury NHS Foundation Trust,15/05/2020,DRESSINGS - PRE STERILE,Medicine,NHS LOGISTICS,1121016036,7.83,
Department of Health,Salisbury NHS Foundation Trust,15/05/2020,DRESSINGS - PRE STERILE,Medicine,NHS LOGISTICS,1121016036,1.3,
Department of Health,Salisbury NHS Foundation Trust,15/05/2020,TISSUES HAND TOWELS & TOILET PAPER,Clinical Support,NHS LOGISTICS,1121016036,7.32,
Department of Health,Salisbury NHS Foundation Trust,15/05/2020,TISSUES HAND TOWELS & TOILET PAPER,Clinical Support,NHS LOGISTICS,1121016036,21.06,
Department of Health,Salisbury NHS Foundation Trust,15/05/2020,M & S EQUIPELECTEQUIPINST - OTHER,Clinical Support,NHS LOGISTICS,1121016036,118,
Department of Health,Salisbury NHS Foundation Trust,15/05/2020,ANAESTHETIC EQUIPMENT ACCESSORIES,Clinical Support,NHS LOGISTICS,1121016036,1,
Department of Health,Salisbury NHS Foundation Trust,15/05/2020,OTHER MEDICAL SUPPLIES,Medicine,NHS LOGISTICS,1121016036,1.8,
Department of Health,Salisbury NHS Foundation Trust,15/05/2020,OTHER MEDICAL SUPPLIES,Medicine,NHS LOGISTICS,1121016036,6.63,
Department of Health,Salisbury NHS Foundation Trust,15/05/2020,OTHER MEDICAL SUPPLIES,Medicine,NHS LOGISTICS,1121016036,4.25,
Department of Health,Salisbury NHS Foundation Trust,15/05/2020,OTHER MEDICAL SUPPLIES,Medicine,NHS LOGISTICS,1121016036,41,
Department of Health,Salisbury NHS Foundation Trust,15/05/2020,OTHER MEDICAL SUPPLIES,Medicine,NHS LOGISTICS,1121016036,14.24,
Department of Health,Salisbury NHS Foundation Trust,15/05/2020,OTHER MEDICAL SUPPLIES,Medicine,NHS LOGISTICS,1121016036,5.36,
Department of Health,Salisbury NHS Foundation Trust,15/05/2020,OTHER MEDICAL SUPPLIES,Surgery,NHS LOGISTICS,1121016036,23,
Department of Health,Salisbury NHS Foundation Trust,15/05/2020,OTHER MEDICAL SUPPLIES,Surgery,NHS LOGISTICS,1121016036,6.63,
Department of Health,Salisbury NHS Foundation Trust,15/05/2020,DRESSINGS - PRE STERILE,Medicine,NHS LOGISTICS,1121016036,1.36,
Department of Health,Salisbury NHS Foundation Trust,15/05/2020,DRESSINGS - PRE STERILE,Medicine,NHS LOGISTICS,1121016036,1.46,
Department of Health,Salisbury NHS Foundation Trust,15/05/2020,DRESSINGS - PRE STERILE,Medicine,NHS LOGISTICS,1121016036,11.64,
Department of Health,Salisbury NHS Foundation Trust,15/05/2020,DRESSINGS - PRE STERILE,Medicine,NHS LOGISTICS,1121016036,63.05,
Department of Health,Salisbury NHS Foundation Trust,15/05/2020,DRESSINGS - PRE STERILE,Medicine,NHS LOGISTICS,1121016036,5,
Department of Health,Salisbury NHS Foundation Trust,15/05/2020,DRESSINGS - PRE STERILE,Medicine,NHS LOGISTICS,1121016036,35.7,
Department of Health,Salisbury NHS Foundation Trust,15/05/2020,DRESSINGS - PRE STERILE,Medicine,NHS LOGISTICS,1121016036,4.26,
Department of Health,Salisbury NHS Foundation Trust,15/05/2020,DRESSINGS - PRE STERILE,Medicine,NHS LOGISTICS,1121016036,2.04,
Department of Health,Salisbury NHS Foundation Trust,15/05/2020,DRESSINGS - PRE STERILE,Medicine,NHS LOGISTICS,1121016036,5.52,
Department of Health,Salisbury NHS Foundation Trust,15/05/2020,PATIENTS INCONTINENCE,Medicine,NHS LOGISTICS,1121016036,2.36,
Department of Health,Salisbury NHS Foundation Trust,15/05/2020,NON DISPOSABLE BED LINEN,Medicine,NHS LOGISTICS,1121016036,2.82,
Department of Health,Salisbury NHS Foundation Trust,15/05/2020,OTHER MEDICAL SUPPLIES,Clinical Support,NHS LOGISTICS,1121016036,59,
Department of Health,Salisbury NHS Foundation Trust,15/05/2020,M & S EQUIPELECTEQUIPINST - OTHER,Medicine,NHS LOGISTICS,1121016036,199.99,
Department of Health,Salisbury NHS Foundation Trust,15/05/2020,M & S EQUIPELECTEQUIPINST - OTHER,Medicine,NHS LOGISTICS,1121016036,4.75,
Department of Health,Salisbury NHS Foundation Trust,15/05/2020,DRESSINGS - PRE STERILE,Medicine,NHS LOGISTICS,1121016036,0.68,
Department of Health,Salisbury NHS Foundation Trust,15/05/2020,DRESSINGS - PRE STERILE,Medicine,NHS LOGISTICS,1121016036,3.26,
Department of Health,Salisbury NHS Foundation Trust,15/05/2020,DRESSINGS - PRE STERILE,Medicine,NHS LOGISTICS,1121016036,11.9,
Department of Health,Salisbury NHS Foundation Trust,15/05/2020,DRESSINGS - PRE STERILE,Medicine,NHS LOGISTICS,1121016036,4.2,
Department of Health,Salisbury NHS Foundation Trust,15/05/2020,DRESSINGS - PRE STERILE,Medicine,NHS LOGISTICS,1121016036,1.42,
Department of Health,Salisbury NHS Foundation Trust,15/05/2020,DRESSINGS - PRE STERILE,Medicine,NHS LOGISTICS,1121016036,3.6,
Department of Health,Salisbury NHS Foundation Trust,15/05/2020,DRESSINGS - PRE STERILE,Medicine,NHS LOGISTICS,1121016036,3.6,
Department of Health,Salisbury NHS Foundation Trust,15/05/2020,DRESSINGS - PRE STERILE,Medicine,NHS LOGISTICS,1121016036,2.04,
Department of Health,Salisbury NHS Foundation Trust,15/05/2020,DRESSINGS - PRE STERILE,Medicine,NHS LOGISTICS,1121016036,1.72,
Department of Health,Salisbury NHS Foundation Trust,15/05/2020,DRESSINGS - PRE STERILE,Medicine,NHS LOGISTICS,1121016036,3.83,
Department of Health,Salisbury NHS Foundation Trust,15/05/2020,SURGICAL INSTRUMENTS - DISPOSABLE,Medicine,NHS LOGISTICS,1121016036,9,
Department of Health,Salisbury NHS Foundation Trust,15/05/2020,SURGICAL INSTRUMENTS - GENERAL,Surgery,NHS LOGISTICS,1121016036,19,
Department of Health,Salisbury NHS Foundation Trust,15/05/2020,TISSUES HAND TOWELS & TOILET PAPER,Surgery,NHS LOGISTICS,1121016036,2.44,
Department of Health,Salisbury NHS Foundation Trust,15/05/2020,DRESSINGS  -  PROCEDURE PACKS,Surgery,NHS LOGISTICS,1121016036,3.94,
Department of Health,Salisbury NHS Foundation Trust,15/05/2020,DRESSINGS  -  PROCEDURE PACKS,Surgery,NHS LOGISTICS,1121016036,1.4,
Department of Health,Salisbury NHS Foundation Trust,15/05/2020,DRESSINGS  -  PROCEDURE PACKS,Surgery,NHS LOGISTICS,1121016036,6.4,
Department of Health,Salisbury NHS Foundation Trust,15/05/2020,DRESSINGS  -  PROCEDURE PACKS,Surgery,NHS LOGISTICS,1121016036,29,
Department of Health,Salisbury NHS Foundation Trust,15/05/2020,NON DISPOSABLE BED LINEN,Medicine,NHS LOGISTICS,1121016036,5.64,
Department of Health,Salisbury NHS Foundation Trust,15/05/2020,DISPOSABLE THEATRE DRAPES WIPES,Medicine,NHS LOGISTICS,1121016036,3.13,
Department of Health,Salisbury NHS Foundation Trust,15/05/2020,DRESSINGS  -  PROCEDURE PACKS,Facilities,NHS LOGISTICS,1121016036,1.4,
Department of Health,Salisbury NHS Foundation Trust,15/05/2020,SURGICAL INSTRUMENTS - DISPOSABLE,Surgery,NHS LOGISTICS,1121016036,3.8,
Department of Health,Salisbury NHS Foundation Trust,15/05/2020,DRESSINGS - PRE STERILE,Surgery,NHS LOGISTICS,1121016036,39.4,
Department of Health,Salisbury NHS Foundation Trust,15/05/2020,MEDSURGCONS-OTHER,Surgery,NHS LOGISTICS,1121016036,11.85,
Department of Health,Salisbury NHS Foundation Trust,15/05/2020,OTHER MEDICAL SUPPLIES,Surgery,NHS LOGISTICS,1121016036,15.84,
Department of Health,Salisbury NHS Foundation Trust,15/05/2020,DRUGS,Surgery,NHS LOGISTICS,1121016036,6.9,
Department of Health,Salisbury NHS Foundation Trust,15/05/2020,MEDSURGCONS-OTHER,Surgery,NHS LOGISTICS,1121016036,176,
Department of Health,Salisbury NHS Foundation Trust,15/05/2020,MEDSURGCONS-OTHER,Surgery,NHS LOGISTICS,1121016036,6.16,
Department of Health,Salisbury NHS Foundation Trust,15/05/2020,DRESSINGS - PRE STERILE,Surgery,NHS LOGISTICS,1121016036,4.35,
Department of Health,Salisbury NHS Foundation Trust,15/05/2020,MEDSURGCONS-OTHER,Surgery,NHS LOGISTICS,1121016036,15.77,
Department of Health,Salisbury NHS Foundation Trust,15/05/2020,DISPOSABLE THEATRE DRAPES WIPES,Surgery,NHS LOGISTICS,1121016036,10.5,
Department of Health,Salisbury NHS Foundation Trust,15/05/2020,MEDSURGCONS-OTHER,Medicine,NHS LOGISTICS,1121016036,25,
Department of Health,Salisbury NHS Foundation Trust,15/05/2020,MEDSURGCONS-OTHER,Medicine,NHS LOGISTICS,1121016036,25,
Department of Health,Salisbury NHS Foundation Trust,15/05/2020,MEDSURGCONS-OTHER,Medicine,NHS LOGISTICS,1121016036,185,
Department of Health,Salisbury NHS Foundation Trust,15/05/2020,MEDSURGCONS-OTHER,Medicine,NHS LOGISTICS,1121016036,70,
Department of Health,Salisbury NHS Foundation Trust,15/05/2020,MEDSURGCONS-OTHER,Medicine,NHS LOGISTICS,1121016036,21,
Department of Health,Salisbury NHS Foundation Trust,15/05/2020,OTHER MEDICAL SUPPLIES,Clinical Support,NHS LOGISTICS,1121016036,3.58,
Department of Health,Salisbury NHS Foundation Trust,15/05/2020,MEDSURGCONS-OTHER,Medicine,NHS LOGISTICS,1121016036,3.38,
Department of Health,Salisbury NHS Foundation Trust,15/05/2020,ANAESTHETIC EQUIPMENT ACCESSORIES,Medicine,NHS LOGISTICS,1121016036,1.44,
Department of Health,Salisbury NHS Foundation Trust,15/05/2020,MEDSURGCONS-OTHER,Medicine,NHS LOGISTICS,1121016036,1.55,
Department of Health,Salisbury NHS Foundation Trust,15/05/2020,PATIENT APPLIANCES,Medicine,NHS LOGISTICS,1121016036,12.6,
Department of Health,Salisbury NHS Foundation Trust,15/05/2020,MEDSURGCONS-OTHER,Medicine,NHS LOGISTICS,1121016036,0.2,
Department of Health,Salisbury NHS Foundation Trust,15/05/2020,MEDSURGCONS-OTHER,Medicine,NHS LOGISTICS,1121016036,0.16,
Department of Health,Salisbury NHS Foundation Trust,15/05/2020,DRESSINGS - PRE STERILE,Medicine,NHS LOGISTICS,1121016036,3.82,
Department of Health,Salisbury NHS Foundation Trust,15/05/2020,DRESSINGS - PRE STERILE,Medicine,NHS LOGISTICS,1121016036,1.3,
Department of Health,Salisbury NHS Foundation Trust,15/05/2020,DRESSINGS - PRE STERILE,Medicine,NHS LOGISTICS,1121016036,0.71,
Department of Health,Salisbury NHS Foundation Trust,15/05/2020,ANAESTHETIC EQUIPMENT ACCESSORIES,Medicine,NHS LOGISTICS,1121016036,4.8,
Department of Health,Salisbury NHS Foundation Trust,15/05/2020,DRESSINGS  -  PROCEDURE PACKS,Medicine,NHS LOGISTICS,1121016036,1.75,
Department of Health,Salisbury NHS Foundation Trust,15/05/2020,SURGICAL INSTRUMENTS - DISPOSABLE,Medicine,NHS LOGISTICS,1121016036,6.75,
Department of Health,Salisbury NHS Foundation Trust,15/05/2020,PATIENT APPLIANCES,Medicine,NHS LOGISTICS,1121016036,4,
Department of Health,Salisbury NHS Foundation Trust,15/05/2020,PATIENT APPLIANCES,Medicine,NHS LOGISTICS,1121016036,4,
Department of Health,Salisbury NHS Foundation Trust,15/05/2020,DRESSINGS - PRE STERILE,Medicine,NHS LOGISTICS,1121016036,2.04,
Department of Health,Salisbury NHS Foundation Trust,15/05/2020,TISSUES HAND TOWELS & TOILET PAPER,Medicine,NHS LOGISTICS,1121016036,0.6,
Department of Health,Salisbury NHS Foundation Trust,15/05/2020,DRESSINGS - PRE STERILE,Medicine,NHS LOGISTICS,1121016036,3.83,
Department of Health,Salisbury NHS Foundation Trust,15/05/2020,DISPOSABLE THEATRE DRAPES WIPES,Medicine,NHS LOGISTICS,1121016036,2.93,
Department of Health,Salisbury NHS Foundation Trust,15/05/2020,ELECTRICAL EQUIPMENT,Musculo-Skeletal,NHS LOGISTICS,1121016036,5.92,
Department of Health,Salisbury NHS Foundation Trust,15/05/2020,TOILETRIES PERSONAL HYGIENE PRODUCT,Corporate - Finance & Procurement,NHS LOGISTICS,1121016036,13.4,
Department of Health,Salisbury NHS Foundation Trust,15/05/2020,TOILETRIES PERSONAL HYGIENE PRODUCT,Corporate - Finance & Procurement,NHS LOGISTICS,1121016036,309.12,
Department of Health,Salisbury NHS Foundation Trust,15/05/2020,TOILETRIES PERSONAL HYGIENE PRODUCT,Medicine,NHS LOGISTICS,1121016036,51.52,
Department of Health,Salisbury NHS Foundation Trust,15/05/2020,TOILETRIES PERSONAL HYGIENE PRODUCT,Medicine,NHS LOGISTICS,1121016036,51.52,
Department of Health,Salisbury NHS Foundation Trust,15/05/2020,TOILETRIES PERSONAL HYGIENE PRODUCT,Surgery,NHS LOGISTICS,1121016036,51.52,
Department of Health,Salisbury NHS Foundation Trust,15/05/2020,TOILETRIES PERSONAL HYGIENE PRODUCT,Medicine,NHS LOGISTICS,1121016036,51.52,
Department of Health,Salisbury NHS Foundation Trust,15/05/2020,TOILETRIES PERSONAL HYGIENE PRODUCT,Medicine,NHS LOGISTICS,1121016036,51.52,
Department of Health,Salisbury NHS Foundation Trust,15/05/2020,TOILETRIES PERSONAL HYGIENE PRODUCT,Medicine,NHS LOGISTICS,1121016036,51.52,
Department of Health,Salisbury NHS Foundation Trust,15/05/2020,TOILETRIES PERSONAL HYGIENE PRODUCT,Surgery,NHS LOGISTICS,1121016036,51.52,
Department of Health,Salisbury NHS Foundation Trust,15/05/2020,TOILETRIES PERSONAL HYGIENE PRODUCT,Surgery,NHS LOGISTICS,1121016036,51.52,
Department of Health,Salisbury NHS Foundation Trust,15/05/2020,DISPOSABLE THEATRE DRAPES WIPES,Corporate - Finance & Procurement,NHS LOGISTICS,1121016036,5.88,
Department of Health,Salisbury NHS Foundation Trust,15/05/2020,DISPOSABLE THEATRE DRAPES WIPES,Corporate - Finance & Procurement,NHS LOGISTICS,1121016036,30.08,
Department of Health,Salisbury NHS Foundation Trust,15/05/2020,PATIENTS INCONTINENCE,Medicine,NHS LOGISTICS,1121016036,13.12,
Department of Health,Salisbury NHS Foundation Trust,15/05/2020,PATIENTS INCONTINENCE,Medicine,NHS LOGISTICS,1121016036,2.29,
Department of Health,Salisbury NHS Foundation Trust,15/05/2020,PATIENTS INCONTINENCE,Medicine,NHS LOGISTICS,1121016036,2.36,
Department of Health,Salisbury NHS Foundation Trust,15/05/2020,MEDSURGCONS-OTHER,Medicine,NHS LOGISTICS,1121016036,10.14,
Department of Health,Salisbury NHS Foundation Trust,15/05/2020,DRESSINGS  -  PROCEDURE PACKS,Medicine,NHS LOGISTICS,1121016036,6.4,
Department of Health,Salisbury NHS Foundation Trust,15/05/2020,PATIENTS INCONTINENCE,Medicine,NHS LOGISTICS,1121016036,5.08,
Department of Health,Salisbury NHS Foundation Trust,15/05/2020,MEDSURGCONS-OTHER,Medicine,NHS LOGISTICS,1121016036,6.4,
Department of Health,Salisbury NHS Foundation Trust,15/05/2020,MEDSURGCONS-OTHER,Medicine,NHS LOGISTICS,1121016036,1.55,
Department of Health,Salisbury NHS Foundation Trust,15/05/2020,NON DISPOSABLE BED LINEN,Medicine,NHS LOGISTICS,1121016036,5.25,
Department of Health,Salisbury NHS Foundation Trust,15/05/2020,NON DISPOSABLE BED LINEN,Medicine,NHS LOGISTICS,1121016036,5.64,
Department of Health,Salisbury NHS Foundation Trust,15/05/2020,DISPOSABLE THEATRE DRAPES WIPES,Medicine,NHS LOGISTICS,1121016036,5.86,
Department of Health,Salisbury NHS Foundation Trust,15/05/2020,DRESSINGS - PRE STERILE,Musculo-Skeletal,NHS LOGISTICS,1121016036,8.17,
Department of Health,Salisbury NHS Foundation Trust,15/05/2020,DRESSINGS - PRE STERILE,Musculo-Skeletal,NHS LOGISTICS,1121016036,11.64,
Department of Health,Salisbury NHS Foundation Trust,15/05/2020,DRESSINGS - PRE STERILE,Musculo-Skeletal,NHS LOGISTICS,1121016036,5.83,
Department of Health,Salisbury NHS Foundation Trust,15/05/2020,DRESSINGS - PRE STERILE,Musculo-Skeletal,NHS LOGISTICS,1121016036,16.8,
Department of Health,Salisbury NHS Foundation Trust,15/05/2020,TOILETRIES PERSONAL HYGIENE PRODUCT,Corporate - Finance & Procurement,NHS LOGISTICS,1121016036,49.92,
Department of Health,Salisbury NHS Foundation Trust,15/05/2020,BAGS SACKS - OTHER,Musculo-Skeletal,NHS LOGISTICS,1121016036,2,
Department of Health,Salisbury NHS Foundation Trust,15/05/2020,MEDSURGCONS-OTHER,Musculo-Skeletal,NHS LOGISTICS,1121016036,5.43,
Department of Health,Salisbury NHS Foundation Trust,15/05/2020,MEDSURGCONS-OTHER,Musculo-Skeletal,NHS LOGISTICS,1121016036,6.4,
Department of Health,Salisbury NHS Foundation Trust,15/05/2020,TISSUES HAND TOWELS & TOILET PAPER,Medicine,NHS LOGISTICS,1121016036,0.6,
Department of Health,Salisbury NHS Foundation Trust,15/05/2020,DRESSINGS - PRE STERILE,Musculo-Skeletal,NHS LOGISTICS,1121016036,237.6,
Department of Health,Salisbury NHS Foundation Trust,15/05/2020,DRESSINGS - PRE STERILE,Musculo-Skeletal,NHS LOGISTICS,1121016036,89,
Department of Health,Salisbury NHS Foundation Trust,15/05/2020,OTHER MEDICAL SUPPLIES,Musculo-Skeletal,NHS LOGISTICS,1121016036,45.54,
Department of Health,Salisbury NHS Foundation Trust,15/05/2020,OTHER MEDICAL SUPPLIES,Musculo-Skeletal,NHS LOGISTICS,1121016036,41,
Department of Health,Salisbury NHS Foundation Trust,15/05/2020,M & S EQUIPELECTEQUIPINST - OTHER,Musculo-Skeletal,NHS LOGISTICS,1121016036,12.52,
Department of Health,Salisbury NHS Foundation Trust,15/05/2020,MEDSURGCONS-OTHER,Musculo-Skeletal,NHS LOGISTICS,1121016036,10.14,
Department of Health,Salisbury NHS Foundation Trust,15/05/2020,MEDSURGCONS-OTHER,Musculo-Skeletal,NHS LOGISTICS,1121016036,5.43,
Department of Health,Salisbury NHS Foundation Trust,15/05/2020,DRESSINGS  -  PROCEDURE PACKS,Musculo-Skeletal,NHS LOGISTICS,1121016036,6.4,
Department of Health,Salisbury NHS Foundation Trust,15/05/2020,DRESSINGS  -  PROCEDURE PACKS,Musculo-Skeletal,NHS LOGISTICS,1121016036,14.5,
Department of Health,Salisbury NHS Foundation Trust,15/05/2020,TOILETRIES PERSONAL HYGIENE PRODUCT,Musculo-Skeletal,NHS LOGISTICS,1121016036,1.77,
Department of Health,Salisbury NHS Foundation Trust,15/05/2020,PATIENTS INCONTINENCE,Musculo-Skeletal,NHS LOGISTICS,1121016036,20.32,
Department of Health,Salisbury NHS Foundation Trust,15/05/2020,TOILETRIES PERSONAL HYGIENE PRODUCT,Musculo-Skeletal,NHS LOGISTICS,1121016036,4.86,
Department of Health,Salisbury NHS Foundation Trust,15/05/2020,MEDSURGCONS-OTHER,Musculo-Skeletal,NHS LOGISTICS,1121016036,3.53,
Department of Health,Salisbury NHS Foundation Trust,15/05/2020,M & S EQUIPELECTEQUIPINST - OTHER,Musculo-Skeletal,NHS LOGISTICS,1121016036,2.84,
Department of Health,Salisbury NHS Foundation Trust,15/05/2020,TOILETRIES PERSONAL HYGIENE PRODUCT,Musculo-Skeletal,NHS LOGISTICS,1121016036,24.96,
Department of Health,Salisbury NHS Foundation Trust,15/05/2020,DRESSINGS - PRE STERILE,Musculo-Skeletal,NHS LOGISTICS,1121016036,1.59,
Department of Health,Salisbury NHS Foundation Trust,15/05/2020,DRESSINGS  -  PROCEDURE PACKS,Musculo-Skeletal,NHS LOGISTICS,1121016036,14.5,
Department of Health,Salisbury NHS Foundation Trust,15/05/2020,MEDSURGCONS-OTHER,Musculo-Skeletal,NHS LOGISTICS,1121016036,5,
Department of Health,Salisbury NHS Foundation Trust,15/05/2020,OTHER MEDICAL SUPPLIES,Musculo-Skeletal,NHS LOGISTICS,1121016036,7.12,
Department of Health,Salisbury NHS Foundation Trust,15/05/2020,TOILETRIES PERSONAL HYGIENE PRODUCT,Musculo-Skeletal,NHS LOGISTICS,1121016036,3.26,
Department of Health,Salisbury NHS Foundation Trust,15/05/2020,DRESSINGS - PRE STERILE,Medicine,NHS LOGISTICS,1121016036,1.45,
Department of Health,Salisbury NHS Foundation Trust,15/05/2020,DRESSINGS - PRE STERILE,Medicine,NHS LOGISTICS,1121016036,2.29,
Department of Health,Salisbury NHS Foundation Trust,15/05/2020,MEDSURGCONS-OTHER,Medicine,NHS LOGISTICS,1121016036,6.4,
Department of Health,Salisbury NHS Foundation Trust,15/05/2020,MEDSURGCONS-OTHER,Medicine,NHS LOGISTICS,1121016036,0.78,
Department of Health,Salisbury NHS Foundation Trust,15/05/2020,OTHER MEDICAL SUPPLIES,Medicine,NHS LOGISTICS,1121016036,22.4,
Department of Health,Salisbury NHS Foundation Trust,15/05/2020,MEDSURGCONS-OTHER,Medicine,NHS LOGISTICS,1121016036,4.55,
Department of Health,Salisbury NHS Foundation Trust,15/05/2020,OTHER MEDICAL SUPPLIES,Medicine,NHS LOGISTICS,1121016036,6.63,
Department of Health,Salisbury NHS Foundation Trust,15/05/2020,DISPOSABLE THEATRE DRAPES WIPES,Medicine,NHS LOGISTICS,1121016036,2.93,
Department of Health,Salisbury NHS Foundation Trust,15/05/2020,MEDSURGCONS-OTHER,Musculo-Skeletal,NHS LOGISTICS,1121016036,78.76,
Department of Health,Salisbury NHS Foundation Trust,15/05/2020,MEDSURGCONS-OTHER,Facilities,NHS LOGISTICS,1121016036,10.14,
Department of Health,Salisbury NHS Foundation Trust,15/05/2020,MEDSURGCONS-OTHER,Facilities,NHS LOGISTICS,1121016036,1.3,
Department of Health,Salisbury NHS Foundation Trust,15/05/2020,ANAESTHETIC EQUIPMENT ACCESSORIES,Facilities,NHS LOGISTICS,1121016036,9.6,
Department of Health,Salisbury NHS Foundation Trust,15/05/2020,MEDSURGCONS-OTHER,Facilities,NHS LOGISTICS,1121016036,9.6,
Department of Health,Salisbury NHS Foundation Trust,15/05/2020,MEDSURGCONS-OTHER,Facilities,NHS LOGISTICS,1121016036,5.95,
Department of Health,Salisbury NHS Foundation Trust,15/05/2020,M & S EQUIPELECTEQUIPINST - OTHER,Musculo-Skeletal,NHS LOGISTICS,1121016036,74,
Department of Health,Salisbury NHS Foundation Trust,15/05/2020,DRESSINGS - PRE STERILE,Medicine,NHS LOGISTICS,1121016036,120,
Department of Health,Salisbury NHS Foundation Trust,15/05/2020,TOILETRIES PERSONAL HYGIENE PRODUCT,Medicine,NHS LOGISTICS,1121016036,6.7,
Department of Health,Salisbury NHS Foundation Trust,15/05/2020,CLEANING MATERIAL PRODUCTS SUNDRIES,Medicine,NHS LOGISTICS,1121016036,6.6,
Department of Health,Salisbury NHS Foundation Trust,15/05/2020,MEDSURGCONS-OTHER,Medicine,NHS LOGISTICS,1121016036,26.6,
Department of Health,Salisbury NHS Foundation Trust,15/05/2020,MEDSURGCONS-OTHER,Medicine,NHS LOGISTICS,1121016036,3.38,
Department of Health,Salisbury NHS Foundation Trust,15/05/2020,DRESSINGS - PRE STERILE,Medicine,NHS LOGISTICS,1121016036,1.42,
Department of Health,Salisbury NHS Foundation Trust,15/05/2020,MEDSURGCONS-OTHER,Medicine,NHS LOGISTICS,1121016036,10,
Department of Health,Salisbury NHS Foundation Trust,15/05/2020,MEDSURGCONS-OTHER,Medicine,NHS LOGISTICS,1121016036,10.2,
Department of Health,Salisbury NHS Foundation Trust,15/05/2020,DRESSINGS - PRE STERILE,Clinical Support,NHS LOGISTICS,1121016036,97,
Department of Health,Salisbury NHS Foundation Trust,15/05/2020,DRESSINGS - PRE STERILE,Clinical Support,NHS LOGISTICS,1121016036,69.99,
Department of Health,Salisbury NHS Foundation Trust,15/05/2020,OTHER MEDICAL SUPPLIES,Clinical Support,NHS LOGISTICS,1121016036,5.3,
Department of Health,Salisbury NHS Foundation Trust,15/05/2020,OTHER MEDICAL SUPPLIES,Clinical Support,NHS LOGISTICS,1121016036,10.6,
Department of Health,Salisbury NHS Foundation Trust,15/05/2020,DRESSINGS - PRE STERILE,Surgery,NHS LOGISTICS,1121016036,97,
Department of Health,Salisbury NHS Foundation Trust,15/05/2020,DRESSINGS - PRE STERILE,Surgery,NHS LOGISTICS,1121016036,139.98,
Department of Health,Salisbury NHS Foundation Trust,15/05/2020,MEDSURGCONS-SUTURES,Surgery,NHS LOGISTICS,1121016036,122.89,
Department of Health,Salisbury NHS Foundation Trust,15/05/2020,MEDSURGCONS-SUTURES,Surgery,NHS LOGISTICS,1121016036,45.83,
Department of Health,Salisbury NHS Foundation Trust,15/05/2020,BAGS SACKS - OTHER,Surgery,NHS LOGISTICS,1121016036,11.45,
Department of Health,Salisbury NHS Foundation Trust,15/05/2020,BEVERAGES & AMBIENT FOOD,Surgery,NHS LOGISTICS,1121016036,14.06,
Department of Health,Salisbury NHS Foundation Trust,15/05/2020,DISPOSABLE THEATRE DRAPES WIPES,Surgery,NHS LOGISTICS,1121016036,34.65,
Department of Health,Salisbury NHS Foundation Trust,15/05/2020,MEDSURGCONS-SUTURES,Surgery,NHS LOGISTICS,1121016036,54.96,
Department of Health,Salisbury NHS Foundation Trust,15/05/2020,BEVERAGES & AMBIENT FOOD,Surgery,NHS LOGISTICS,1121016036,2.28,
Department of Health,Salisbury NHS Foundation Trust,15/05/2020,MEDSURGCONS-OTHER,Surgery,NHS LOGISTICS,1121016036,236.28,
Department of Health,Salisbury NHS Foundation Trust,15/05/2020,MEDSURGCONS-OTHER,Surgery,NHS LOGISTICS,1121016036,70.5,
Department of Health,Salisbury NHS Foundation Trust,15/05/2020,MEDSURGCONS-SUTURES,Surgery,NHS LOGISTICS,1121016036,43.42,
Department of Health,Salisbury NHS Foundation Trust,15/05/2020,MEDSURGCONS-SUTURES,Surgery,NHS LOGISTICS,1121016036,27.67,
Department of Health,Salisbury NHS Foundation Trust,15/05/2020,MEDSURGCONS-SUTURES,Surgery,NHS LOGISTICS,1121016036,126.81,
Department of Health,Salisbury NHS Foundation Trust,15/05/2020,MEDSURGCONS-SUTURES,Surgery,NHS LOGISTICS,1121016036,44.4,
Department of Health,Salisbury NHS Foundation Trust,15/05/2020,MEDSURGCONS-SUTURES,Surgery,NHS LOGISTICS,1121016036,21.6,
Department of Health,Salisbury NHS Foundation Trust,15/05/2020,BEVERAGES & AMBIENT FOOD,Surgery,NHS LOGISTICS,1121016036,5.76,
Department of Health,Salisbury NHS Foundation Trust,15/05/2020,NON DISPOSABLE BED LINEN,Surgery,NHS LOGISTICS,1121016036,22.56,
Department of Health,Salisbury NHS Foundation Trust,15/05/2020,CLEANING MATERIAL PRODUCTS SUNDRIES,Surgery,NHS LOGISTICS,1121016036,1.96,
Department of Health,Salisbury NHS Foundation Trust,15/05/2020,MEDSURGCONS-OTHER,Clinical Support,NHS LOGISTICS,1121016036,61,
Department of Health,Salisbury NHS Foundation Trust,15/05/2020,DRESSINGS - PRE STERILE,Clinical Support,NHS LOGISTICS,1121016036,5.86,
Department of Health,Salisbury NHS Foundation Trust,15/05/2020,TOILETRIES PERSONAL HYGIENE PRODUCT,Corporate - Finance & Procurement,NHS LOGISTICS,1121016036,13.4,
Department of Health,Salisbury NHS Foundation Trust,15/05/2020,TOILETRIES PERSONAL HYGIENE PRODUCT,Corporate - Finance & Procurement,NHS LOGISTICS,1121016036,309.12,
Department of Health,Salisbury NHS Foundation Trust,15/05/2020,OTHER MEDICAL SUPPLIES,Surgery,NHS LOGISTICS,1121016036,3.58,
Department of Health,Salisbury NHS Foundation Trust,15/05/2020,OTHER MEDICAL SUPPLIES,Musculo-Skeletal,NHS LOGISTICS,1121016036,41,
Department of Health,Salisbury NHS Foundation Trust,15/05/2020,MEDSURGCONS-OTHER,Musculo-Skeletal,NHS LOGISTICS,1121016036,7.94,
Department of Health,Salisbury NHS Foundation Trust,15/05/2020,DRESSINGS  -  PROCEDURE PACKS,Musculo-Skeletal,NHS LOGISTICS,1121016036,0.4,
Department of Health,Salisbury NHS Foundation Trust,15/05/2020,MEDSURGCONS-OTHER,Musculo-Skeletal,NHS LOGISTICS,1121016036,3.38,
Department of Health,Salisbury NHS Foundation Trust,15/05/2020,MEDSURGCONS-OTHER,Musculo-Skeletal,NHS LOGISTICS,1121016036,12.76,
Department of Health,Salisbury NHS Foundation Trust,15/05/2020,MEDSURGCONS-OTHER,Musculo-Skeletal,NHS LOGISTICS,1121016036,5.43,
Department of Health,Salisbury NHS Foundation Trust,15/05/2020,DRESSINGS  -  PROCEDURE PACKS,Musculo-Skeletal,NHS LOGISTICS,1121016036,1.4,
Department of Health,Salisbury NHS Foundation Trust,15/05/2020,OTHER MEDICAL SUPPLIES,Musculo-Skeletal,NHS LOGISTICS,1121016036,2.68,
Department of Health,Salisbury NHS Foundation Trust,15/05/2020,MEDSURGCONS-OTHER,Musculo-Skeletal,NHS LOGISTICS,1121016036,0.78,
Department of Health,Salisbury NHS Foundation Trust,15/05/2020,M & S EQUIPELECTEQUIPINST - OTHER,Musculo-Skeletal,NHS LOGISTICS,1121016036,20.28,
Department of Health,Salisbury NHS Foundation Trust,15/05/2020,MEDSURGCONS-OTHER,Musculo-Skeletal,NHS LOGISTICS,1121016036,35.2,
Department of Health,Salisbury NHS Foundation Trust,15/05/2020,MEDSURGCONS-OTHER,Musculo-Skeletal,NHS LOGISTICS,1121016036,7.15,
Department of Health,Salisbury NHS Foundation Trust,15/05/2020,DRESSINGS  -  PROCEDURE PACKS,Musculo-Skeletal,NHS LOGISTICS,1121016036,14.5,
Department of Health,Salisbury NHS Foundation Trust,15/05/2020,MEDSURGCONS-OTHER,Musculo-Skeletal,NHS LOGISTICS,1121016036,25.56,
Department of Health,Salisbury NHS Foundation Trust,15/05/2020,PATIENT APPLIANCES,Musculo-Skeletal,NHS LOGISTICS,1121016036,35.4,
Department of Health,Salisbury NHS Foundation Trust,15/05/2020,DISPOSABLE THEATRE DRAPES WIPES,Musculo-Skeletal,NHS LOGISTICS,1121016036,11.72,
Department of Health,Salisbury NHS Foundation Trust,15/05/2020,DRESSINGS - PRE STERILE,Surgery,NHS LOGISTICS,1121016036,11.9,
Department of Health,Salisbury NHS Foundation Trust,15/05/2020,DRESSINGS - PRE STERILE,Surgery,NHS LOGISTICS,1121016036,4.8,
Department of Health,Salisbury NHS Foundation Trust,15/05/2020,DRESSINGS - PRE STERILE,Surgery,NHS LOGISTICS,1121016036,1.45,
Department of Health,Salisbury NHS Foundation Trust,15/05/2020,DRESSINGS - PRE STERILE,Surgery,NHS LOGISTICS,1121016036,6.14,
Department of Health,Salisbury NHS Foundation Trust,15/05/2020,M & S EQUIPELECTEQUIPINST - OTHER,Surgery,NHS LOGISTICS,1121016036,4.75,
Department of Health,Salisbury NHS Foundation Trust,15/05/2020,ANAESTHETIC EQUIPMENT ACCESSORIES,Surgery,NHS LOGISTICS,1121016036,2.4,
Department of Health,Salisbury NHS Foundation Trust,15/05/2020,SURGICAL INSTRUMENTS - DISPOSABLE,Surgery,NHS LOGISTICS,1121016036,4.5,
Department of Health,Salisbury NHS Foundation Trust,15/05/2020,MEDSURGCONS-OTHER,Surgery,NHS LOGISTICS,1121016036,55,
Department of Health,Salisbury NHS Foundation Trust,15/05/2020,DISPOSABLE THEATRE DRAPES WIPES,Surgery,NHS LOGISTICS,1121016036,5.86,
Department of Health,Salisbury NHS Foundation Trust,15/05/2020,OTHER MEDICAL SUPPLIES,Surgery,NHS LOGISTICS,1121016036,9,
Department of Health,Salisbury NHS Foundation Trust,15/05/2020,MEDSURGCONS-OTHER,Surgery,NHS LOGISTICS,1121016036,237.2,
Department of Health,Salisbury NHS Foundation Trust,15/05/2020,HEALTHCARE - WEAR,Surgery,NHS LOGISTICS,1121016036,39.5,
Department of Health,Salisbury NHS Foundation Trust,15/05/2020,HEALTHCARE - WEAR,Surgery,NHS LOGISTICS,1121016036,39.5,
Department of Health,Salisbury NHS Foundation Trust,15/05/2020,HEALTHCARE - WEAR,Surgery,NHS LOGISTICS,1121016036,12.5,
Department of Health,Salisbury NHS Foundation Trust,15/05/2020,HEALTHCARE - WEAR,Surgery,NHS LOGISTICS,1121016036,12.5,
Department of Health,Salisbury NHS Foundation Trust,15/05/2020,HEALTHCARE - WEAR,Surgery,NHS LOGISTICS,1121016036,12.5,
Department of Health,Salisbury NHS Foundation Trust,15/05/2020,HEALTHCARE - WEAR,Surgery,NHS LOGISTICS,1121016036,12.5,
Department of Health,Salisbury NHS Foundation Trust,15/05/2020,MEDSURGCONS-OTHER,Surgery,NHS LOGISTICS,1121016036,15,
Department of Health,Salisbury NHS Foundation Trust,15/05/2020,MEDSURGCONS-OTHER,Surgery,NHS LOGISTICS,1121016036,15.3,
Department of Health,Salisbury NHS Foundation Trust,15/05/2020,MEDSURGCONS-OTHER,Surgery,NHS LOGISTICS,1121016036,7.78,
Department of Health,Salisbury NHS Foundation Trust,15/05/2020,MEDSURGCONS-OTHER,Surgery,NHS LOGISTICS,1121016036,143.5,
Department of Health,Salisbury NHS Foundation Trust,15/05/2020,MEDSURGCONS-OTHER,Clinical Support,NHS LOGISTICS,1121016036,3.06,
Department of Health,Salisbury NHS Foundation Trust,15/05/2020,OTHER MEDICAL SUPPLIES,Clinical Support,NHS LOGISTICS,1121016036,3.58,
Department of Health,Salisbury NHS Foundation Trust,15/05/2020,MED SURG EQUIP REP MAINT CLEANING,Medicine,NHS LOGISTICS,1121016036,83.5,
Department of Health,Salisbury NHS Foundation Trust,15/05/2020,TOILETRIES PERSONAL HYGIENE PRODUCT,Medicine,NHS LOGISTICS,1121016036,1.77,
Department of Health,Salisbury NHS Foundation Trust,15/05/2020,PATIENTS INCONTINENCE,Medicine,NHS LOGISTICS,1121016036,5.08,
Department of Health,Salisbury NHS Foundation Trust,15/05/2020,MEDSURGCONS-OTHER,Medicine,NHS LOGISTICS,1121016036,0.4,
Department of Health,Salisbury NHS Foundation Trust,15/05/2020,MEDSURGCONS-OTHER,Medicine,NHS LOGISTICS,1121016036,3.57,
Department of Health,Salisbury NHS Foundation Trust,15/05/2020,DRESSINGS - PRE STERILE,Clinical Support,NHS LOGISTICS,1121016036,11.9,
Department of Health,Salisbury NHS Foundation Trust,15/05/2020,DRESSINGS - PRE STERILE,Clinical Support,NHS LOGISTICS,1121016036,29.99,
Department of Health,Salisbury NHS Foundation Trust,15/05/2020,SURGICAL INSTRUMENTS - GENERAL,Clinical Support,NHS LOGISTICS,1121016036,34.3,
Department of Health,Salisbury NHS Foundation Trust,15/05/2020,OTHER MEDICAL SUPPLIES,Clinical Support,NHS LOGISTICS,1121016036,20.7,
Department of Health,Salisbury NHS Foundation Trust,15/05/2020,TISSUES HAND TOWELS & TOILET PAPER,Clinical Support,NHS LOGISTICS,1121016036,3,
Department of Health,Salisbury NHS Foundation Trust,15/05/2020,OTHER MEDICAL SUPPLIES,Clinical Support,NHS LOGISTICS,1121016036,6.63,
Department of Health,Salisbury NHS Foundation Trust,15/05/2020,MEDSURGCONS-OTHER,Clinical Support,NHS LOGISTICS,1121016036,10.4,
Department of Health,Salisbury NHS Foundation Trust,15/05/2020,MEDSURGCONS-SUTURES,Medicine,NHS LOGISTICS,1121016036,61.44,
Department of Health,Salisbury NHS Foundation Trust,15/05/2020,DRESSINGS - PRE STERILE,Medicine,NHS LOGISTICS,1121016036,0.68,
Department of Health,Salisbury NHS Foundation Trust,15/05/2020,DRESSINGS - PRE STERILE,Medicine,NHS LOGISTICS,1121016036,2.21,
Department of Health,Salisbury NHS Foundation Trust,15/05/2020,OTHER MEDICAL SUPPLIES,Medicine,NHS LOGISTICS,1121016036,29.5,
Department of Health,Salisbury NHS Foundation Trust,15/05/2020,MEDSURGCONS-OTHER,Medicine,NHS LOGISTICS,1121016036,41.5,
Department of Health,Salisbury NHS Foundation Trust,15/05/2020,MEDSURGCONS-OTHER,Medicine,NHS LOGISTICS,1121016036,2.8,
Department of Health,Salisbury NHS Foundation Trust,15/05/2020,M & S EQUIPELECTEQUIPINST - OTHER,Medicine,NHS LOGISTICS,1121016036,5.1,
Department of Health,Salisbury NHS Foundation Trust,15/05/2020,MEDSURGCONS-OTHER,Medicine,NHS LOGISTICS,1121016036,26.65,
Department of Health,Salisbury NHS Foundation Trust,15/05/2020,MEDSURGCONS-OTHER,Medicine,NHS LOGISTICS,1121016036,44.9,
Department of Health,Salisbury NHS Foundation Trust,15/05/2020,MEDSURGCONS-OTHER,Medicine,NHS LOGISTICS,1121016036,3.38,
Department of Health,Salisbury NHS Foundation Trust,15/05/2020,DRESSINGS - PRE STERILE,Medicine,NHS LOGISTICS,1121016036,2.84,
Department of Health,Salisbury NHS Foundation Trust,15/05/2020,OTHER MEDICAL SUPPLIES,Medicine,NHS LOGISTICS,1121016036,2.8,
Department of Health,Salisbury NHS Foundation Trust,15/05/2020,DRESSINGS  -  PROCEDURE PACKS,Medicine,NHS LOGISTICS,1121016036,5.25,
Department of Health,Salisbury NHS Foundation Trust,15/05/2020,M & S EQUIPELECTEQUIPINST - OTHER,Medicine,NHS LOGISTICS,1121016036,9.3,
Department of Health,Salisbury NHS Foundation Trust,15/05/2020,MEDSURGCONS-OTHER,Medicine,NHS LOGISTICS,1121016036,5,
Department of Health,Salisbury NHS Foundation Trust,15/05/2020,MEDSURGCONS-OTHER,Medicine,NHS LOGISTICS,1121016036,46,
Department of Health,Salisbury NHS Foundation Trust,15/05/2020,OTHER MEDICAL SUPPLIES,Medicine,NHS LOGISTICS,1121016036,1.34,
Department of Health,Salisbury NHS Foundation Trust,15/05/2020,OTHER MEDICAL SUPPLIES,Medicine,NHS LOGISTICS,1121016036,7.16,
Department of Health,Salisbury NHS Foundation Trust,15/05/2020,DRESSINGS - PRE STERILE,Medicine,NHS LOGISTICS,1121016036,2.04,
Department of Health,Salisbury NHS Foundation Trust,15/05/2020,MEDSURGCONS-SUTURES,Medicine,NHS LOGISTICS,1121016036,93.7,
Department of Health,Salisbury NHS Foundation Trust,15/05/2020,MEDSURGCONS-SUTURES,Medicine,NHS LOGISTICS,1121016036,63,
Department of Health,Salisbury NHS Foundation Trust,15/05/2020,DRESSINGS - PRE STERILE,Medicine,NHS LOGISTICS,1121016036,2.76,
Department of Health,Salisbury NHS Foundation Trust,15/05/2020,MEDSURGCONS-OTHER,Medicine,NHS LOGISTICS,1121016036,12.8,
Department of Health,Salisbury NHS Foundation Trust,15/05/2020,MEDSURGCONS-OTHER,Medicine,NHS LOGISTICS,1121016036,6.2,
Department of Health,Salisbury NHS Foundation Trust,15/05/2020,MEDSURGCONS-OTHER,Medicine,NHS LOGISTICS,1121016036,0.64,
Department of Health,Salisbury NHS Foundation Trust,15/05/2020,MEDSURGCONS-SUTURES,Musculo-Skeletal,NHS LOGISTICS,1121016036,60.31,
Department of Health,Salisbury NHS Foundation Trust,15/05/2020,MEDSURGCONS-SUTURES,Musculo-Skeletal,NHS LOGISTICS,1121016036,25.01,
Department of Health,Salisbury NHS Foundation Trust,15/05/2020,MEDSURGCONS-SUTURES,Musculo-Skeletal,NHS LOGISTICS,1121016036,25.3,
Department of Health,Salisbury NHS Foundation Trust,15/05/2020,MEDSURGCONS-SUTURES,Musculo-Skeletal,NHS LOGISTICS,1121016036,36.71,
Department of Health,Salisbury NHS Foundation Trust,15/05/2020,MEDSURGCONS-SUTURES,Musculo-Skeletal,NHS LOGISTICS,1121016036,39.09,
Department of Health,Salisbury NHS Foundation Trust,15/05/2020,MEDSURGCONS-SUTURES,Musculo-Skeletal,NHS LOGISTICS,1121016036,57.6,
Department of Health,Salisbury NHS Foundation Trust,15/05/2020,MEDSURGCONS-SUTURES,Musculo-Skeletal,NHS LOGISTICS,1121016036,31.5,
Department of Health,Salisbury NHS Foundation Trust,15/05/2020,DRESSINGS - PRE STERILE,Clinical Support,NHS LOGISTICS,1121016036,1.36,
Department of Health,Salisbury NHS Foundation Trust,15/05/2020,DRESSINGS - PRE STERILE,Clinical Support,NHS LOGISTICS,1121016036,3.82,
Department of Health,Salisbury NHS Foundation Trust,15/05/2020,MEDSURGCONS-OTHER,Clinical Support,NHS LOGISTICS,1121016036,3.1,
Department of Health,Salisbury NHS Foundation Trust,15/05/2020,TISSUES HAND TOWELS & TOILET PAPER,Clinical Support,NHS LOGISTICS,1121016036,1.22,
Department of Health,Salisbury NHS Foundation Trust,15/05/2020,DRESSINGS - PRE STERILE,Clinical Support,NHS LOGISTICS,1121016036,11.9,
Department of Health,Salisbury NHS Foundation Trust,15/05/2020,MEDSURGCONS-OTHER,Clinical Support,NHS LOGISTICS,1121016036,7.15,
Department of Health,Salisbury NHS Foundation Trust,15/05/2020,MEDSURGCONS-OTHER,Clinical Support,NHS LOGISTICS,1121016036,7.15,
Department of Health,Salisbury NHS Foundation Trust,15/05/2020,TISSUES HAND TOWELS & TOILET PAPER,Clinical Support,NHS LOGISTICS,1121016036,1.8,
Department of Health,Salisbury NHS Foundation Trust,15/05/2020,MEDSURGCONS-OTHER,Clinical Support,NHS LOGISTICS,1121016036,3.38,
Department of Health,Salisbury NHS Foundation Trust,15/05/2020,MEDSURGCONS-OTHER,Clinical Support,NHS LOGISTICS,1121016036,5.43,
Department of Health,Salisbury NHS Foundation Trust,15/05/2020,DRESSINGS - PRE STERILE,Clinical Support,NHS LOGISTICS,1121016036,0.71,
Department of Health,Salisbury NHS Foundation Trust,15/05/2020,DRESSINGS - PRE STERILE,Clinical Support,NHS LOGISTICS,1121016036,2.04,
Department of Health,Salisbury NHS Foundation Trust,15/05/2020,DRESSINGS - PRE STERILE,Clinical Support,NHS LOGISTICS,1121016036,0.85,
Department of Health,Salisbury NHS Foundation Trust,15/05/2020,MEDSURGCONS-OTHER,Clinical Support,NHS LOGISTICS,1121016036,5.78,
Department of Health,Salisbury NHS Foundation Trust,15/05/2020,MEDSURGCONS-OTHER,Clinical Support,NHS LOGISTICS,1121016036,12.8,
Department of Health,Salisbury NHS Foundation Trust,15/05/2020,DISPOSABLE THEATRE DRAPES WIPES,Clinical Support,NHS LOGISTICS,1121016036,6.26,
Department of Health,Salisbury NHS Foundation Trust,15/05/2020,TISSUES HAND TOWELS & TOILET PAPER,Clinical Support,NHS LOGISTICS,1121016036,1.22,
Department of Health,Salisbury NHS Foundation Trust,15/05/2020,TISSUES HAND TOWELS & TOILET PAPER,Clinical Support,NHS LOGISTICS,1121016036,10.53,
Department of Health,Salisbury NHS Foundation Trust,15/05/2020,TISSUES HAND TOWELS & TOILET PAPER,Clinical Support,NHS LOGISTICS,1121016036,1.8,
Department of Health,Salisbury NHS Foundation Trust,15/05/2020,NON DISPOSABLE BED LINEN,Musculo-Skeletal,NHS LOGISTICS,1121016036,28.2,
Department of Health,Salisbury NHS Foundation Trust,15/05/2020,NON DISPOSABLE BED LINEN,Musculo-Skeletal,NHS LOGISTICS,1121016036,11.28,
Department of Health,Salisbury NHS Foundation Trust,15/05/2020,DRESSINGS - PRE STERILE,Musculo-Skeletal,NHS LOGISTICS,1121016036,19.16,
Department of Health,Salisbury NHS Foundation Trust,15/05/2020,DRESSINGS - PRE STERILE,Musculo-Skeletal,NHS LOGISTICS,1121016036,3.82,
Department of Health,Salisbury NHS Foundation Trust,15/05/2020,DRESSINGS - PRE STERILE,Musculo-Skeletal,NHS LOGISTICS,1121016036,5.02,
Department of Health,Salisbury NHS Foundation Trust,15/05/2020,DRESSINGS - PRE STERILE,Musculo-Skeletal,NHS LOGISTICS,1121016036,7.42,
Department of Health,Salisbury NHS Foundation Trust,15/05/2020,DRESSINGS - PRE STERILE,Musculo-Skeletal,NHS LOGISTICS,1121016036,3.34,
Department of Health,Salisbury NHS Foundation Trust,15/05/2020,DRESSINGS - PRE STERILE,Musculo-Skeletal,NHS LOGISTICS,1121016036,31.54,
Department of Health,Salisbury NHS Foundation Trust,15/05/2020,ANAESTHETIC EQUIPMENT ACCESSORIES,Musculo-Skeletal,NHS LOGISTICS,1121016036,2.4,
Department of Health,Salisbury NHS Foundation Trust,15/05/2020,OTHER MEDICAL SUPPLIES,Medicine,NHS LOGISTICS,1121016036,9.2,
Department of Health,Salisbury NHS Foundation Trust,15/05/2020,OTHER MEDICAL SUPPLIES,Medicine,NHS LOGISTICS,1121016036,6.63,
Department of Health,Salisbury NHS Foundation Trust,15/05/2020,OTHER MEDICAL SUPPLIES,Medicine,NHS LOGISTICS,1121016036,2.68,
Department of Health,Salisbury NHS Foundation Trust,15/05/2020,OTHER MEDICAL SUPPLIES,Medicine,NHS LOGISTICS,1121016036,7.16,
Department of Health,Salisbury NHS Foundation Trust,15/05/2020,MED SURG EQUIP REP MAINT CLEANING,Medicine,NHS LOGISTICS,1121016036,150,
Department of Health,Salisbury NHS Foundation Trust,15/05/2020,OTHER MEDICAL SUPPLIES,Corporate - Finance & Procurement,NHS LOGISTICS,1121016036,569.92,
Department of Health,Salisbury NHS Foundation Trust,15/05/2020,COOKING & KITCHEN UTENSILS,Corporate - Finance & Procurement,NHS LOGISTICS,1121016036,88.8,
Department of Health,Salisbury NHS Foundation Trust,15/05/2020,MED SURG EQUIP REP MAINT CLEANING,Corporate - Finance & Procurement,NHS LOGISTICS,1121016036,920.61,
Department of Health,Salisbury NHS Foundation Trust,15/05/2020,TUBES,Medicine,NHS LOGISTICS,1121016036,3,
Department of Health,Salisbury NHS Foundation Trust,15/05/2020,TISSUES HAND TOWELS & TOILET PAPER,Medicine,NHS LOGISTICS,1121016036,0.6,
Department of Health,Salisbury NHS Foundation Trust,15/05/2020,DRUGS,Medicine,NHS LOGISTICS,1121016036,72.36,
Department of Health,Salisbury NHS Foundation Trust,15/05/2020,MEDSURGCONS-SUTURES,Medicine,NHS LOGISTICS,1121016036,68.55,
Department of Health,Salisbury NHS Foundation Trust,15/05/2020,MEDSURGCONS-SUTURES,Medicine,NHS LOGISTICS,1121016036,56.67,
Department of Health,Salisbury NHS Foundation Trust,15/05/2020,DISPOSABLE THEATRE DRAPES WIPES,Medicine,NHS LOGISTICS,1121016036,2.93,
Department of Health,Salisbury NHS Foundation Trust,15/05/2020,SERVICES FROM NHS BODIES,Clinical Support,NHS LOGISTICS,1121016036,14.08,
Department of Health,Salisbury NHS Foundation Trust,15/05/2020,PATIENT APPLIANCES,Clinical Support,NHS LOGISTICS,1121016036,27,
Department of Health,Salisbury NHS Foundation Trust,15/05/2020,PATIENT APPLIANCES,Clinical Support,NHS LOGISTICS,1121016036,24.6,
Department of Health,Salisbury NHS Foundation Trust,15/05/2020,ELECTRICAL EQUIPMENT,Medicine,NHS LOGISTICS,1121016036,1.48,
Department of Health,Salisbury NHS Foundation Trust,15/05/2020,ELECTRICAL EQUIPMENT,Medicine,NHS LOGISTICS,1121016036,4.9,
Department of Health,Salisbury NHS Foundation Trust,15/05/2020,PATIENTS INCONTINENCE,Medicine,NHS LOGISTICS,1121016036,2.81,
Department of Health,Salisbury NHS Foundation Trust,15/05/2020,NON DISPOSABLE BED LINEN,Surgery,NHS LOGISTICS,1121016036,22.56,
Department of Health,Salisbury NHS Foundation Trust,15/05/2020,PATIENT APPLIANCES,Surgery,NHS LOGISTICS,1121016036,32,
Department of Health,Salisbury NHS Foundation Trust,15/05/2020,DRESSINGS - PRE STERILE,Surgery,NHS LOGISTICS,1121016036,3.08,
Department of Health,Salisbury NHS Foundation Trust,15/05/2020,M & S EQUIPELECTEQUIPINST - OTHER,Medicine,NHS LOGISTICS,1121016036,26.14,
Department of Health,Salisbury NHS Foundation Trust,15/05/2020,MEDSURGCONS-OTHER,Medicine,NHS LOGISTICS,1121016036,6.76,
Department of Health,Salisbury NHS Foundation Trust,15/05/2020,MEDSURGCONS-OTHER,Medicine,NHS LOGISTICS,1121016036,5,
Department of Health,Salisbury NHS Foundation Trust,15/05/2020,MEDSURGCONS-OTHER,Medicine,NHS LOGISTICS,1121016036,7.65,
Department of Health,Salisbury NHS Foundation Trust,15/05/2020,MEDSURGCONS-OTHER,Medicine,NHS LOGISTICS,1121016036,25.56,
Department of Health,Salisbury NHS Foundation Trust,15/05/2020,MEDSURGCONS-OTHER,Medicine,NHS LOGISTICS,1121016036,0.78,
Department of Health,Salisbury NHS Foundation Trust,15/05/2020,MEDSURGCONS-OTHER,Medicine,NHS LOGISTICS,1121016036,2.38,
Department of Health,Salisbury NHS Foundation Trust,15/05/2020,TOILETRIES PERSONAL HYGIENE PRODUCT,Medicine,NHS LOGISTICS,1121016036,51.52,
Department of Health,Salisbury NHS Foundation Trust,15/05/2020,OTHER MEDICAL SUPPLIES,Medicine,NHS LOGISTICS,1121016036,21.84,
Department of Health,Salisbury NHS Foundation Trust,15/05/2020,OTHER MEDICAL SUPPLIES,Medicine,NHS LOGISTICS,1121016036,5.7,
Department of Health,Salisbury NHS Foundation Trust,15/05/2020,OTHER MEDICAL SUPPLIES,Medicine,NHS LOGISTICS,1121016036,7.12,
Department of Health,Salisbury NHS Foundation Trust,15/05/2020,OTHER MEDICAL SUPPLIES,Medicine,NHS LOGISTICS,1121016036,7.12,
Department of Health,Salisbury NHS Foundation Trust,15/05/2020,OTHER MEDICAL SUPPLIES,Medicine,NHS LOGISTICS,1121016036,6.63,
Department of Health,Salisbury NHS Foundation Trust,15/05/2020,OTHER MEDICAL SUPPLIES,Medicine,NHS LOGISTICS,1121016036,7.04,
Department of Health,Salisbury NHS Foundation Trust,15/05/2020,OTHER MEDICAL SUPPLIES,Medicine,NHS LOGISTICS,1121016036,6.63,
Department of Health,Salisbury NHS Foundation Trust,15/05/2020,OTHER MEDICAL SUPPLIES,Medicine,NHS LOGISTICS,1121016036,2.68,
Department of Health,Salisbury NHS Foundation Trust,15/05/2020,DRESSINGS - PRE STERILE,Medicine,NHS LOGISTICS,1121016036,1.36,
Department of Health,Salisbury NHS Foundation Trust,15/05/2020,DRESSINGS - PRE STERILE,Medicine,NHS LOGISTICS,1121016036,1.3,
Department of Health,Salisbury NHS Foundation Trust,15/05/2020,DRESSINGS - PRE STERILE,Medicine,NHS LOGISTICS,1121016036,2.13,
Department of Health,Salisbury NHS Foundation Trust,15/05/2020,DRESSINGS - PRE STERILE,Medicine,NHS LOGISTICS,1121016036,6.12,
Department of Health,Salisbury NHS Foundation Trust,15/05/2020,DRESSINGS - PRE STERILE,Musculo-Skeletal,NHS LOGISTICS,1121016036,2.04,
Department of Health,Salisbury NHS Foundation Trust,15/05/2020,DRESSINGS - PRE STERILE,Musculo-Skeletal,NHS LOGISTICS,1121016036,2.16,
Department of Health,Salisbury NHS Foundation Trust,15/05/2020,DRESSINGS - PRE STERILE,Surgery,NHS LOGISTICS,1121016036,1.42,
Department of Health,Salisbury NHS Foundation Trust,15/05/2020,DRESSINGS - PRE STERILE,Surgery,NHS LOGISTICS,1121016036,0.85,
Department of Health,Salisbury NHS Foundation Trust,15/05/2020,DRESSINGS - PRE STERILE,Surgery,NHS LOGISTICS,1121016036,5.16,
Department of Health,Salisbury NHS Foundation Trust,15/05/2020,TISSUES HAND TOWELS & TOILET PAPER,Medicine,NHS LOGISTICS,1121016036,1.22,
Department of Health,Salisbury NHS Foundation Trust,15/05/2020,DISPOSABLE THEATRE DRAPES WIPES,Musculo-Skeletal,NHS LOGISTICS,1121016036,2.93,
Department of Health,Salisbury NHS Foundation Trust,15/05/2020,DISPOSABLE THEATRE DRAPES WIPES,Medicine,NHS LOGISTICS,1121016036,12.6,
Department of Health,Salisbury NHS Foundation Trust,15/05/2020,M & S EQUIPELECTEQUIPINST - OTHER,Medicine,NHS LOGISTICS,1121016036,22.57,
Department of Health,Salisbury NHS Foundation Trust,15/05/2020,M & S EQUIPELECTEQUIPINST - OTHER,Medicine,NHS LOGISTICS,1121016036,6.76,
Department of Health,Salisbury NHS Foundation Trust,15/05/2020,MEDSURGCONS-OTHER,Surgery,NHS LOGISTICS,1121016036,5,
Department of Health,Salisbury NHS Foundation Trust,15/05/2020,SURGICAL INSTRUMENTS - DISPOSABLE,Medicine,NHS LOGISTICS,1121016036,6.75,
Department of Health,Salisbury NHS Foundation Trust,15/05/2020,DRUGS,Surgery,NHS LOGISTICS,1121016036,21.05,
Department of Health,Salisbury NHS Foundation Trust,15/05/2020,DRUGS,Surgery,NHS LOGISTICS,1121016036,40.1,
Department of Health,Salisbury NHS Foundation Trust,15/05/2020,DRUGS,Surgery,NHS LOGISTICS,1121016036,20.05,
Department of Health,Salisbury NHS Foundation Trust,15/05/2020,MEDSURGCONS-OTHER,Clinical Support,NHS LOGISTICS,1121016036,70.02,
Department of Health,Salisbury NHS Foundation Trust,15/05/2020,DRESSINGS - PRE STERILE,Musculo-Skeletal,NHS LOGISTICS,1121016036,1.3,
Department of Health,Salisbury NHS Foundation Trust,15/05/2020,DRESSINGS - PRE STERILE,Musculo-Skeletal,NHS LOGISTICS,1121016036,0.71,
Department of Health,Salisbury NHS Foundation Trust,15/05/2020,SURGICAL INSTRUMENTS - DISPOSABLE,Musculo-Skeletal,NHS LOGISTICS,1121016036,4.5,
Department of Health,Salisbury NHS Foundation Trust,15/05/2020,ELECTRICAL EQUIPMENT,Musculo-Skeletal,NHS LOGISTICS,1121016036,4.9,
Department of Health,Salisbury NHS Foundation Trust,15/05/2020,CLEANING MATERIAL PRODUCTS SUNDRIES,Musculo-Skeletal,NHS LOGISTICS,1121016036,7.84,
Department of Health,Salisbury NHS Foundation Trust,15/05/2020,CLEANING MATERIAL PRODUCTS SUNDRIES,Medicine,NHS LOGISTICS,1121016036,6.6,
Department of Health,Salisbury NHS Foundation Trust,15/05/2020,NON DISPOSABLE BED LINEN,Musculo-Skeletal,NHS LOGISTICS,1121016036,29.2,
Department of Health,Salisbury NHS Foundation Trust,15/05/2020,NON DISPOSABLE BED LINEN,Musculo-Skeletal,NHS LOGISTICS,1121016036,45.12,
Department of Health,Salisbury NHS Foundation Trust,15/05/2020,SERVICES FROM NHS BODIES,Musculo-Skeletal,NHS LOGISTICS,1121016036,10.68,
Department of Health,Salisbury NHS Foundation Trust,15/05/2020,SERVICES FROM NHS BODIES,Clinical Support,NHS LOGISTICS,1121016036,26,
Department of Health,Salisbury NHS Foundation Trust,15/05/2020,SERVICES FROM NHS BODIES,Clinical Support,NHS LOGISTICS,1121016036,21,
Department of Health,Salisbury NHS Foundation Trust,15/05/2020,SERVICES FROM NHS BODIES,Clinical Support,NHS LOGISTICS,1121016036,29.82,
Department of Health,Salisbury NHS Foundation Trust,15/05/2020,PATIENT APPLIANCES,Clinical Support,NHS LOGISTICS,1121016036,9.98,
Department of Health,Salisbury NHS Foundation Trust,15/05/2020,PATIENT APPLIANCES,Clinical Support,NHS LOGISTICS,1121016036,3.54,
Department of Health,Salisbury NHS Foundation Trust,15/05/2020,DRESSINGS  -  PROCEDURE PACKS,Surgery,NHS LOGISTICS,1121016036,1.05,
Department of Health,Salisbury NHS Foundation Trust,15/05/2020,OTHER MEDICAL SUPPLIES,Surgery,NHS LOGISTICS,1121016036,7.18,
Department of Health,Salisbury NHS Foundation Trust,15/05/2020,TUBES,Surgery,NHS LOGISTICS,1121016036,5.24,
Department of Health,Salisbury NHS Foundation Trust,15/05/2020,TUBES,Surgery,NHS LOGISTICS,1121016036,5.82,
Department of Health,Salisbury NHS Foundation Trust,15/05/2020,ELECTRICAL EQUIPMENT,Medicine,NHS LOGISTICS,1121016036,2.96,
Department of Health,Salisbury NHS Foundation Trust,15/05/2020,ELECTRICAL EQUIPMENT,Medicine,NHS LOGISTICS,1121016036,4.9,
Department of Health,Salisbury NHS Foundation Trust,15/05/2020,DRESSINGS  -  PROCEDURE PACKS,Medicine,NHS LOGISTICS,1121016036,1.4,
Department of Health,Salisbury NHS Foundation Trust,15/05/2020,BAGS SACKS - OTHER,Musculo-Skeletal,NHS LOGISTICS,1121016036,2,
Department of Health,Salisbury NHS Foundation Trust,15/05/2020,MEDSURGCONS-OTHER,Musculo-Skeletal,NHS LOGISTICS,1121016036,7.15,
Department of Health,Salisbury NHS Foundation Trust,15/05/2020,MEDSURGCONS-OTHER,Musculo-Skeletal,NHS LOGISTICS,1121016036,3.38,
Department of Health,Salisbury NHS Foundation Trust,15/05/2020,BAGS SACKS - OTHER,Clinical Support,NHS LOGISTICS,1121016036,1.8,
Department of Health,Salisbury NHS Foundation Trust,15/05/2020,DRESSINGS  -  PROCEDURE PACKS,Clinical Support,NHS LOGISTICS,1121016036,0.24,
Department of Health,Salisbury NHS Foundation Trust,15/05/2020,DRESSINGS  -  PROCEDURE PACKS,Clinical Support,NHS LOGISTICS,1121016036,1,
Department of Health,Salisbury NHS Foundation Trust,15/05/2020,DRESSINGS  -  PROCEDURE PACKS,Clinical Support,NHS LOGISTICS,1121016036,0.7,
Department of Health,Salisbury NHS Foundation Trust,15/05/2020,DRESSINGS  -  PROCEDURE PACKS,Clinical Support,NHS LOGISTICS,1121016036,0.35,
Department of Health,Salisbury NHS Foundation Trust,15/05/2020,OTHER MEDICAL SUPPLIES,Clinical Support,NHS LOGISTICS,1121016036,6.63,
Department of Health,Salisbury NHS Foundation Trust,15/05/2020,OTHER MEDICAL SUPPLIES,Clinical Support,NHS LOGISTICS,1121016036,137.37,
Department of Health,Salisbury NHS Foundation Trust,15/05/2020,SURGICAL INSTRUMENTS - DISPOSABLE,Clinical Support,NHS LOGISTICS,1121016036,4.5,
Department of Health,Salisbury NHS Foundation Trust,15/05/2020,TOILETRIES PERSONAL HYGIENE PRODUCT,Medicine,NHS LOGISTICS,1121016036,7.98,
Department of Health,Salisbury NHS Foundation Trust,15/05/2020,M & S EQUIPELECTEQUIPINST - OTHER,Facilities,NHS LOGISTICS,1121016036,12.52,
Department of Health,Salisbury NHS Foundation Trust,15/05/2020,TUBES,Facilities,NHS LOGISTICS,1121016036,10.48,
Department of Health,Salisbury NHS Foundation Trust,15/05/2020,M & S EQUIPELECTEQUIPINST - OTHER,Facilities,NHS LOGISTICS,1121016036,8.5,
Department of Health,Salisbury NHS Foundation Trust,15/05/2020,MED SURG EQUIP REP MAINT CLEANING,Facilities,NHS LOGISTICS,1121016036,83.5,
Department of Health,Salisbury NHS Foundation Trust,15/05/2020,MEDSURGCONS-OTHER,Facilities,NHS LOGISTICS,1121016036,44.9,
Department of Health,Salisbury NHS Foundation Trust,15/05/2020,MEDSURGCONS-OTHER,Facilities,NHS LOGISTICS,1121016036,10.86,
Department of Health,Salisbury NHS Foundation Trust,15/05/2020,M & S EQUIPELECTEQUIPINST - OTHER,Facilities,NHS LOGISTICS,1121016036,29.6,
Department of Health,Salisbury NHS Foundation Trust,15/05/2020,MEDSURGCONS-OTHER,Facilities,NHS LOGISTICS,1121016036,2.6,
Department of Health,Salisbury NHS Foundation Trust,15/05/2020,ANAESTHETIC EQUIPMENT ACCESSORIES,Facilities,NHS LOGISTICS,1121016036,4.8,
Department of Health,Salisbury NHS Foundation Trust,15/05/2020,OTHER MEDICAL SUPPLIES,Facilities,NHS LOGISTICS,1121016036,6.63,
Department of Health,Salisbury NHS Foundation Trust,15/05/2020,OTHER MEDICAL SUPPLIES,Facilities,NHS LOGISTICS,1121016036,5.36,
Department of Health,Salisbury NHS Foundation Trust,15/05/2020,SURGICAL INSTRUMENTS - DISPOSABLE,Facilities,NHS LOGISTICS,1121016036,4.5,
Department of Health,Salisbury NHS Foundation Trust,15/05/2020,DRESSINGS - PRE STERILE,Facilities,NHS LOGISTICS,1121016036,1.72,
Department of Health,Salisbury NHS Foundation Trust,15/05/2020,MED SURG EQUIP REP MAINT CLEANING,Facilities,NHS LOGISTICS,1121016036,8.99,
Department of Health,Salisbury NHS Foundation Trust,15/05/2020,PATIENT APPLIANCES,Facilities,NHS LOGISTICS,1121016036,12.6,
Department of Health,Salisbury NHS Foundation Trust,15/05/2020,MEDSURGCONS-OTHER,Facilities,NHS LOGISTICS,1121016036,0.24,
Department of Health,Salisbury NHS Foundation Trust,15/05/2020,MEDSURGCONS-OTHER,Facilities,NHS LOGISTICS,1121016036,9.6,
Department of Health,Salisbury NHS Foundation Trust,15/05/2020,MEDSURGCONS-OTHER,Facilities,NHS LOGISTICS,1121016036,3.12,
Department of Health,Salisbury NHS Foundation Trust,15/05/2020,MEDSURGCONS-OTHER,Facilities,NHS LOGISTICS,1121016036,4.76,
Department of Health,Salisbury NHS Foundation Trust,15/05/2020,DISPOSABLE THEATRE DRAPES WIPES,Facilities,NHS LOGISTICS,1121016036,2.93,
Department of Health,Salisbury NHS Foundation Trust,15/05/2020,TOILETRIES PERSONAL HYGIENE PRODUCT,Corporate - Finance & Procurement,NHS LOGISTICS,1121016036,13.4,
Department of Health,Salisbury NHS Foundation Trust,15/05/2020,TOILETRIES PERSONAL HYGIENE PRODUCT,Corporate - Finance & Procurement,NHS LOGISTICS,1121016036,309.12,
Department of Health,Salisbury NHS Foundation Trust,15/05/2020,MEDSURGCONS-OTHER,Corporate - Finance & Procurement,NHS LOGISTICS,1121016036,315,
Department of Health,Salisbury NHS Foundation Trust,15/05/2020,OTHER MEDICAL SUPPLIES,Clinical Support,NHS LOGISTICS,1121016036,1.7,
Department of Health,Salisbury NHS Foundation Trust,15/05/2020,OTHER MEDICAL SUPPLIES,Clinical Support,NHS LOGISTICS,1121016036,18.4,
Department of Health,Salisbury NHS Foundation Trust,15/05/2020,OTHER MEDICAL SUPPLIES,Clinical Support,NHS LOGISTICS,1121016036,1.8,
Department of Health,Salisbury NHS Foundation Trust,15/05/2020,MEDSURGCONS-OTHER,Clinical Support,NHS LOGISTICS,1121016036,33,
Department of Health,Salisbury NHS Foundation Trust,15/05/2020,SURGICAL INSTRUMENTS - GENERAL,Clinical Support,NHS LOGISTICS,1121016036,5.5,
Department of Health,Salisbury NHS Foundation Trust,15/05/2020,MEDSURGCONS-OTHER,Clinical Support,NHS LOGISTICS,1121016036,14.3,
Department of Health,Salisbury NHS Foundation Trust,15/05/2020,OTHER MEDICAL SUPPLIES,Clinical Support,NHS LOGISTICS,1121016036,20.7,
Department of Health,Salisbury NHS Foundation Trust,15/05/2020,DRESSINGS  -  PROCEDURE PACKS,Clinical Support,NHS LOGISTICS,1121016036,0.08,
Department of Health,Salisbury NHS Foundation Trust,15/05/2020,MEDSURGCONS-OTHER,Clinical Support,NHS LOGISTICS,1121016036,3.38,
Department of Health,Salisbury NHS Foundation Trust,15/05/2020,MEDSURGCONS-OTHER,Clinical Support,NHS LOGISTICS,1121016036,5.43,
Department of Health,Salisbury NHS Foundation Trust,15/05/2020,MEDSURGCONS-OTHER,Clinical Support,NHS LOGISTICS,1121016036,2.39,
Department of Health,Salisbury NHS Foundation Trust,15/05/2020,OTHER MEDICAL SUPPLIES,Clinical Support,NHS LOGISTICS,1121016036,4.25,
Department of Health,Salisbury NHS Foundation Trust,15/05/2020,MEDSURGCONS-OTHER,Clinical Support,NHS LOGISTICS,1121016036,10,
Department of Health,Salisbury NHS Foundation Trust,15/05/2020,MEDSURGCONS-OTHER,Clinical Support,NHS LOGISTICS,1121016036,6.12,
Department of Health,Salisbury NHS Foundation Trust,15/05/2020,OTHER MEDICAL SUPPLIES,Clinical Support,NHS LOGISTICS,1121016036,7.12,
Department of Health,Salisbury NHS Foundation Trust,15/05/2020,OTHER MEDICAL SUPPLIES,Clinical Support,NHS LOGISTICS,1121016036,6.63,
Department of Health,Salisbury NHS Foundation Trust,15/05/2020,OTHER MEDICAL SUPPLIES,Clinical Support,NHS LOGISTICS,1121016036,6.63,
Department of Health,Salisbury NHS Foundation Trust,15/05/2020,OTHER MEDICAL SUPPLIES,Clinical Support,NHS LOGISTICS,1121016036,1.34,
Department of Health,Salisbury NHS Foundation Trust,15/05/2020,SURGICAL INSTRUMENTS - DISPOSABLE,Clinical Support,NHS LOGISTICS,1121016036,4.5,
Department of Health,Salisbury NHS Foundation Trust,15/05/2020,MEDSURGCONS-OTHER,Clinical Support,NHS LOGISTICS,1121016036,20.8,
Department of Health,Salisbury NHS Foundation Trust,15/05/2020,OTHER MEDICAL SUPPLIES,Clinical Support,NHS LOGISTICS,1121016036,2.6,
Department of Health,Salisbury NHS Foundation Trust,15/05/2020,MEDSURGCONS-OTHER,Clinical Support,NHS LOGISTICS,1121016036,19.2,
Department of Health,Salisbury NHS Foundation Trust,15/05/2020,M & S EQUIPELECTEQUIPINST - OTHER,Clinical Support,NHS LOGISTICS,1121016036,0.61,
Department of Health,Salisbury NHS Foundation Trust,15/05/2020,MEDSURGCONS-OTHER,Clinical Support,NHS LOGISTICS,1121016036,5.4,
Department of Health,Salisbury NHS Foundation Trust,15/05/2020,DISPOSABLE THEATRE DRAPES WIPES,Clinical Support,NHS LOGISTICS,1121016036,5.86,
Department of Health,Salisbury NHS Foundation Trust,15/05/2020,DISPOSABLE THEATRE DRAPES WIPES,Clinical Support,NHS LOGISTICS,1121016036,10,
Department of Health,Salisbury NHS Foundation Trust,15/05/2020,OTHER MEDICAL SUPPLIES,Surgery,NHS LOGISTICS,1121016036,3.8,
Department of Health,Salisbury NHS Foundation Trust,15/05/2020,OTHER MEDICAL SUPPLIES,Surgery,NHS LOGISTICS,1121016036,41,
Department of Health,Salisbury NHS Foundation Trust,15/05/2020,MEDSURGCONS-OTHER,Surgery,NHS LOGISTICS,1121016036,62.1,
Department of Health,Salisbury NHS Foundation Trust,15/05/2020,TISSUES HAND TOWELS & TOILET PAPER,Surgery,NHS LOGISTICS,1121016036,1.22,
Department of Health,Salisbury NHS Foundation Trust,15/05/2020,MEDSURGCONS-OTHER,Surgery,NHS LOGISTICS,1121016036,6.76,
Department of Health,Salisbury NHS Foundation Trust,15/05/2020,MEDSURGCONS-OTHER,Surgery,NHS LOGISTICS,1121016036,1.53,
Department of Health,Salisbury NHS Foundation Trust,15/05/2020,DRESSINGS - PRE STERILE,Surgery,NHS LOGISTICS,1121016036,1.42,
Department of Health,Salisbury NHS Foundation Trust,15/05/2020,ANAESTHETIC EQUIPMENT ACCESSORIES,Surgery,NHS LOGISTICS,1121016036,0.96,
Department of Health,Salisbury NHS Foundation Trust,15/05/2020,MEDSURGCONS-OTHER,Surgery,NHS LOGISTICS,1121016036,96.32,
Department of Health,Salisbury NHS Foundation Trust,15/05/2020,DRESSINGS  -  PROCEDURE PACKS,Surgery,NHS LOGISTICS,1121016036,43.5,
Department of Health,Salisbury NHS Foundation Trust,15/05/2020,DRESSINGS  -  PROCEDURE PACKS,Surgery,NHS LOGISTICS,1121016036,5.25,
Department of Health,Salisbury NHS Foundation Trust,15/05/2020,DRESSINGS - PRE STERILE,Surgery,NHS LOGISTICS,1121016036,22.33,
Department of Health,Salisbury NHS Foundation Trust,15/05/2020,MEDSURGCONS-OTHER,Surgery,NHS LOGISTICS,1121016036,2.5,
Department of Health,Salisbury NHS Foundation Trust,15/05/2020,MEDSURGCONS-OTHER,Surgery,NHS LOGISTICS,1121016036,5.1,
Department of Health,Salisbury NHS Foundation Trust,15/05/2020,OTHER MEDICAL SUPPLIES,Surgery,NHS LOGISTICS,1121016036,4.02,
Department of Health,Salisbury NHS Foundation Trust,15/05/2020,SURGICAL INSTRUMENTS - DISPOSABLE,Surgery,NHS LOGISTICS,1121016036,7.6,
Department of Health,Salisbury NHS Foundation Trust,15/05/2020,DRESSINGS - PRE STERILE,Surgery,NHS LOGISTICS,1121016036,49.25,
Department of Health,Salisbury NHS Foundation Trust,15/05/2020,OTHER MEDICAL SUPPLIES,Surgery,NHS LOGISTICS,1121016036,23.76,
Department of Health,Salisbury NHS Foundation Trust,15/05/2020,MEDSURGCONS-OTHER,Surgery,NHS LOGISTICS,1121016036,88,
Department of Health,Salisbury NHS Foundation Trust,15/05/2020,MEDSURGCONS-OTHER,Surgery,NHS LOGISTICS,1121016036,5.32,
Department of Health,Salisbury NHS Foundation Trust,15/05/2020,MEDSURGCONS-OTHER,Surgery,NHS LOGISTICS,1121016036,6.16,
Department of Health,Salisbury NHS Foundation Trust,15/05/2020,DRESSINGS - PRE STERILE,Surgery,NHS LOGISTICS,1121016036,2.76,
Department of Health,Salisbury NHS Foundation Trust,15/05/2020,M & S EQUIPELECTEQUIPINST - OTHER,Surgery,NHS LOGISTICS,1121016036,1.42,
Department of Health,Salisbury NHS Foundation Trust,15/05/2020,MEDSURGCONS-OTHER,Surgery,NHS LOGISTICS,1121016036,1.55,
Department of Health,Salisbury NHS Foundation Trust,15/05/2020,NON DISPOSABLE BED LINEN,Surgery,NHS LOGISTICS,1121016036,11.28,
Department of Health,Salisbury NHS Foundation Trust,15/05/2020,PATIENT APPLIANCES,Surgery,NHS LOGISTICS,1121016036,19.2,
Department of Health,Salisbury NHS Foundation Trust,15/05/2020,MEDSURGCONS-OTHER,Surgery,NHS LOGISTICS,1121016036,7.88,
Department of Health,Salisbury NHS Foundation Trust,15/05/2020,DISPOSABLE THEATRE DRAPES WIPES,Surgery,NHS LOGISTICS,1121016036,6.3,
Department of Health,Salisbury NHS Foundation Trust,15/05/2020,DISPOSABLE THEATRE DRAPES WIPES,Surgery,NHS LOGISTICS,1121016036,5.86,
Department of Health,Salisbury NHS Foundation Trust,15/05/2020,ANAESTHETIC EQUIPMENT ACCESSORIES,Musculo-Skeletal,NHS LOGISTICS,1121016036,109.56,
Department of Health,Salisbury NHS Foundation Trust,15/05/2020,MEDSURGCONS-OTHER,Medicine,NHS LOGISTICS,1121016036,250,
Department of Health,Salisbury NHS Foundation Trust,15/05/2020,MEDSURGCONS-OTHER,Medicine,NHS LOGISTICS,1121016036,400,
Department of Health,Salisbury NHS Foundation Trust,15/05/2020,MED PROSTH - PACEMAKERS,Medicine,NHS LOGISTICS,1121016036,50,
Department of Health,Salisbury NHS Foundation Trust,15/05/2020,MEDSURGCONS-OTHER,Medicine,NHS LOGISTICS,1121016036,540,
Department of Health,Salisbury NHS Foundation Trust,15/05/2020,MED PROSTH - PACEMAKERS,Medicine,NHS LOGISTICS,1121016036,460,
Department of Health,Salisbury NHS Foundation Trust,15/05/2020,MEDSURGCONS-OTHER,Clinical Support,NHS LOGISTICS,1121016036,65,
Department of Health,Salisbury NHS Foundation Trust,15/05/2020,MEDSURGCONS-OTHER,Corporate - Finance & Procurement,NHS LOGISTICS,1121016036,594,
Department of Health,Salisbury NHS Foundation Trust,15/05/2020,MEDSURGCONS-OTHER,Corporate - Finance & Procurement,NHS LOGISTICS,1121016036,275,
Department of Health,Salisbury NHS Foundation Trust,15/05/2020,BEVERAGES & AMBIENT FOOD,Facilities,NHS LOGISTICS,1121016036,13.65,
Department of Health,Salisbury NHS Foundation Trust,15/05/2020,BEVERAGES & AMBIENT FOOD,Facilities,NHS LOGISTICS,1121016036,13.5,
Department of Health,Salisbury NHS Foundation Trust,15/05/2020,BEVERAGES & AMBIENT FOOD,Facilities,NHS LOGISTICS,1121016036,17.22,
Department of Health,Salisbury NHS Foundation Trust,15/05/2020,BEVERAGES & AMBIENT FOOD,Facilities,NHS LOGISTICS,1121016036,31.08,
Department of Health,Salisbury NHS Foundation Trust,15/05/2020,BEVERAGES & AMBIENT FOOD,Facilities,NHS LOGISTICS,1121016036,19.2,
Department of Health,Salisbury NHS Foundation Trust,15/05/2020,BEVERAGES & AMBIENT FOOD,Facilities,NHS LOGISTICS,1121016036,7.36,
Department of Health,Salisbury NHS Foundation Trust,15/05/2020,FLAVOURINGS HERBS SPICES,Facilities,NHS LOGISTICS,1121016036,9.9,
Department of Health,Salisbury NHS Foundation Trust,15/05/2020,FLAVOURINGS HERBS SPICES,Facilities,NHS LOGISTICS,1121016036,2.6,
Department of Health,Salisbury NHS Foundation Trust,15/05/2020,BEVERAGES & AMBIENT FOOD,Facilities,NHS LOGISTICS,1121016036,6.76,
Department of Health,Salisbury NHS Foundation Trust,15/05/2020,BEVERAGES & AMBIENT FOOD,Facilities,NHS LOGISTICS,1121016036,6.76,
Department of Health,Salisbury NHS Foundation Trust,15/05/2020,FRUIT & VEGETABLES,Facilities,NHS LOGISTICS,1121016036,17.52,
Department of Health,Salisbury NHS Foundation Trust,15/05/2020,LIQUID REFRESHMENTS,Facilities,NHS LOGISTICS,1121016036,2.4,
Department of Health,Salisbury NHS Foundation Trust,15/05/2020,OTHER MEDICAL SUPPLIES,Clinical Support,NHS LOGISTICS,1121016036,6.63,
Department of Health,Salisbury NHS Foundation Trust,15/05/2020,DRESSINGS  -  PROCEDURE PACKS,Clinical Support,NHS LOGISTICS,1121016036,0.4,
Department of Health,Salisbury NHS Foundation Trust,15/05/2020,OTHER MEDICAL SUPPLIES,Clinical Support,NHS LOGISTICS,1121016036,7.12,
Department of Health,Salisbury NHS Foundation Trust,15/05/2020,OTHER MEDICAL SUPPLIES,Clinical Support,NHS LOGISTICS,1121016036,7.04,
Department of Health,Salisbury NHS Foundation Trust,15/05/2020,DISPOSABLE THEATRE DRAPES WIPES,Clinical Support,NHS LOGISTICS,1121016036,3.13,
Department of Health,Salisbury NHS Foundation Trust,15/05/2020,PATIENTS BABY WEAR,Medicine,NHS LOGISTICS,1121016036,12.34,
Department of Health,Salisbury NHS Foundation Trust,15/05/2020,OTHER MEDICAL SUPPLIES,Medicine,NHS LOGISTICS,1121016036,82,
Department of Health,Salisbury NHS Foundation Trust,15/05/2020,ELECTRICAL EQUIPMENT,Medicine,NHS LOGISTICS,1121016036,2.96,
Department of Health,Salisbury NHS Foundation Trust,15/05/2020,ELECTRICAL EQUIPMENT,Medicine,NHS LOGISTICS,1121016036,4.9,
Department of Health,Salisbury NHS Foundation Trust,15/05/2020,CLEANING MATERIAL PRODUCTS SUNDRIES,Medicine,NHS LOGISTICS,1121016036,4.25,
Department of Health,Salisbury NHS Foundation Trust,15/05/2020,CLEANING MATERIAL PRODUCTS SUNDRIES,Medicine,NHS LOGISTICS,1121016036,6.6,
Department of Health,Salisbury NHS Foundation Trust,15/05/2020,TUBES,Medicine,NHS LOGISTICS,1121016036,5.82,
Department of Health,Salisbury NHS Foundation Trust,15/05/2020,TUBES,Medicine,NHS LOGISTICS,1121016036,9,
Department of Health,Salisbury NHS Foundation Trust,15/05/2020,NON DISPOSABLE BED LINEN,Medicine,NHS LOGISTICS,1121016036,5.64,
Department of Health,Salisbury NHS Foundation Trust,15/05/2020,DENTAL SURGERY SUNDRIES,Medicine,NHS LOGISTICS,1121016036,2.52,
Department of Health,Salisbury NHS Foundation Trust,15/05/2020,SURGICAL INSTRUMENTS - DISPOSABLE,Medicine,NHS LOGISTICS,1121016036,2.25,
Department of Health,Salisbury NHS Foundation Trust,15/05/2020,TUBES,Medicine,NHS LOGISTICS,1121016036,8.06,
Department of Health,Salisbury NHS Foundation Trust,15/05/2020,NON DISPOSABLE BED LINEN,Musculo-Skeletal,NHS LOGISTICS,1121016036,2.82,
Department of Health,Salisbury NHS Foundation Trust,15/05/2020,DISPOSABLE THEATRE DRAPES WIPES,Musculo-Skeletal,NHS LOGISTICS,1121016036,2.93,
Department of Health,Salisbury NHS Foundation Trust,15/05/2020,ELECTRICAL EQUIPMENT,Medicine,NHS LOGISTICS,1121016036,2.96,
Department of Health,Salisbury NHS Foundation Trust,15/05/2020,DISPOSABLE THEATRE DRAPES WIPES,Surgery,NHS LOGISTICS,1121016036,12.6,
Department of Health,Salisbury NHS Foundation Trust,15/05/2020,PATIENTS BABY WEAR,Medicine,NHS LOGISTICS,1121016036,19.98,
Department of Health,Salisbury NHS Foundation Trust,15/05/2020,OTHER MEDICAL SUPPLIES,Clinical Support,NHS LOGISTICS,1121016036,2.76,
Department of Health,Salisbury NHS Foundation Trust,15/05/2020,TUBES,Clinical Support,NHS LOGISTICS,1121016036,3.22,
Department of Health,Salisbury NHS Foundation Trust,15/05/2020,TISSUES HAND TOWELS & TOILET PAPER,Clinical Support,NHS LOGISTICS,1121016036,1.2,
Department of Health,Salisbury NHS Foundation Trust,15/05/2020,NON DISPOSABLE BED LINEN,Surgery,NHS LOGISTICS,1121016036,4.64,
Department of Health,Salisbury NHS Foundation Trust,15/05/2020,MEDSURGCONS-LAPAROSCOPIC EQUIPMENT,Clinical Support,NHS LOGISTICS,1121016036,181.19,
Department of Health,Salisbury NHS Foundation Trust,15/05/2020,TUBES,Medicine,NHS LOGISTICS,1121016036,5.82,
Department of Health,Salisbury NHS Foundation Trust,15/05/2020,OTHER MEDICAL SUPPLIES,Clinical Support,NHS LOGISTICS,1121016036,9.2,
Department of Health,Salisbury NHS Foundation Trust,15/05/2020,M & S EQUIPELECTEQUIPINST - OTHER,Clinical Support,NHS LOGISTICS,1121016036,6.76,
Department of Health,Salisbury NHS Foundation Trust,15/05/2020,MEDSURGCONS-OTHER,Clinical Support,NHS LOGISTICS,1121016036,2,
Department of Health,Salisbury NHS Foundation Trust,15/05/2020,MEDSURGCONS-OTHER,Clinical Support,NHS LOGISTICS,1121016036,2.04,
Department of Health,Salisbury NHS Foundation Trust,15/05/2020,OTHER MEDICAL SUPPLIES,Clinical Support,NHS LOGISTICS,1121016036,1.38,
Department of Health,Salisbury NHS Foundation Trust,15/05/2020,SURGICAL INSTRUMENTS - DISPOSABLE,Clinical Support,NHS LOGISTICS,1121016036,9.95,
Department of Health,Salisbury NHS Foundation Trust,15/05/2020,DRESSINGS - PRE STERILE,Clinical Support,NHS LOGISTICS,1121016036,2.04,
Department of Health,Salisbury NHS Foundation Trust,15/05/2020,DRESSINGS - PRE STERILE,Clinical Support,NHS LOGISTICS,1121016036,1.36,
Department of Health,Salisbury NHS Foundation Trust,15/05/2020,MEDSURGCONS-OTHER,Clinical Support,NHS LOGISTICS,1121016036,3.38,
Department of Health,Salisbury NHS Foundation Trust,15/05/2020,MEDSURGCONS-OTHER,Clinical Support,NHS LOGISTICS,1121016036,1.53,
Department of Health,Salisbury NHS Foundation Trust,15/05/2020,MEDSURGCONS-OTHER,Clinical Support,NHS LOGISTICS,1121016036,2.39,
Department of Health,Salisbury NHS Foundation Trust,15/05/2020,MEDSURGCONS-OTHER,Clinical Support,NHS LOGISTICS,1121016036,6.4,
Department of Health,Salisbury NHS Foundation Trust,15/05/2020,TISSUES HAND TOWELS & TOILET PAPER,Clinical Support,NHS LOGISTICS,1121016036,7.32,
Department of Health,Salisbury NHS Foundation Trust,15/05/2020,TISSUES HAND TOWELS & TOILET PAPER,Clinical Support,NHS LOGISTICS,1121016036,0.9,
Department of Health,Salisbury NHS Foundation Trust,15/05/2020,DRESSINGS  -  PROCEDURE PACKS,Clinical Support,NHS LOGISTICS,1121016036,1.2,
Department of Health,Salisbury NHS Foundation Trust,15/05/2020,NON DISPOSABLE BED LINEN,Clinical Support,NHS LOGISTICS,1121016036,8.46,
Department of Health,Salisbury NHS Foundation Trust,15/05/2020,SERVICES FROM NHS BODIES,Clinical Support,NHS LOGISTICS,1121016036,12.96,
Department of Health,Salisbury NHS Foundation Trust,15/05/2020,SURGICAL INSTRUMENTS - GENERAL,Musculo-Skeletal,NHS LOGISTICS,1121016036,6.39,
Department of Health,Salisbury NHS Foundation Trust,15/05/2020,SURGICAL INSTRUMENTS - GENERAL,Musculo-Skeletal,NHS LOGISTICS,1121016036,0.42,
Department of Health,Salisbury NHS Foundation Trust,15/05/2020,TUBES,Clinical Support,NHS LOGISTICS,1121016036,3,
Department of Health,Salisbury NHS Foundation Trust,15/05/2020,NON DISPOSABLE BED LINEN,Clinical Support,NHS LOGISTICS,1121016036,14.1,
Department of Health,Salisbury NHS Foundation Trust,15/05/2020,CLEANING MATERIAL PRODUCTS SUNDRIES,Clinical Support,NHS LOGISTICS,1121016036,7.84,
Department of Health,Salisbury NHS Foundation Trust,15/05/2020,SERVICES FROM NHS BODIES,Clinical Support,NHS LOGISTICS,1121016036,7.05,
Department of Health,Salisbury NHS Foundation Trust,15/05/2020,NON DISPOSABLE BED LINEN,Facilities,NHS LOGISTICS,1121016036,11.28,
Department of Health,Salisbury NHS Foundation Trust,15/05/2020,DRESSINGS - PRE STERILE,Clinical Support,NHS LOGISTICS,1121016036,1,
Department of Health,Salisbury NHS Foundation Trust,15/05/2020,DRESSINGS - PRE STERILE,Clinical Support,NHS LOGISTICS,1121016036,2.04,
Department of Health,Salisbury NHS Foundation Trust,15/05/2020,PATIENT APPLIANCES,Clinical Support,NHS LOGISTICS,1121016036,3.54,
Department of Health,Salisbury NHS Foundation Trust,15/05/2020,PATIENT APPLIANCES,Clinical Support,NHS LOGISTICS,1121016036,16,
Department of Health,Salisbury NHS Foundation Trust,15/05/2020,DRESSINGS - PRE STERILE,Clinical Support,NHS LOGISTICS,1121016036,30.85,
Department of Health,Salisbury NHS Foundation Trust,15/05/2020,DRESSINGS - PRE STERILE,Clinical Support,NHS LOGISTICS,1121016036,5.56,
Department of Health,Salisbury NHS Foundation Trust,15/05/2020,DRESSINGS - PRE STERILE,Clinical Support,NHS LOGISTICS,1121016036,25.2,
Department of Health,Salisbury NHS Foundation Trust,15/05/2020,DRESSINGS - PRE STERILE,Clinical Support,NHS LOGISTICS,1121016036,126.14,
Department of Health,Salisbury NHS Foundation Trust,15/05/2020,DRESSINGS - PRE STERILE,Clinical Support,NHS LOGISTICS,1121016036,55.85,
Department of Health,Salisbury NHS Foundation Trust,15/05/2020,DRESSINGS - PRE STERILE,Clinical Support,NHS LOGISTICS,1121016036,6.4,
Department of Health,Salisbury NHS Foundation Trust,15/05/2020,DRESSINGS - PRE STERILE,Clinical Support,NHS LOGISTICS,1121016036,49.04,
Department of Health,Salisbury NHS Foundation Trust,15/05/2020,DRESSINGS - PRE STERILE,Clinical Support,NHS LOGISTICS,1121016036,22.53,
Department of Health,Salisbury NHS Foundation Trust,15/05/2020,MEDSURGCONS-OTHER,Facilities,NHS LOGISTICS,1121016036,30.65,
Department of Health,Salisbury NHS Foundation Trust,15/05/2020,MEDSURGCONS-OTHER,Facilities,NHS LOGISTICS,1121016036,30.65,
Department of Health,Salisbury NHS Foundation Trust,15/05/2020,LIQUID REFRESHMENTS,Facilities,NHS LOGISTICS,1121016036,3.09,
Department of Health,Salisbury NHS Foundation Trust,15/05/2020,EGGS MILK OTHER DAIRY PRODUCTS,Facilities,NHS LOGISTICS,1121016036,18.36,
Department of Health,Salisbury NHS Foundation Trust,15/05/2020,LIQUID REFRESHMENTS,Facilities,NHS LOGISTICS,1121016036,72.24,
Department of Health,Salisbury NHS Foundation Trust,15/05/2020,LIQUID REFRESHMENTS,Facilities,NHS LOGISTICS,1121016036,5.4,
Department of Health,Salisbury NHS Foundation Trust,15/05/2020,LIQUID REFRESHMENTS,Facilities,NHS LOGISTICS,1121016036,8.1,
Department of Health,Salisbury NHS Foundation Trust,15/05/2020,LIQUID REFRESHMENTS,Facilities,NHS LOGISTICS,1121016036,2.4,
Department of Health,Salisbury NHS Foundation Trust,15/05/2020,LIQUID REFRESHMENTS,Facilities,NHS LOGISTICS,1121016036,5.04,
Department of Health,Salisbury NHS Foundation Trust,15/05/2020,BEVERAGES & AMBIENT FOOD,Facilities,NHS LOGISTICS,1121016036,62.4,
Department of Health,Salisbury NHS Foundation Trust,15/05/2020,BEVERAGES & AMBIENT FOOD,Facilities,NHS LOGISTICS,1121016036,26.55,
Department of Health,Salisbury NHS Foundation Trust,15/05/2020,BEVERAGES & AMBIENT FOOD,Facilities,NHS LOGISTICS,1121016036,48,
Department of Health,Salisbury NHS Foundation Trust,15/05/2020,FRUIT & VEGETABLES,Facilities,NHS LOGISTICS,1121016036,9.18,
Department of Health,Salisbury NHS Foundation Trust,15/05/2020,FRUIT & VEGETABLES,Facilities,NHS LOGISTICS,1121016036,27,
Department of Health,Salisbury NHS Foundation Trust,15/05/2020,FRUIT & VEGETABLES,Facilities,NHS LOGISTICS,1121016036,14.1,
Department of Health,Salisbury NHS Foundation Trust,15/05/2020,FRUIT & VEGETABLES,Facilities,NHS LOGISTICS,1121016036,69.3,
Department of Health,Salisbury NHS Foundation Trust,15/05/2020,FRUIT & VEGETABLES,Facilities,NHS LOGISTICS,1121016036,16.2,
Department of Health,Salisbury NHS Foundation Trust,15/05/2020,FRUIT & VEGETABLES,Facilities,NHS LOGISTICS,1121016036,10.8,
Department of Health,Salisbury NHS Foundation Trust,15/05/2020,BEVERAGES & AMBIENT FOOD,Facilities,NHS LOGISTICS,1121016036,7.2,
Department of Health,Salisbury NHS Foundation Trust,15/05/2020,LIQUID REFRESHMENTS,Facilities,NHS LOGISTICS,1121016036,13.4,
Department of Health,Salisbury NHS Foundation Trust,15/05/2020,LIQUID REFRESHMENTS,Facilities,NHS LOGISTICS,1121016036,20.16,
Department of Health,Salisbury NHS Foundation Trust,15/05/2020,LIQUID REFRESHMENTS,Facilities,NHS LOGISTICS,1121016036,5.2,
Department of Health,Salisbury NHS Foundation Trust,15/05/2020,EGGS MILK OTHER DAIRY PRODUCTS,Facilities,NHS LOGISTICS,1121016036,51.66,
Department of Health,Salisbury NHS Foundation Trust,15/05/2020,BEVERAGES & AMBIENT FOOD,Facilities,NHS LOGISTICS,1121016036,13.65,
Department of Health,Salisbury NHS Foundation Trust,15/05/2020,BEVERAGES & AMBIENT FOOD,Facilities,NHS LOGISTICS,1121016036,13.5,
Department of Health,Salisbury NHS Foundation Trust,15/05/2020,BEVERAGES & AMBIENT FOOD,Facilities,NHS LOGISTICS,1121016036,17.22,
Department of Health,Salisbury NHS Foundation Trust,15/05/2020,BEVERAGES & AMBIENT FOOD,Facilities,NHS LOGISTICS,1121016036,5.15,
Department of Health,Salisbury NHS Foundation Trust,15/05/2020,BEVERAGES & AMBIENT FOOD,Facilities,NHS LOGISTICS,1121016036,4.26,
Department of Health,Salisbury NHS Foundation Trust,15/05/2020,BEVERAGES & AMBIENT FOOD,Facilities,NHS LOGISTICS,1121016036,3.28,
Department of Health,Salisbury NHS Foundation Trust,15/05/2020,BEVERAGES & AMBIENT FOOD,Facilities,NHS LOGISTICS,1121016036,10.8,
Department of Health,Salisbury NHS Foundation Trust,15/05/2020,BEVERAGES & AMBIENT FOOD,Facilities,NHS LOGISTICS,1121016036,3.7,
Department of Health,Salisbury NHS Foundation Trust,15/05/2020,BEVERAGES & AMBIENT FOOD,Facilities,NHS LOGISTICS,1121016036,7.38,
Department of Health,Salisbury NHS Foundation Trust,15/05/2020,BEVERAGES & AMBIENT FOOD,Facilities,NHS LOGISTICS,1121016036,17.45,
Department of Health,Salisbury NHS Foundation Trust,15/05/2020,BEVERAGES & AMBIENT FOOD,Facilities,NHS LOGISTICS,1121016036,5.82,
Department of Health,Salisbury NHS Foundation Trust,15/05/2020,FLAVOURINGS HERBS SPICES,Facilities,NHS LOGISTICS,1121016036,2.16,
Department of Health,Salisbury NHS Foundation Trust,15/05/2020,LIQUID REFRESHMENTS,Facilities,NHS LOGISTICS,1121016036,3.09,
Department of Health,Salisbury NHS Foundation Trust,15/05/2020,BEVERAGES & AMBIENT FOOD,Facilities,NHS LOGISTICS,1121016036,8.48,
Department of Health,Salisbury NHS Foundation Trust,15/05/2020,BEVERAGES & AMBIENT FOOD,Facilities,NHS LOGISTICS,1121016036,8.52,
Department of Health,Salisbury NHS Foundation Trust,15/05/2020,BEVERAGES & AMBIENT FOOD,Facilities,NHS LOGISTICS,1121016036,6.76,
Department of Health,Salisbury NHS Foundation Trust,15/05/2020,FLAVOURINGS HERBS SPICES,Facilities,NHS LOGISTICS,1121016036,1.75,
Department of Health,Salisbury NHS Foundation Trust,15/05/2020,BEVERAGES & AMBIENT FOOD,Facilities,NHS LOGISTICS,1121016036,13.8,
Department of Health,Salisbury NHS Foundation Trust,15/05/2020,BEVERAGES & AMBIENT FOOD,Facilities,NHS LOGISTICS,1121016036,3.88,
Department of Health,Salisbury NHS Foundation Trust,15/05/2020,FRUIT & VEGETABLES,Facilities,NHS LOGISTICS,1121016036,17.52,
Department of Health,Salisbury NHS Foundation Trust,15/05/2020,BEVERAGES & AMBIENT FOOD,Facilities,NHS LOGISTICS,1121016036,10.08,
Department of Health,Salisbury NHS Foundation Trust,15/05/2020,LIQUID REFRESHMENTS,Facilities,NHS LOGISTICS,1121016036,8.1,
Department of Health,Salisbury NHS Foundation Trust,15/05/2020,LIQUID REFRESHMENTS,Facilities,NHS LOGISTICS,1121016036,8.1,
Department of Health,Salisbury NHS Foundation Trust,15/05/2020,LIQUID REFRESHMENTS,Facilities,NHS LOGISTICS,1121016036,2.4,
Department of Health,Salisbury NHS Foundation Trust,15/05/2020,LIQUID REFRESHMENTS,Facilities,NHS LOGISTICS,1121016036,5.04,
Department of Health,Salisbury NHS Foundation Trust,15/05/2020,BEVERAGES & AMBIENT FOOD,Facilities,NHS LOGISTICS,1121016036,46.8,
Department of Health,Salisbury NHS Foundation Trust,15/05/2020,BEVERAGES & AMBIENT FOOD,Facilities,NHS LOGISTICS,1121016036,16,
Department of Health,Salisbury NHS Foundation Trust,15/05/2020,TISSUES HAND TOWELS & TOILET PAPER,Facilities,NHS LOGISTICS,1121016036,10.53,
Department of Health,Salisbury NHS Foundation Trust,15/05/2020,FRUIT & VEGETABLES,Facilities,NHS LOGISTICS,1121016036,10.5,
Department of Health,Salisbury NHS Foundation Trust,15/05/2020,FRUIT & VEGETABLES,Facilities,NHS LOGISTICS,1121016036,18,
Department of Health,Salisbury NHS Foundation Trust,15/05/2020,FRUIT & VEGETABLES,Facilities,NHS LOGISTICS,1121016036,14.1,
Department of Health,Salisbury NHS Foundation Trust,15/05/2020,FRUIT & VEGETABLES,Facilities,NHS LOGISTICS,1121016036,14.04,
Department of Health,Salisbury NHS Foundation Trust,15/05/2020,FRUIT & VEGETABLES,Facilities,NHS LOGISTICS,1121016036,18.5,
Department of Health,Salisbury NHS Foundation Trust,15/05/2020,FRUIT & VEGETABLES,Facilities,NHS LOGISTICS,1121016036,13.8,
Department of Health,Salisbury NHS Foundation Trust,15/05/2020,FRUIT & VEGETABLES,Facilities,NHS LOGISTICS,1121016036,19.98,
Department of Health,Salisbury NHS Foundation Trust,15/05/2020,FRUIT & VEGETABLES,Facilities,NHS LOGISTICS,1121016036,14.94,
Department of Health,Salisbury NHS Foundation Trust,15/05/2020,FRUIT & VEGETABLES,Facilities,NHS LOGISTICS,1121016036,16.2,
Department of Health,Salisbury NHS Foundation Trust,15/05/2020,FRUIT & VEGETABLES,Facilities,NHS LOGISTICS,1121016036,10.8,
Department of Health,Salisbury NHS Foundation Trust,15/05/2020,BEVERAGES & AMBIENT FOOD,Facilities,NHS LOGISTICS,1121016036,6.08,
Department of Health,Salisbury NHS Foundation Trust,15/05/2020,MEDSURGCONS-OTHER,Clinical Support,NHS LOGISTICS,1121016036,50.56,
Department of Health,Salisbury NHS Foundation Trust,15/05/2020,SURGICAL INSTRUMENTS - DISPOSABLE,Medicine,NHS LOGISTICS,1121016036,1.64,
Department of Health,Salisbury NHS Foundation Trust,15/05/2020,SOFT FURNISHINGS,Facilities,NHS LOGISTICS,1121016036,120.96,
Department of Health,Salisbury NHS Foundation Trust,15/05/2020,M & S EQUIPELECTEQUIPINST - OTHER,Facilities,NHS LOGISTICS,1121016036,19.44,
Department of Health,Salisbury NHS Foundation Trust,15/05/2020,COST OF SALES,Medicine,NHS LOGISTICS,1121016036,71.64,
Department of Health,Salisbury NHS Foundation Trust,15/05/2020,COST OF SALES,Medicine,NHS LOGISTICS,1121016036,71.64,
Department of Health,Salisbury NHS Foundation Trust,15/05/2020,MEDSURGCONS-OTHER,Medicine,NHS LOGISTICS,1121016036,5,
Department of Health,Salisbury NHS Foundation Trust,15/05/2020,MEDSURGCONS-OTHER,Medicine,NHS LOGISTICS,1121016036,40,
Department of Health,Salisbury NHS Foundation Trust,15/05/2020,M & S EQUIPELECTEQUIPINST - OTHER,Facilities,NHS LOGISTICS,1121016036,19.44,
Department of Health,Salisbury NHS Foundation Trust,15/05/2020,SURGICAL INSTRUMENTS - DISPOSABLE,Medicine,NHS LOGISTICS,1121016036,3.16,
Department of Health,Salisbury NHS Foundation Trust,15/05/2020,MED PROSTH - PACEMAKERS,Surgery,NHS LOGISTICS,1121016036,108,
Department of Health,Salisbury NHS Foundation Trust,15/05/2020,DRESSINGS - PRE STERILE,Medicine,NHS LOGISTICS,1121016036,5.91,
Department of Health,Salisbury NHS Foundation Trust,15/05/2020,DRESSINGS - PRE STERILE,Medicine,NHS LOGISTICS,1121016036,5.91,
Department of Health,Salisbury NHS Foundation Trust,15/05/2020,MED SURG EQUIP REP MAINT CLEANING,Clinical Support,NHS LOGISTICS,1121016036,30.14,
Department of Health,Salisbury NHS Foundation Trust,15/05/2020,DRESSINGS - PRE STERILE,Musculo-Skeletal,NHS LOGISTICS,1121016036,5.52,
Department of Health,Salisbury NHS Foundation Trust,15/05/2020,PATIENTS BEDWEAR UNISEX,Medicine,NHS LOGISTICS,1121016036,19.45,
Department of Health,Salisbury NHS Foundation Trust,15/05/2020,MEDSURGCONS-OTHER,Medicine,NHS LOGISTICS,1121016036,17.54,
Department of Health,Salisbury NHS Foundation Trust,15/05/2020,ANAESTHETIC EQUIPMENT ACCESSORIES,Musculo-Skeletal,NHS LOGISTICS,1121016036,3.76,
Department of Health,Salisbury NHS Foundation Trust,15/05/2020,DRESSINGS - PRE STERILE,Musculo-Skeletal,NHS LOGISTICS,1121016036,5.52,
Department of Health,Salisbury NHS Foundation Trust,15/05/2020,DISPOSABLE THEATRE DRAPES WIPES,Clinical Support,NHS LOGISTICS,1121016036,0.36,
Department of Health,Salisbury NHS Foundation Trust,15/05/2020,ANAESTHETIC EQUIPMENT ACCESSORIES,Musculo-Skeletal,NHS LOGISTICS,1121016036,6,
Department of Health,Salisbury NHS Foundation Trust,15/05/2020,TUBES,Surgery,NHS LOGISTICS,1121016036,27.8,
Department of Health,Salisbury NHS Foundation Trust,15/05/2020,MEDSURGCONS-OTHER,Medicine,NHS LOGISTICS,1121016036,144.8,
Department of Health,Salisbury NHS Foundation Trust,15/05/2020,MED PROSTH - PACEMAKERS,Medicine,NHS LOGISTICS,1121016036,6,
Department of Health,Salisbury NHS Foundation Trust,15/05/2020,MED PROSTH - OTHER,Medicine,NHS LOGISTICS,1121016036,180,
Department of Health,Salisbury NHS Foundation Trust,15/05/2020,MED PROSTH - OTHER,Medicine,NHS LOGISTICS,1121016036,180,
Department of Health,Salisbury NHS Foundation Trust,15/05/2020,CLEANING MATERIAL PRODUCTS SUNDRIES,Clinical Support,NHS LOGISTICS,1121016036,1.32,
Department of Health,Salisbury NHS Foundation Trust,15/05/2020,BAGS SACKS - OTHER,Clinical Support,NHS LOGISTICS,1121016036,3.16,
Department of Health,Salisbury NHS Foundation Trust,15/05/2020,MEDSURGCONS-OTHER,Medicine,NHS LOGISTICS,1121016036,288,
Department of Health,Salisbury NHS Foundation Trust,15/05/2020,MEDSURGCONS-OTHER,Medicine,NHS LOGISTICS,1121016036,38.75,
Department of Health,Salisbury NHS Foundation Trust,15/05/2020,MEDSURGCONS-OTHER,Medicine,NHS LOGISTICS,1121016036,128,
Department of Health,Salisbury NHS Foundation Trust,15/05/2020,MEDSURGCONS-OTHER,Medicine,NHS LOGISTICS,1121016036,191.98,
Department of Health,Salisbury NHS Foundation Trust,15/05/2020,MEDSURGCONS-OTHER,Medicine,NHS LOGISTICS,1121016036,383.95,
Department of Health,Salisbury NHS Foundation Trust,15/05/2020,MEDSURGCONS-OTHER,Medicine,NHS LOGISTICS,1121016036,191.98,
Department of Health,Salisbury NHS Foundation Trust,15/05/2020,MEDSURGCONS-OTHER,Medicine,NHS LOGISTICS,1121016036,383.95,
Department of Health,Salisbury NHS Foundation Trust,15/05/2020,MEDSURGCONS-OTHER,Medicine,NHS LOGISTICS,1121016036,64,
Department of Health,Salisbury NHS Foundation Trust,15/05/2020,MEDSURGCONS-OTHER,Medicine,NHS LOGISTICS,1121016036,40,
Department of Health,Salisbury NHS Foundation Trust,15/05/2020,MEDSURGCONS-OTHER,Medicine,NHS LOGISTICS,1121016036,40,
Department of Health,Salisbury NHS Foundation Trust,15/05/2020,SURGICAL INSTRUMENTS - GENERAL,Clinical Support,NHS LOGISTICS,1121016036,34.5,
Department of Health,Salisbury NHS Foundation Trust,15/05/2020,DISPOSABLE THEATRE DRAPES WIPES,Facilities,NHS LOGISTICS,1121016036,43.78,
Department of Health,Salisbury NHS Foundation Trust,15/05/2020,DISPOSABLE THEATRE DRAPES WIPES,Facilities,NHS LOGISTICS,1121016036,43.78,
Department of Health,Salisbury NHS Foundation Trust,15/05/2020,LAB EQUIP-LABORATORY APPARATUS,Surgery,NHS LOGISTICS,1121016036,0.89,
Department of Health,Salisbury NHS Foundation Trust,15/05/2020,DRESSINGS - PRE STERILE,Surgery,NHS LOGISTICS,1121016036,28,
Department of Health,Salisbury NHS Foundation Trust,15/05/2020,MEDSURGCONS-OTHER,Surgery,NHS LOGISTICS,1121016036,80,
Department of Health,Salisbury NHS Foundation Trust,15/05/2020,MEDSURGCONS-OTHER,Medicine,NHS LOGISTICS,1121016036,60,
Department of Health,Salisbury NHS Foundation Trust,15/05/2020,MED PROSTH - PACEMAKERS,Medicine,NHS LOGISTICS,1121016036,1320,
Department of Health,Salisbury NHS Foundation Trust,15/05/2020,MEDSURGCONS-OTHER,Medicine,NHS LOGISTICS,1121016036,215,
Department of Health,Salisbury NHS Foundation Trust,15/05/2020,MEDSURGCONS-OTHER,Medicine,NHS LOGISTICS,1121016036,430,
Department of Health,Salisbury NHS Foundation Trust,15/05/2020,MED PROSTH - PACEMAKERS,Medicine,NHS LOGISTICS,1121016036,550,
Department of Health,Salisbury NHS Foundation Trust,15/05/2020,REFUSE DISPOSAL-CLIN CONT SERVICE,Facilities,NHS LOGISTICS,1121016036,55.04,
Department of Health,Salisbury NHS Foundation Trust,15/05/2020,DRESSINGS  -  PROCEDURE PACKS,Clinical Support,NHS LOGISTICS,1121016036,110.75,
Department of Health,Salisbury NHS Foundation Trust,15/05/2020,DRESSINGS  -  PROCEDURE PACKS,Clinical Support,NHS LOGISTICS,1121016036,96.8,
Department of Health,Salisbury NHS Foundation Trust,15/05/2020,TISSUES HAND TOWELS & TOILET PAPER,Clinical Support,NHS LOGISTICS,1121016036,4.21,
Department of Health,Salisbury NHS Foundation Trust,15/05/2020,SURGICAL INSTRUMENTS - GENERAL,Clinical Support,NHS LOGISTICS,1121016036,127.5,
Department of Health,Salisbury NHS Foundation Trust,15/05/2020,SURGICAL INSTRUMENTS - GENERAL,Clinical Support,NHS LOGISTICS,1121016036,2,
Department of Health,Salisbury NHS Foundation Trust,15/05/2020,DRUGS,Clinical Support,NHS LOGISTICS,1121016036,14.47,
Department of Health,Salisbury NHS Foundation Trust,15/05/2020,MEDSURGCONS-OTHER,Clinical Support,NHS LOGISTICS,1121016036,3.11,
Department of Health,Salisbury NHS Foundation Trust,15/05/2020,NON DISPOSABLE BED LINEN,Clinical Support,NHS LOGISTICS,1121016036,9.45,
Department of Health,Salisbury NHS Foundation Trust,15/05/2020,NON DISPOSABLE BED LINEN,Clinical Support,NHS LOGISTICS,1121016036,1.13,
Department of Health,Salisbury NHS Foundation Trust,15/05/2020,DISPOSABLE THEATRE DRAPES WIPES,Clinical Support,NHS LOGISTICS,1121016036,0.59,
Department of Health,Salisbury NHS Foundation Trust,15/05/2020,MEDSURGCONS-OTHER,Clinical Support,NHS LOGISTICS,1121016036,16,
Department of Health,Salisbury NHS Foundation Trust,15/05/2020,BAGS SACKS - OTHER,Facilities,NHS LOGISTICS,1121016036,4.87,
Department of Health,Salisbury NHS Foundation Trust,15/05/2020,BAGS SACKS - OTHER,Facilities,NHS LOGISTICS,1121016036,3.31,
Department of Health,Salisbury NHS Foundation Trust,15/05/2020,LIQUID REFRESHMENTS,Facilities,NHS LOGISTICS,1121016036,1.08,
Department of Health,Salisbury NHS Foundation Trust,15/05/2020,CLEANING MATERIAL PRODUCTS SUNDRIES,Facilities,NHS LOGISTICS,1121016036,7.3,
Department of Health,Salisbury NHS Foundation Trust,15/05/2020,BAGS SACKS - OTHER,Facilities,NHS LOGISTICS,1121016036,17.86,
Department of Health,Salisbury NHS Foundation Trust,15/05/2020,BAGS SACKS - OTHER,Facilities,NHS LOGISTICS,1121016036,17.47,
Department of Health,Salisbury NHS Foundation Trust,15/05/2020,CLEANING MATERIAL PRODUCTS SUNDRIES,Facilities,NHS LOGISTICS,1121016036,29.5,
Department of Health,Salisbury NHS Foundation Trust,15/05/2020,CLEANING MATERIAL PRODUCTS SUNDRIES,Facilities,NHS LOGISTICS,1121016036,1.6,
Department of Health,Salisbury NHS Foundation Trust,15/05/2020,BAGS SACKS - OTHER,Facilities,NHS LOGISTICS,1121016036,3.95,
Department of Health,Salisbury NHS Foundation Trust,15/05/2020,CLEANING MATERIAL PRODUCTS SUNDRIES,Facilities,NHS LOGISTICS,1121016036,12.74,
Department of Health,Salisbury NHS Foundation Trust,15/05/2020,TISSUES HAND TOWELS & TOILET PAPER,Facilities,NHS LOGISTICS,1121016036,101.14,
Department of Health,Salisbury NHS Foundation Trust,15/05/2020,CLEANING MATERIAL PRODUCTS SUNDRIES,Facilities,NHS LOGISTICS,1121016036,2.46,
Department of Health,Salisbury NHS Foundation Trust,15/05/2020,DISPOSABLE THEATRE DRAPES WIPES,Facilities,NHS LOGISTICS,1121016036,58.37,
Department of Health,Salisbury NHS Foundation Trust,15/05/2020,PATIENTS BABY WEAR,Medicine,NHS LOGISTICS,1121016036,1.33,
Department of Health,Salisbury NHS Foundation Trust,15/05/2020,PATIENTS BABY WEAR,Medicine,NHS LOGISTICS,1121016036,1.23,
Department of Health,Salisbury NHS Foundation Trust,15/05/2020,PATIENTS BABY WEAR,Medicine,NHS LOGISTICS,1121016036,1.19,
Department of Health,Salisbury NHS Foundation Trust,15/05/2020,OTHER MEDICAL SUPPLIES,Medicine,NHS LOGISTICS,1121016036,8.2,
Department of Health,Salisbury NHS Foundation Trust,15/05/2020,DRESSINGS - PRE STERILE,Medicine,NHS LOGISTICS,1121016036,0.24,
Department of Health,Salisbury NHS Foundation Trust,15/05/2020,MEDSURGCONS-OTHER,Medicine,NHS LOGISTICS,1121016036,1.09,
Department of Health,Salisbury NHS Foundation Trust,15/05/2020,TUBES,Medicine,NHS LOGISTICS,1121016036,1.16,
Department of Health,Salisbury NHS Foundation Trust,15/05/2020,DRESSINGS - PRE STERILE,Medicine,NHS LOGISTICS,1121016036,0.14,
Department of Health,Salisbury NHS Foundation Trust,15/05/2020,ANAESTHETIC EQUIPMENT ACCESSORIES,Medicine,NHS LOGISTICS,1121016036,0.58,
Department of Health,Salisbury NHS Foundation Trust,15/05/2020,MEDSURGCONS-OTHER,Medicine,NHS LOGISTICS,1121016036,2.5,
Department of Health,Salisbury NHS Foundation Trust,15/05/2020,MEDSURGCONS-OTHER,Medicine,NHS LOGISTICS,1121016036,1.02,
Department of Health,Salisbury NHS Foundation Trust,15/05/2020,OTHER MEDICAL SUPPLIES,Medicine,NHS LOGISTICS,1121016036,1.42,
Department of Health,Salisbury NHS Foundation Trust,15/05/2020,SURGICAL INSTRUMENTS - DISPOSABLE,Medicine,NHS LOGISTICS,1121016036,1.8,
Department of Health,Salisbury NHS Foundation Trust,15/05/2020,SURGICAL INSTRUMENTS - DISPOSABLE,Medicine,NHS LOGISTICS,1121016036,2.28,
Department of Health,Salisbury NHS Foundation Trust,15/05/2020,SURGICAL INSTRUMENTS - DISPOSABLE,Medicine,NHS LOGISTICS,1121016036,1.35,
Department of Health,Salisbury NHS Foundation Trust,15/05/2020,PATIENTS INCONTINENCE,Medicine,NHS LOGISTICS,1121016036,2.81,
Department of Health,Salisbury NHS Foundation Trust,15/05/2020,PATIENTS INCONTINENCE,Medicine,NHS LOGISTICS,1121016036,0.45,
Department of Health,Salisbury NHS Foundation Trust,15/05/2020,PATIENT APPLIANCES,Medicine,NHS LOGISTICS,1121016036,0.66,
Department of Health,Salisbury NHS Foundation Trust,15/05/2020,DRESSINGS - PRE STERILE,Medicine,NHS LOGISTICS,1121016036,1.37,
Department of Health,Salisbury NHS Foundation Trust,15/05/2020,DRESSINGS - PRE STERILE,Medicine,NHS LOGISTICS,1121016036,1.37,
Department of Health,Salisbury NHS Foundation Trust,15/05/2020,DRESSINGS - PRE STERILE,Medicine,NHS LOGISTICS,1121016036,1.44,
Department of Health,Salisbury NHS Foundation Trust,15/05/2020,DRESSINGS - PRE STERILE,Medicine,NHS LOGISTICS,1121016036,0.72,
Department of Health,Salisbury NHS Foundation Trust,15/05/2020,MEDSURGCONS-OTHER,Medicine,NHS LOGISTICS,1121016036,2.56,
Department of Health,Salisbury NHS Foundation Trust,15/05/2020,TISSUES HAND TOWELS & TOILET PAPER,Medicine,NHS LOGISTICS,1121016036,0.12,
Department of Health,Salisbury NHS Foundation Trust,15/05/2020,DENTAL SURGERY SUNDRIES,Medicine,NHS LOGISTICS,1121016036,0.5,
Department of Health,Salisbury NHS Foundation Trust,15/05/2020,NON DISPOSABLE BED LINEN,Medicine,NHS LOGISTICS,1121016036,2.26,
Department of Health,Salisbury NHS Foundation Trust,15/05/2020,DISPOSABLE THEATRE DRAPES WIPES,Medicine,NHS LOGISTICS,1121016036,0.59,
Department of Health,Salisbury NHS Foundation Trust,15/05/2020,OTHER MEDICAL SUPPLIES,Clinical Support,NHS LOGISTICS,1121016036,0.36,
Department of Health,Salisbury NHS Foundation Trust,15/05/2020,SURGICAL INSTRUMENTS - GENERAL,Clinical Support,NHS LOGISTICS,1121016036,12.92,
Department of Health,Salisbury NHS Foundation Trust,15/05/2020,OTHER MEDICAL SUPPLIES,Clinical Support,NHS LOGISTICS,1121016036,4.14,
Department of Health,Salisbury NHS Foundation Trust,15/05/2020,OTHER MEDICAL SUPPLIES,Clinical Support,NHS LOGISTICS,1121016036,6.52,
Department of Health,Salisbury NHS Foundation Trust,15/05/2020,OTHER MEDICAL SUPPLIES,Clinical Support,NHS LOGISTICS,1121016036,1.07,
Department of Health,Salisbury NHS Foundation Trust,15/05/2020,ELECTRICAL EQUIPMENT,Medicine,NHS LOGISTICS,1121016036,0.3,
Department of Health,Salisbury NHS Foundation Trust,15/05/2020,MEDSURGCONS-OTHER,Medicine,NHS LOGISTICS,1121016036,8.98,
Department of Health,Salisbury NHS Foundation Trust,15/05/2020,TUBES,Medicine,NHS LOGISTICS,1121016036,1.16,
Department of Health,Salisbury NHS Foundation Trust,15/05/2020,ANAESTHETIC EQUIPMENT ACCESSORIES,Medicine,NHS LOGISTICS,1121016036,0.29,
Department of Health,Salisbury NHS Foundation Trust,15/05/2020,DRESSINGS  -  PROCEDURE PACKS,Medicine,NHS LOGISTICS,1121016036,0.21,
Department of Health,Salisbury NHS Foundation Trust,15/05/2020,OTHER MEDICAL SUPPLIES,Medicine,NHS LOGISTICS,1121016036,1.42,
Department of Health,Salisbury NHS Foundation Trust,15/05/2020,MEDSURGCONS-OTHER,Medicine,NHS LOGISTICS,1121016036,1.28,
Department of Health,Salisbury NHS Foundation Trust,15/05/2020,TUBES,Medicine,NHS LOGISTICS,1121016036,0.6,
Department of Health,Salisbury NHS Foundation Trust,15/05/2020,OFFICE EQUIP MACHINERY  -  OTHER,Clinical Support,NHS LOGISTICS,1121016036,4.36,
Department of Health,Salisbury NHS Foundation Trust,15/05/2020,OFFICE EQUIP MACHINERY  -  OTHER,Clinical Support,NHS LOGISTICS,1121016036,2.91,
Department of Health,Salisbury NHS Foundation Trust,15/05/2020,DRESSINGS - PRE STERILE,Clinical Support,NHS LOGISTICS,1121016036,0.87,
Department of Health,Salisbury NHS Foundation Trust,15/05/2020,PATIENTS INCONTINENCE,Surgery,NHS LOGISTICS,1121016036,1.52,
Department of Health,Salisbury NHS Foundation Trust,15/05/2020,PATIENT APPLIANCES,Surgery,NHS LOGISTICS,1121016036,1.28,
Department of Health,Salisbury NHS Foundation Trust,15/05/2020,PATIENT APPLIANCES,Clinical Support,NHS LOGISTICS,1121016036,0.49,
Department of Health,Salisbury NHS Foundation Trust,15/05/2020,DRESSINGS - PRE STERILE,Clinical Support,NHS LOGISTICS,1121016036,0.56,
Department of Health,Salisbury NHS Foundation Trust,15/05/2020,TUBES,Clinical Support,NHS LOGISTICS,1121016036,1.05,
Department of Health,Salisbury NHS Foundation Trust,15/05/2020,ELECTRICAL EQUIPMENT,Clinical Support,NHS LOGISTICS,1121016036,0.59,
Department of Health,Salisbury NHS Foundation Trust,15/05/2020,MEDSURGCONS-OTHER,Clinical Support,NHS LOGISTICS,1121016036,5.83,
Department of Health,Salisbury NHS Foundation Trust,15/05/2020,CLEANING MATERIAL PRODUCTS SUNDRIES,Clinical Support,NHS LOGISTICS,1121016036,1.32,
Department of Health,Salisbury NHS Foundation Trust,15/05/2020,TISSUES HAND TOWELS & TOILET PAPER,Clinical Support,NHS LOGISTICS,1121016036,0.12,
Department of Health,Salisbury NHS Foundation Trust,15/05/2020,MEDSURGCONS-OTHER,Clinical Support,NHS LOGISTICS,1121016036,12.96,
Department of Health,Salisbury NHS Foundation Trust,15/05/2020,TUBES,Clinical Support,NHS LOGISTICS,1121016036,1.16,
Department of Health,Salisbury NHS Foundation Trust,15/05/2020,OTHER MEDICAL SUPPLIES,Clinical Support,NHS LOGISTICS,1121016036,1.2,
Department of Health,Salisbury NHS Foundation Trust,15/05/2020,OTHER MEDICAL SUPPLIES,Clinical Support,NHS LOGISTICS,1121016036,0.54,
Department of Health,Salisbury NHS Foundation Trust,15/05/2020,DRESSINGS - PRE STERILE,Clinical Support,NHS LOGISTICS,1121016036,9.82,
Department of Health,Salisbury NHS Foundation Trust,15/05/2020,DRESSINGS - PRE STERILE,Clinical Support,NHS LOGISTICS,1121016036,16.2,
Department of Health,Salisbury NHS Foundation Trust,15/05/2020,DRESSINGS - PRE STERILE,Clinical Support,NHS LOGISTICS,1121016036,18.22,
Department of Health,Salisbury NHS Foundation Trust,15/05/2020,MEDSURGCONS-OTHER,Clinical Support,NHS LOGISTICS,1121016036,1.06,
Department of Health,Salisbury NHS Foundation Trust,15/05/2020,DISPOSABLE THEATRE DRAPES WIPES,Clinical Support,NHS LOGISTICS,1121016036,0.59,
Department of Health,Salisbury NHS Foundation Trust,15/05/2020,DISPOSABLE THEATRE DRAPES WIPES,Corporate - Finance & Procurement,NHS LOGISTICS,1121016036,167.2,
Department of Health,Salisbury NHS Foundation Trust,15/05/2020,TELECOMS - TELEPHONES,Surgery,NHS LOGISTICS,1121016036,7.5,
Department of Health,Salisbury NHS Foundation Trust,15/05/2020,DISPOSABLE THEATRE DRAPES WIPES,Medicine,NHS LOGISTICS,1121016036,33.46,
Department of Health,Salisbury NHS Foundation Trust,15/05/2020,DISPOSABLE THEATRE DRAPES WIPES,Medicine,NHS LOGISTICS,1121016036,33.46,
Department of Health,Salisbury NHS Foundation Trust,15/05/2020,DISPOSABLE THEATRE DRAPES WIPES,Medicine,NHS LOGISTICS,1121016036,33.46,
Department of Health,Salisbury NHS Foundation Trust,15/05/2020,DISPOSABLE THEATRE DRAPES WIPES,Clinical Support,NHS LOGISTICS,1121016036,33.46,
Department of Health,Salisbury NHS Foundation Trust,15/05/2020,DISPOSABLE THEATRE DRAPES WIPES,Surgery,NHS LOGISTICS,1121016036,33.46,
Department of Health,Salisbury NHS Foundation Trust,15/05/2020,DISPOSABLE THEATRE DRAPES WIPES,Surgery,NHS LOGISTICS,1121016036,33.46,
Department of Health,Salisbury NHS Foundation Trust,15/05/2020,DISPOSABLE THEATRE DRAPES WIPES,Medicine,NHS LOGISTICS,1121016036,33.46,
Department of Health,Salisbury NHS Foundation Trust,15/05/2020,DISPOSABLE THEATRE DRAPES WIPES,Musculo-Skeletal,NHS LOGISTICS,1121016036,33.46,
Department of Health,Salisbury NHS Foundation Trust,15/05/2020,DISPOSABLE THEATRE DRAPES WIPES,Surgery,NHS LOGISTICS,1121016036,33.46,
Department of Health,Salisbury NHS Foundation Trust,15/05/2020,DISPOSABLE THEATRE DRAPES WIPES,Medicine,NHS LOGISTICS,1121016036,33.46,
Department of Health,Salisbury NHS Foundation Trust,15/05/2020,BAGS SACKS - OTHER,Clinical Support,NHS LOGISTICS,1121016036,0.13,
Department of Health,Salisbury NHS Foundation Trust,15/05/2020,DISPOSABLE THEATRE DRAPES WIPES,Clinical Support,NHS LOGISTICS,1121016036,0.35,
Department of Health,Salisbury NHS Foundation Trust,15/05/2020,DRESSINGS - PRE STERILE,Clinical Support,NHS LOGISTICS,1121016036,1,
Department of Health,Salisbury NHS Foundation Trust,15/05/2020,DRESSINGS  -  PROCEDURE PACKS,Clinical Support,NHS LOGISTICS,1121016036,0.08,
Department of Health,Salisbury NHS Foundation Trust,15/05/2020,SERVICES FROM NHS BODIES,Clinical Support,NHS LOGISTICS,1121016036,3.6,
Department of Health,Salisbury NHS Foundation Trust,15/05/2020,BABY TEXTURE MODIFIED FOODS,Clinical Support,NHS LOGISTICS,1121016036,3.55,
Department of Health,Salisbury NHS Foundation Trust,15/05/2020,BABY TEXTURE MODIFIED FOODS,Clinical Support,NHS LOGISTICS,1121016036,3.94,
Department of Health,Salisbury NHS Foundation Trust,15/05/2020,DRESSINGS  -  PROCEDURE PACKS,Clinical Support,NHS LOGISTICS,1121016036,0.32,
Department of Health,Salisbury NHS Foundation Trust,15/05/2020,M & S EQUIPELECTEQUIPINST - OTHER,Clinical Support,NHS LOGISTICS,1121016036,30,
Department of Health,Salisbury NHS Foundation Trust,15/05/2020,PATIENTS BEDWEAR UNISEX,Clinical Support,NHS LOGISTICS,1121016036,7.5,
Department of Health,Salisbury NHS Foundation Trust,15/05/2020,ANAESTHETIC EQUIPMENT ACCESSORIES,Surgery,NHS LOGISTICS,1121016036,30.24,
Department of Health,Salisbury NHS Foundation Trust,15/05/2020,ANAESTHETIC EQUIPMENT ACCESSORIES,Surgery,NHS LOGISTICS,1121016036,30.24,
Department of Health,Salisbury NHS Foundation Trust,15/05/2020,ANAESTHETIC EQUIPMENT ACCESSORIES,Surgery,NHS LOGISTICS,1121016036,12.5,
Department of Health,Salisbury NHS Foundation Trust,15/05/2020,TUBES,Surgery,NHS LOGISTICS,1121016036,4.19,
Department of Health,Salisbury NHS Foundation Trust,15/05/2020,MEDSURGCONS-OTHER,Surgery,NHS LOGISTICS,1121016036,4.06,
Department of Health,Salisbury NHS Foundation Trust,15/05/2020,MEDSURGCONS-OTHER,Surgery,NHS LOGISTICS,1121016036,4.34,
Department of Health,Salisbury NHS Foundation Trust,15/05/2020,MEDSURGCONS-OTHER,Surgery,NHS LOGISTICS,1121016036,1.22,
Department of Health,Salisbury NHS Foundation Trust,15/05/2020,MEDSURGCONS-OTHER,Surgery,NHS LOGISTICS,1121016036,0.96,
Department of Health,Salisbury NHS Foundation Trust,15/05/2020,MEDSURGCONS-OTHER,Surgery,NHS LOGISTICS,1121016036,38.53,
Department of Health,Salisbury NHS Foundation Trust,15/05/2020,OTHER MEDICAL SUPPLIES,Surgery,NHS LOGISTICS,1121016036,3.9,
Department of Health,Salisbury NHS Foundation Trust,15/05/2020,OTHER MEDICAL SUPPLIES,Surgery,NHS LOGISTICS,1121016036,1.33,
Department of Health,Salisbury NHS Foundation Trust,15/05/2020,OTHER MEDICAL SUPPLIES,Surgery,NHS LOGISTICS,1121016036,2.14,
Department of Health,Salisbury NHS Foundation Trust,15/05/2020,DRUGS,Surgery,NHS LOGISTICS,1121016036,8.5,
Department of Health,Salisbury NHS Foundation Trust,15/05/2020,TUBES,Surgery,NHS LOGISTICS,1121016036,2.4,
Department of Health,Salisbury NHS Foundation Trust,15/05/2020,DISPOSABLE THEATRE DRAPES WIPES,Surgery,NHS LOGISTICS,1121016036,33.46,
Department of Health,Salisbury NHS Foundation Trust,15/05/2020,DISPOSABLE THEATRE DRAPES WIPES,Surgery,NHS LOGISTICS,1121016036,33.46,
Department of Health,Salisbury NHS Foundation Trust,15/05/2020,DISPOSABLE THEATRE DRAPES WIPES,Medicine,NHS LOGISTICS,1121016036,33.46,
Department of Health,Salisbury NHS Foundation Trust,15/05/2020,DISPOSABLE THEATRE DRAPES WIPES,Medicine,NHS LOGISTICS,1121016036,33.46,
Department of Health,Salisbury NHS Foundation Trust,15/05/2020,DISPOSABLE THEATRE DRAPES WIPES,Surgery,NHS LOGISTICS,1121016036,33.46,
Department of Health,Salisbury NHS Foundation Trust,15/05/2020,DISPOSABLE THEATRE DRAPES WIPES,Clinical Support,NHS LOGISTICS,1121016036,33.46,
Department of Health,Salisbury NHS Foundation Trust,15/05/2020,DISPOSABLE THEATRE DRAPES WIPES,Clinical Support,NHS LOGISTICS,1121016036,33.46,
Department of Health,Salisbury NHS Foundation Trust,15/05/2020,DISPOSABLE THEATRE DRAPES WIPES,Musculo-Skeletal,NHS LOGISTICS,1121016036,33.46,
Department of Health,Salisbury NHS Foundation Trust,15/05/2020,DISPOSABLE THEATRE DRAPES WIPES,Surgery,NHS LOGISTICS,1121016036,33.46,
Department of Health,Salisbury NHS Foundation Trust,15/05/2020,DISPOSABLE THEATRE DRAPES WIPES,Medicine,NHS LOGISTICS,1121016036,33.46,
Department of Health,Salisbury NHS Foundation Trust,15/05/2020,OTHER MEDICAL SUPPLIES,Facilities,NHS LOGISTICS,1121016036,16.4,
Department of Health,Salisbury NHS Foundation Trust,15/05/2020,TISSUES HAND TOWELS & TOILET PAPER,Facilities,NHS LOGISTICS,1121016036,0.24,
Department of Health,Salisbury NHS Foundation Trust,15/05/2020,TUBES,Facilities,NHS LOGISTICS,1121016036,1.16,
Department of Health,Salisbury NHS Foundation Trust,15/05/2020,DRESSINGS - PRE STERILE,Facilities,NHS LOGISTICS,1121016036,0.28,
Department of Health,Salisbury NHS Foundation Trust,15/05/2020,ANAESTHETIC EQUIPMENT ACCESSORIES,Facilities,NHS LOGISTICS,1121016036,0.96,
Department of Health,Salisbury NHS Foundation Trust,15/05/2020,TOILETRIES PERSONAL HYGIENE PRODUCT,Facilities,NHS LOGISTICS,1121016036,0.71,
Department of Health,Salisbury NHS Foundation Trust,15/05/2020,OTHER MEDICAL SUPPLIES,Facilities,NHS LOGISTICS,1121016036,2.85,
Department of Health,Salisbury NHS Foundation Trust,15/05/2020,OTHER MEDICAL SUPPLIES,Facilities,NHS LOGISTICS,1121016036,1.07,
Department of Health,Salisbury NHS Foundation Trust,15/05/2020,SURGICAL INSTRUMENTS - DISPOSABLE,Facilities,NHS LOGISTICS,1121016036,0.9,
Department of Health,Salisbury NHS Foundation Trust,15/05/2020,TOILETRIES PERSONAL HYGIENE PRODUCT,Facilities,NHS LOGISTICS,1121016036,0.58,
Department of Health,Salisbury NHS Foundation Trust,15/05/2020,DRESSINGS - PRE STERILE,Facilities,NHS LOGISTICS,1121016036,1.63,
Department of Health,Salisbury NHS Foundation Trust,15/05/2020,MEDSURGCONS-OTHER,Facilities,NHS LOGISTICS,1121016036,1.28,
Department of Health,Salisbury NHS Foundation Trust,15/05/2020,DENTAL SURGERY SUNDRIES,Facilities,NHS LOGISTICS,1121016036,0.5,
Department of Health,Salisbury NHS Foundation Trust,15/05/2020,M & S EQUIPELECTEQUIPINST - OTHER,Facilities,NHS LOGISTICS,1121016036,0.28,
Department of Health,Salisbury NHS Foundation Trust,15/05/2020,TUBES,Facilities,NHS LOGISTICS,1121016036,2.4,
Department of Health,Salisbury NHS Foundation Trust,15/05/2020,PATIENT APPLIANCES,Facilities,NHS LOGISTICS,1121016036,0.87,
Department of Health,Salisbury NHS Foundation Trust,15/05/2020,MEDSURGCONS-OTHER,Facilities,NHS LOGISTICS,1121016036,0.08,
Department of Health,Salisbury NHS Foundation Trust,15/05/2020,MEDSURGCONS-OTHER,Facilities,NHS LOGISTICS,1121016036,0.05,
Department of Health,Salisbury NHS Foundation Trust,15/05/2020,MEDSURGCONS-OTHER,Facilities,NHS LOGISTICS,1121016036,1.92,
Department of Health,Salisbury NHS Foundation Trust,15/05/2020,MEDSURGCONS-OTHER,Facilities,NHS LOGISTICS,1121016036,2.38,
Department of Health,Salisbury NHS Foundation Trust,15/05/2020,MEDSURGCONS-OTHER,Medicine,NHS LOGISTICS,1121016036,9.16,
Department of Health,Salisbury NHS Foundation Trust,15/05/2020,DRESSINGS  -  PROCEDURE PACKS,Medicine,NHS LOGISTICS,1121016036,0.14,
Department of Health,Salisbury NHS Foundation Trust,15/05/2020,DISPOSABLE THEATRE DRAPES WIPES,Medicine,NHS LOGISTICS,1121016036,0.35,
Department of Health,Salisbury NHS Foundation Trust,15/05/2020,DRESSINGS  -  PROCEDURE PACKS,Medicine,NHS LOGISTICS,1121016036,0.96,
Department of Health,Salisbury NHS Foundation Trust,15/05/2020,MED PROSTH - PACEMAKERS,Medicine,NHS LOGISTICS,1121016036,80,
Department of Health,Salisbury NHS Foundation Trust,15/05/2020,MEDSURGCONS-OTHER,Medicine,NHS LOGISTICS,1121016036,170,
Department of Health,Salisbury NHS Foundation Trust,15/05/2020,MEDSURGCONS-OTHER,Medicine,NHS LOGISTICS,1121016036,5,
Department of Health,Salisbury NHS Foundation Trust,15/05/2020,MEDSURGCONS-OTHER,Medicine,NHS LOGISTICS,1121016036,54,
Department of Health,Salisbury NHS Foundation Trust,15/05/2020,MEDSURGCONS-OTHER,Medicine,NHS LOGISTICS,1121016036,54,
Department of Health,Salisbury NHS Foundation Trust,15/05/2020,MEDSURGCONS-OTHER,Medicine,NHS LOGISTICS,1121016036,126,
Department of Health,Salisbury NHS Foundation Trust,15/05/2020,MEDSURGCONS-OTHER,Medicine,NHS LOGISTICS,1121016036,4.2,
Department of Health,Salisbury NHS Foundation Trust,15/05/2020,MEDSURGCONS-OTHER,Medicine,NHS LOGISTICS,1121016036,4.2,
Department of Health,Salisbury NHS Foundation Trust,15/05/2020,DRESSINGS - PRE STERILE,Surgery,NHS LOGISTICS,1121016036,1.24,
Department of Health,Salisbury NHS Foundation Trust,15/05/2020,DRUGS,Surgery,NHS LOGISTICS,1121016036,1.38,
Department of Health,Salisbury NHS Foundation Trust,15/05/2020,TOILETRIES PERSONAL HYGIENE PRODUCT,Corporate - Finance & Procurement,NHS LOGISTICS,1121016036,12.72,
Department of Health,Salisbury NHS Foundation Trust,15/05/2020,DRESSINGS  -  PROCEDURE PACKS,Clinical Support,NHS LOGISTICS,1121016036,30.66,
Department of Health,Salisbury NHS Foundation Trust,15/05/2020,MEDSURGCONS-OTHER,Clinical Support,NHS LOGISTICS,1121016036,20,
Department of Health,Salisbury NHS Foundation Trust,15/05/2020,MEDSURGCONS-OTHER,Clinical Support,NHS LOGISTICS,1121016036,11.6,
Department of Health,Salisbury NHS Foundation Trust,15/05/2020,NON DISPOSABLE BED LINEN,Medicine,NHS LOGISTICS,1121016036,1.06,
Department of Health,Salisbury NHS Foundation Trust,15/05/2020,OFFICE EQUIP MACHINERY  -  OTHER,Surgery,NHS LOGISTICS,1121016036,1.45,
Department of Health,Salisbury NHS Foundation Trust,15/05/2020,OFFICE EQUIP MACHINERY  -  OTHER,Surgery,NHS LOGISTICS,1121016036,1.45,
Department of Health,Salisbury NHS Foundation Trust,15/05/2020,OFFICE EQUIP MACHINERY  -  OTHER,Surgery,NHS LOGISTICS,1121016036,1.45,
Department of Health,Salisbury NHS Foundation Trust,15/05/2020,MEDSURGCONS-OTHER,Medicine,NHS LOGISTICS,1121016036,50,
Department of Health,Salisbury NHS Foundation Trust,15/05/2020,MEDSURGCONS-OTHER,Medicine,NHS LOGISTICS,1121016036,49.6,
Department of Health,Salisbury NHS Foundation Trust,15/05/2020,MEDSURGCONS-OTHER,Medicine,NHS LOGISTICS,1121016036,74,
Department of Health,Salisbury NHS Foundation Trust,15/05/2020,MEDSURGCONS-OTHER,Medicine,NHS LOGISTICS,1121016036,74,
Department of Health,Salisbury NHS Foundation Trust,15/05/2020,MEDSURGCONS-OTHER,Medicine,NHS LOGISTICS,1121016036,37,
Department of Health,Salisbury NHS Foundation Trust,15/05/2020,MEDSURGCONS-OTHER,Medicine,NHS LOGISTICS,1121016036,111,
Department of Health,Salisbury NHS Foundation Trust,15/05/2020,MEDSURGCONS-OTHER,Medicine,NHS LOGISTICS,1121016036,37,
Department of Health,Salisbury NHS Foundation Trust,15/05/2020,MEDSURGCONS-OTHER,Medicine,NHS LOGISTICS,1121016036,74,
Department of Health,Salisbury NHS Foundation Trust,15/05/2020,MEDSURGCONS-OTHER,Medicine,NHS LOGISTICS,1121016036,74,
Department of Health,Salisbury NHS Foundation Trust,15/05/2020,MEDSURGCONS-OTHER,Medicine,NHS LOGISTICS,1121016036,37,
Department of Health,Salisbury NHS Foundation Trust,15/05/2020,MEDSURGCONS-OTHER,Medicine,NHS LOGISTICS,1121016036,74,
Department of Health,Salisbury NHS Foundation Trust,15/05/2020,MEDSURGCONS-OTHER,Medicine,NHS LOGISTICS,1121016036,74,
Department of Health,Salisbury NHS Foundation Trust,15/05/2020,MEDSURGCONS-OTHER,Medicine,NHS LOGISTICS,1121016036,74,
Department of Health,Salisbury NHS Foundation Trust,15/05/2020,MEDSURGCONS-OTHER,Medicine,NHS LOGISTICS,1121016036,37,
Department of Health,Salisbury NHS Foundation Trust,15/05/2020,MEDSURGCONS-OTHER,Medicine,NHS LOGISTICS,1121016036,37,
Department of Health,Salisbury NHS Foundation Trust,15/05/2020,MEDSURGCONS-OTHER,Medicine,NHS LOGISTICS,1121016036,37,
Department of Health,Salisbury NHS Foundation Trust,15/05/2020,MEDSURGCONS-OTHER,Medicine,NHS LOGISTICS,1121016036,4.2,
Department of Health,Salisbury NHS Foundation Trust,15/05/2020,MEDSURGCONS-OTHER,Medicine,NHS LOGISTICS,1121016036,4.2,
Department of Health,Salisbury NHS Foundation Trust,15/05/2020,MEDSURGCONS-OTHER,Medicine,NHS LOGISTICS,1121016036,8.4,
Department of Health,Salisbury NHS Foundation Trust,15/05/2020,DRESSINGS - PRE STERILE,Musculo-Skeletal,NHS LOGISTICS,1121016036,4.54,
Department of Health,Salisbury NHS Foundation Trust,15/05/2020,DRESSINGS - PRE STERILE,Musculo-Skeletal,NHS LOGISTICS,1121016036,1.68,
Department of Health,Salisbury NHS Foundation Trust,15/05/2020,DRESSINGS - PRE STERILE,Musculo-Skeletal,NHS LOGISTICS,1121016036,1.24,
Department of Health,Salisbury NHS Foundation Trust,15/05/2020,DRESSINGS - PRE STERILE,Musculo-Skeletal,NHS LOGISTICS,1121016036,1.79,
Department of Health,Salisbury NHS Foundation Trust,15/05/2020,M & S EQUIPELECTEQUIPINST - OTHER,Musculo-Skeletal,NHS LOGISTICS,1121016036,2.63,
Department of Health,Salisbury NHS Foundation Trust,15/05/2020,DRESSINGS - PRE STERILE,Musculo-Skeletal,NHS LOGISTICS,1121016036,11.5,
Department of Health,Salisbury NHS Foundation Trust,15/05/2020,BAGS SACKS - OTHER,Surgery,NHS LOGISTICS,1121016036,2.71,
Department of Health,Salisbury NHS Foundation Trust,15/05/2020,SURGICAL INSTRUMENTS - GENERAL,Surgery,NHS LOGISTICS,1121016036,3.7,
Department of Health,Salisbury NHS Foundation Trust,15/05/2020,MEDPROST-TRAUMA PRODUCTS,Surgery,NHS LOGISTICS,1121016036,27.08,
Department of Health,Salisbury NHS Foundation Trust,15/05/2020,MEDPROST-TRAUMA PRODUCTS,Surgery,NHS LOGISTICS,1121016036,25.37,
Department of Health,Salisbury NHS Foundation Trust,15/05/2020,MEDSURGCONS-OTHER,Surgery,NHS LOGISTICS,1121016036,3.36,
Department of Health,Salisbury NHS Foundation Trust,15/05/2020,MEDSURGCONS-OTHER,Surgery,NHS LOGISTICS,1121016036,5.04,
Department of Health,Salisbury NHS Foundation Trust,15/05/2020,MEDSURGCONS-OTHER,Surgery,NHS LOGISTICS,1121016036,1.76,
Department of Health,Salisbury NHS Foundation Trust,15/05/2020,BEVERAGES & AMBIENT FOOD,Surgery,NHS LOGISTICS,1121016036,0.34,
Department of Health,Salisbury NHS Foundation Trust,15/05/2020,MEDSURGCONS-SUTURES,Surgery,NHS LOGISTICS,1121016036,5.53,
Department of Health,Salisbury NHS Foundation Trust,15/05/2020,MEDSURGCONS-SUTURES,Surgery,NHS LOGISTICS,1121016036,4.61,
Department of Health,Salisbury NHS Foundation Trust,15/05/2020,BEVERAGES & AMBIENT FOOD,Surgery,NHS LOGISTICS,1121016036,0.58,
Department of Health,Salisbury NHS Foundation Trust,15/05/2020,TUBES,Surgery,NHS LOGISTICS,1121016036,0.92,
Department of Health,Salisbury NHS Foundation Trust,15/05/2020,NON DISPOSABLE BED LINEN,Surgery,NHS LOGISTICS,1121016036,2.26,
Department of Health,Salisbury NHS Foundation Trust,15/05/2020,CLEANING MATERIAL PRODUCTS SUNDRIES,Surgery,NHS LOGISTICS,1121016036,0.78,
Department of Health,Salisbury NHS Foundation Trust,15/05/2020,OTHER MEDICAL SUPPLIES,Musculo-Skeletal,NHS LOGISTICS,1121016036,5.52,
Department of Health,Salisbury NHS Foundation Trust,15/05/2020,M & S EQUIPELECTEQUIPINST - OTHER,Musculo-Skeletal,NHS LOGISTICS,1121016036,2.7,
Department of Health,Salisbury NHS Foundation Trust,15/05/2020,MEDSURGCONS-OTHER,Musculo-Skeletal,NHS LOGISTICS,1121016036,1.35,
Department of Health,Salisbury NHS Foundation Trust,15/05/2020,TUBES,Musculo-Skeletal,NHS LOGISTICS,1121016036,1.16,
Department of Health,Salisbury NHS Foundation Trust,15/05/2020,DRESSINGS - PRE STERILE,Musculo-Skeletal,NHS LOGISTICS,1121016036,0.28,
Department of Health,Salisbury NHS Foundation Trust,15/05/2020,ANAESTHETIC EQUIPMENT ACCESSORIES,Musculo-Skeletal,NHS LOGISTICS,1121016036,0.48,
Department of Health,Salisbury NHS Foundation Trust,15/05/2020,DRESSINGS  -  PROCEDURE PACKS,Musculo-Skeletal,NHS LOGISTICS,1121016036,7.08,
Department of Health,Salisbury NHS Foundation Trust,15/05/2020,PATIENTS INCONTINENCE,Musculo-Skeletal,NHS LOGISTICS,1121016036,4.06,
Department of Health,Salisbury NHS Foundation Trust,15/05/2020,SURGICAL INSTRUMENTS - GENERAL,Musculo-Skeletal,NHS LOGISTICS,1121016036,0.12,
Department of Health,Salisbury NHS Foundation Trust,15/05/2020,NON DISPOSABLE BED LINEN,Musculo-Skeletal,NHS LOGISTICS,1121016036,5.64,
Department of Health,Salisbury NHS Foundation Trust,15/05/2020,DISPOSABLE THEATRE DRAPES WIPES,Musculo-Skeletal,NHS LOGISTICS,1121016036,1.17,
Department of Health,Salisbury NHS Foundation Trust,15/05/2020,TUBES,Medicine,NHS LOGISTICS,1121016036,1.16,
Department of Health,Salisbury NHS Foundation Trust,15/05/2020,ANAESTHETIC EQUIPMENT ACCESSORIES,Medicine,NHS LOGISTICS,1121016036,0.58,
Department of Health,Salisbury NHS Foundation Trust,15/05/2020,DRESSINGS - PRE STERILE,Musculo-Skeletal,NHS LOGISTICS,1121016036,3.83,
Department of Health,Salisbury NHS Foundation Trust,15/05/2020,PATIENTS INCONTINENCE,Facilities,NHS LOGISTICS,1121016036,4.75,
Department of Health,Salisbury NHS Foundation Trust,15/05/2020,DRESSINGS - PRE STERILE,Facilities,NHS LOGISTICS,1121016036,0.82,
Department of Health,Salisbury NHS Foundation Trust,15/05/2020,MEDSURGCONS-OTHER,Facilities,NHS LOGISTICS,1121016036,3.84,
Department of Health,Salisbury NHS Foundation Trust,15/05/2020,DRESSINGS - PRE STERILE,Musculo-Skeletal,NHS LOGISTICS,1121016036,2.38,
Department of Health,Salisbury NHS Foundation Trust,15/05/2020,TISSUES HAND TOWELS & TOILET PAPER,Musculo-Skeletal,NHS LOGISTICS,1121016036,0.12,
Department of Health,Salisbury NHS Foundation Trust,15/05/2020,MEDSURGCONS-OTHER,Musculo-Skeletal,NHS LOGISTICS,1121016036,1.35,
Department of Health,Salisbury NHS Foundation Trust,15/05/2020,DRESSINGS - PRE STERILE,Musculo-Skeletal,NHS LOGISTICS,1121016036,0.14,
Department of Health,Salisbury NHS Foundation Trust,15/05/2020,OTHER MEDICAL SUPPLIES,Musculo-Skeletal,NHS LOGISTICS,1121016036,1.41,
Department of Health,Salisbury NHS Foundation Trust,15/05/2020,ANAESTHETIC EQUIPMENT ACCESSORIES,Musculo-Skeletal,NHS LOGISTICS,1121016036,0.48,
Department of Health,Salisbury NHS Foundation Trust,15/05/2020,DRESSINGS  -  PROCEDURE PACKS,Musculo-Skeletal,NHS LOGISTICS,1121016036,0.14,
Department of Health,Salisbury NHS Foundation Trust,15/05/2020,TOILETRIES PERSONAL HYGIENE PRODUCT,Musculo-Skeletal,NHS LOGISTICS,1121016036,0.65,
Department of Health,Salisbury NHS Foundation Trust,15/05/2020,DRESSINGS - PRE STERILE,Musculo-Skeletal,NHS LOGISTICS,1121016036,0.57,
Department of Health,Salisbury NHS Foundation Trust,15/05/2020,MEDSURGCONS-OTHER,Musculo-Skeletal,NHS LOGISTICS,1121016036,2.56,
Department of Health,Salisbury NHS Foundation Trust,15/05/2020,MEDSURGCONS-OTHER,Facilities,NHS LOGISTICS,1121016036,0.52,
Department of Health,Salisbury NHS Foundation Trust,15/05/2020,OTHER MEDICAL SUPPLIES,Corporate - Finance & Procurement,NHS LOGISTICS,1121016036,113.98,
Department of Health,Salisbury NHS Foundation Trust,15/05/2020,COOKING & KITCHEN UTENSILS,Corporate - Finance & Procurement,NHS LOGISTICS,1121016036,17.76,
Department of Health,Salisbury NHS Foundation Trust,15/05/2020,MED SURG EQUIP REP MAINT CLEANING,Corporate - Finance & Procurement,NHS LOGISTICS,1121016036,184.12,
Department of Health,Salisbury NHS Foundation Trust,15/05/2020,TISSUES HAND TOWELS & TOILET PAPER,Clinical Support,NHS LOGISTICS,1121016036,0.49,
Department of Health,Salisbury NHS Foundation Trust,15/05/2020,MED SURG EQUIP REP MAINT CLEANING,Clinical Support,NHS LOGISTICS,1121016036,7.28,
Department of Health,Salisbury NHS Foundation Trust,15/05/2020,SURGICAL INSTRUMENTS - DISPOSABLE,Clinical Support,NHS LOGISTICS,1121016036,29.58,
Department of Health,Salisbury NHS Foundation Trust,15/05/2020,M & S EQUIPELECTEQUIPINST - OTHER,Clinical Support,NHS LOGISTICS,1121016036,35.79,
Department of Health,Salisbury NHS Foundation Trust,15/05/2020,MEDSURGCONS-OTHER,Facilities,NHS LOGISTICS,1121016036,0.31,
Department of Health,Salisbury NHS Foundation Trust,15/05/2020,PATIENT APPLIANCES,Surgery,NHS LOGISTICS,1121016036,33.2,
Department of Health,Salisbury NHS Foundation Trust,15/05/2020,MEDSURGCONS-OTHER,Corporate - Finance & Procurement,NHS LOGISTICS,1121016036,31.5,
Department of Health,Salisbury NHS Foundation Trust,15/05/2020,MEDSURGCONS-OTHER,Corporate - Finance & Procurement,NHS LOGISTICS,1121016036,31.5,
Department of Health,Salisbury NHS Foundation Trust,15/05/2020,MEDSURGCONS-OTHER,Facilities,NHS LOGISTICS,1121016036,31.5,
Department of Health,Salisbury NHS Foundation Trust,15/05/2020,ADULTS HEARING AIDS,Surgery,NHS LOGISTICS,1121016036,10.4,
Department of Health,Salisbury NHS Foundation Trust,15/05/2020,ADULTS HEARING AIDS,Surgery,NHS LOGISTICS,1121016036,8.64,
Department of Health,Salisbury NHS Foundation Trust,15/05/2020,DRESSINGS - PRE STERILE,Clinical Support,NHS LOGISTICS,1121016036,1.11,
Department of Health,Salisbury NHS Foundation Trust,15/05/2020,DRESSINGS - PRE STERILE,Clinical Support,NHS LOGISTICS,1121016036,6.17,
Department of Health,Salisbury NHS Foundation Trust,15/05/2020,DRESSINGS - PRE STERILE,Clinical Support,NHS LOGISTICS,1121016036,5.04,
Department of Health,Salisbury NHS Foundation Trust,15/05/2020,OTHER MEDICAL SUPPLIES,Surgery,NHS LOGISTICS,1121016036,8.76,
Department of Health,Salisbury NHS Foundation Trust,15/05/2020,PATIENTS INCONTINENCE,Medicine,NHS LOGISTICS,1121016036,1.19,
Department of Health,Salisbury NHS Foundation Trust,15/05/2020,DRESSINGS - PRE STERILE,Medicine,NHS LOGISTICS,1121016036,2.38,
Department of Health,Salisbury NHS Foundation Trust,15/05/2020,PATIENTS INCONTINENCE,Medicine,NHS LOGISTICS,1121016036,0.94,
Department of Health,Salisbury NHS Foundation Trust,15/05/2020,MEDSURGCONS-OTHER,Medicine,NHS LOGISTICS,1121016036,0.5,
Department of Health,Salisbury NHS Foundation Trust,15/05/2020,MEDSURGCONS-OTHER,Medicine,NHS LOGISTICS,1121016036,0.51,
Department of Health,Salisbury NHS Foundation Trust,15/05/2020,SURGICAL INSTRUMENTS - DISPOSABLE,Medicine,NHS LOGISTICS,1121016036,0.45,
Department of Health,Salisbury NHS Foundation Trust,15/05/2020,PATIENTS INCONTINENCE,Medicine,NHS LOGISTICS,1121016036,1.02,
Department of Health,Salisbury NHS Foundation Trust,15/05/2020,TOILETRIES PERSONAL HYGIENE PRODUCT,Medicine,NHS LOGISTICS,1121016036,0.58,
Department of Health,Salisbury NHS Foundation Trust,15/05/2020,MEDSURGCONS-OTHER,Medicine,NHS LOGISTICS,1121016036,2.56,
Department of Health,Salisbury NHS Foundation Trust,15/05/2020,TISSUES HAND TOWELS & TOILET PAPER,Medicine,NHS LOGISTICS,1121016036,0.12,
Department of Health,Salisbury NHS Foundation Trust,15/05/2020,MEDSURGCONS-OTHER,Medicine,NHS LOGISTICS,1121016036,0.16,
Department of Health,Salisbury NHS Foundation Trust,15/05/2020,TUBES,Medicine,NHS LOGISTICS,1121016036,0.6,
Department of Health,Salisbury NHS Foundation Trust,15/05/2020,MEDSURGCONS-OTHER,Medicine,NHS LOGISTICS,1121016036,0.48,
Department of Health,Salisbury NHS Foundation Trust,15/05/2020,MEDSURGCONS-OTHER,Medicine,NHS LOGISTICS,1121016036,40.3,
Department of Health,Salisbury NHS Foundation Trust,15/05/2020,MEDSURGCONS-OTHER,Medicine,NHS LOGISTICS,1121016036,40.3,
Department of Health,Salisbury NHS Foundation Trust,15/05/2020,MEDSURGCONS-OTHER,Medicine,NHS LOGISTICS,1121016036,16,
Department of Health,Salisbury NHS Foundation Trust,15/05/2020,OTHER MEDICAL SUPPLIES,Medicine,NHS LOGISTICS,1121016036,1.84,
Department of Health,Salisbury NHS Foundation Trust,15/05/2020,DRESSINGS - PRE STERILE,Medicine,NHS LOGISTICS,1121016036,1.57,
Department of Health,Salisbury NHS Foundation Trust,15/05/2020,DRESSINGS - PRE STERILE,Medicine,NHS LOGISTICS,1121016036,0.26,
Department of Health,Salisbury NHS Foundation Trust,15/05/2020,TISSUES HAND TOWELS & TOILET PAPER,Medicine,NHS LOGISTICS,1121016036,0.12,
Department of Health,Salisbury NHS Foundation Trust,15/05/2020,MEDSURGCONS-OTHER,Medicine,NHS LOGISTICS,1121016036,0.68,
Department of Health,Salisbury NHS Foundation Trust,15/05/2020,MEDSURGCONS-OTHER,Medicine,NHS LOGISTICS,1121016036,2.55,
Department of Health,Salisbury NHS Foundation Trust,15/05/2020,MEDSURGCONS-OTHER,Medicine,NHS LOGISTICS,1121016036,0.31,
Department of Health,Salisbury NHS Foundation Trust,15/05/2020,OTHER MEDICAL SUPPLIES,Medicine,NHS LOGISTICS,1121016036,1.33,
Department of Health,Salisbury NHS Foundation Trust,15/05/2020,OTHER MEDICAL SUPPLIES,Medicine,NHS LOGISTICS,1121016036,0.54,
Department of Health,Salisbury NHS Foundation Trust,15/05/2020,OTHER MEDICAL SUPPLIES,Medicine,NHS LOGISTICS,1121016036,1.43,
Department of Health,Salisbury NHS Foundation Trust,15/05/2020,DRUGS,Medicine,NHS LOGISTICS,1121016036,14.47,
Department of Health,Salisbury NHS Foundation Trust,15/05/2020,MEDSURGCONS-SUTURES,Medicine,NHS LOGISTICS,1121016036,13.71,
Department of Health,Salisbury NHS Foundation Trust,15/05/2020,MEDSURGCONS-SUTURES,Medicine,NHS LOGISTICS,1121016036,11.33,
Department of Health,Salisbury NHS Foundation Trust,15/05/2020,NON DISPOSABLE BED LINEN,Medicine,NHS LOGISTICS,1121016036,2.26,
Department of Health,Salisbury NHS Foundation Trust,15/05/2020,DISPOSABLE THEATRE DRAPES WIPES,Medicine,NHS LOGISTICS,1121016036,0.59,
Department of Health,Salisbury NHS Foundation Trust,15/05/2020,DRESSINGS - PRE STERILE,Surgery,NHS LOGISTICS,1121016036,2.38,
Department of Health,Salisbury NHS Foundation Trust,15/05/2020,MEDSURGCONS-OTHER,Surgery,NHS LOGISTICS,1121016036,0.31,
Department of Health,Salisbury NHS Foundation Trust,15/05/2020,MEDSURGCONS-OTHER,Surgery,NHS LOGISTICS,1121016036,0.16,
Department of Health,Salisbury NHS Foundation Trust,15/05/2020,TISSUES HAND TOWELS & TOILET PAPER,Clinical Support,NHS LOGISTICS,1121016036,5.67,
Department of Health,Salisbury NHS Foundation Trust,15/05/2020,DISPOSABLE THEATRE DRAPES WIPES,Corporate - Finance & Procurement,NHS LOGISTICS,1121016036,167.2,
Department of Health,Salisbury NHS Foundation Trust,15/05/2020,MEDSURGCONS-OTHER,Musculo-Skeletal,NHS LOGISTICS,1121016036,0.96,
Department of Health,Salisbury NHS Foundation Trust,15/05/2020,MEDSURGCONS-OTHER,Musculo-Skeletal,NHS LOGISTICS,1121016036,0.62,
Department of Health,Salisbury NHS Foundation Trust,15/05/2020,MEDSURGCONS-OTHER,Musculo-Skeletal,NHS LOGISTICS,1121016036,0.42,
Department of Health,Salisbury NHS Foundation Trust,15/05/2020,DISPOSABLE THEATRE DRAPES WIPES,Musculo-Skeletal,NHS LOGISTICS,1121016036,33.46,
Department of Health,Salisbury NHS Foundation Trust,15/05/2020,DISPOSABLE THEATRE DRAPES WIPES,Surgery,NHS LOGISTICS,1121016036,33.46,
Department of Health,Salisbury NHS Foundation Trust,15/05/2020,DISPOSABLE THEATRE DRAPES WIPES,Medicine,NHS LOGISTICS,1121016036,33.46,
Department of Health,Salisbury NHS Foundation Trust,15/05/2020,DISPOSABLE THEATRE DRAPES WIPES,Medicine,NHS LOGISTICS,1121016036,33.46,
Department of Health,Salisbury NHS Foundation Trust,15/05/2020,DISPOSABLE THEATRE DRAPES WIPES,Surgery,NHS LOGISTICS,1121016036,33.46,
Department of Health,Salisbury NHS Foundation Trust,15/05/2020,DISPOSABLE THEATRE DRAPES WIPES,Clinical Support,NHS LOGISTICS,1121016036,33.46,
Department of Health,Salisbury NHS Foundation Trust,15/05/2020,DISPOSABLE THEATRE DRAPES WIPES,Musculo-Skeletal,NHS LOGISTICS,1121016036,33.46,
Department of Health,Salisbury NHS Foundation Trust,15/05/2020,DISPOSABLE THEATRE DRAPES WIPES,Surgery,NHS LOGISTICS,1121016036,33.46,
Department of Health,Salisbury NHS Foundation Trust,15/05/2020,DISPOSABLE THEATRE DRAPES WIPES,Surgery,NHS LOGISTICS,1121016036,33.46,
Department of Health,Salisbury NHS Foundation Trust,15/05/2020,DISPOSABLE THEATRE DRAPES WIPES,Medicine,NHS LOGISTICS,1121016036,33.46,
Department of Health,Salisbury NHS Foundation Trust,15/05/2020,DISPOSABLE THEATRE DRAPES WIPES,Medicine,NHS LOGISTICS,1121016036,33.46,
Department of Health,Salisbury NHS Foundation Trust,15/05/2020,DISPOSABLE THEATRE DRAPES WIPES,Surgery,NHS LOGISTICS,1121016036,33.46,
Department of Health,Salisbury NHS Foundation Trust,15/05/2020,DISPOSABLE THEATRE DRAPES WIPES,Clinical Support,NHS LOGISTICS,1121016036,33.46,
Department of Health,Salisbury NHS Foundation Trust,15/05/2020,DISPOSABLE THEATRE DRAPES WIPES,Surgery,NHS LOGISTICS,1121016036,33.46,
Department of Health,Salisbury NHS Foundation Trust,15/05/2020,DISPOSABLE THEATRE DRAPES WIPES,Medicine,NHS LOGISTICS,1121016036,33.46,
Department of Health,Salisbury NHS Foundation Trust,15/05/2020,DISPOSABLE THEATRE DRAPES WIPES,Medicine,NHS LOGISTICS,1121016036,33.46,
Department of Health,Salisbury NHS Foundation Trust,15/05/2020,DISPOSABLE THEATRE DRAPES WIPES,Medicine,NHS LOGISTICS,1121016036,33.46,
Department of Health,Salisbury NHS Foundation Trust,15/05/2020,MEDSURGCONS-OTHER,Clinical Support,NHS LOGISTICS,1121016036,2.92,
Department of Health,Salisbury NHS Foundation Trust,15/05/2020,DISPOSABLE THEATRE DRAPES WIPES,Clinical Support,NHS LOGISTICS,1121016036,0.35,
Department of Health,Salisbury NHS Foundation Trust,15/05/2020,DRESSINGS - PRE STERILE,Clinical Support,NHS LOGISTICS,1121016036,5.45,
Department of Health,Salisbury NHS Foundation Trust,15/05/2020,MEDSURGCONS-OTHER,Clinical Support,NHS LOGISTICS,1121016036,9.96,
Department of Health,Salisbury NHS Foundation Trust,15/05/2020,OTHER MEDICAL SUPPLIES,Clinical Support,NHS LOGISTICS,1121016036,0.6,
Department of Health,Salisbury NHS Foundation Trust,15/05/2020,M & S EQUIPELECTEQUIPINST - OTHER,Clinical Support,NHS LOGISTICS,1121016036,23.6,
Department of Health,Salisbury NHS Foundation Trust,15/05/2020,OTHER MEDICAL SUPPLIES,Clinical Support,NHS LOGISTICS,1121016036,0.27,
Department of Health,Salisbury NHS Foundation Trust,15/05/2020,SERVICES FROM NHS BODIES,Clinical Support,NHS LOGISTICS,1121016036,2.82,
Department of Health,Salisbury NHS Foundation Trust,15/05/2020,DISPOSABLE THEATRE DRAPES WIPES,Clinical Support,NHS LOGISTICS,1121016036,33.46,
Department of Health,Salisbury NHS Foundation Trust,15/05/2020,DISPOSABLE THEATRE DRAPES WIPES,Surgery,NHS LOGISTICS,1121016036,33.46,
Department of Health,Salisbury NHS Foundation Trust,15/05/2020,ANAESTHETIC EQUIPMENT ACCESSORIES,Clinical Support,NHS LOGISTICS,1121016036,0.2,
Department of Health,Salisbury NHS Foundation Trust,15/05/2020,MEDSURGCONS-OTHER,Clinical Support,NHS LOGISTICS,1121016036,9,
Department of Health,Salisbury NHS Foundation Trust,15/05/2020,NON DISPOSABLE BED LINEN,Clinical Support,NHS LOGISTICS,1121016036,5.25,
Department of Health,Salisbury NHS Foundation Trust,15/05/2020,NON DISPOSABLE BED LINEN,Clinical Support,NHS LOGISTICS,1121016036,1.13,
Department of Health,Salisbury NHS Foundation Trust,15/05/2020,PATIENT APPLIANCES,Clinical Support,NHS LOGISTICS,1121016036,5.4,
Department of Health,Salisbury NHS Foundation Trust,15/05/2020,PATIENT APPLIANCES,Clinical Support,NHS LOGISTICS,1121016036,4.92,
Department of Health,Salisbury NHS Foundation Trust,15/05/2020,OTHER MEDICAL SUPPLIES,Medicine,NHS LOGISTICS,1121016036,0.36,
Department of Health,Salisbury NHS Foundation Trust,15/05/2020,PATIENT APPLIANCES,Medicine,NHS LOGISTICS,1121016036,4.2,
Department of Health,Salisbury NHS Foundation Trust,15/05/2020,DRESSINGS - PRE STERILE,Medicine,NHS LOGISTICS,1121016036,0.27,
Department of Health,Salisbury NHS Foundation Trust,15/05/2020,DRESSINGS - PRE STERILE,Medicine,NHS LOGISTICS,1121016036,0.29,
Department of Health,Salisbury NHS Foundation Trust,15/05/2020,DRESSINGS - PRE STERILE,Medicine,NHS LOGISTICS,1121016036,2.33,
Department of Health,Salisbury NHS Foundation Trust,15/05/2020,DRESSINGS - PRE STERILE,Medicine,NHS LOGISTICS,1121016036,12.61,
Department of Health,Salisbury NHS Foundation Trust,15/05/2020,DRESSINGS - PRE STERILE,Medicine,NHS LOGISTICS,1121016036,1,
Department of Health,Salisbury NHS Foundation Trust,15/05/2020,DRESSINGS - PRE STERILE,Medicine,NHS LOGISTICS,1121016036,7.14,
Department of Health,Salisbury NHS Foundation Trust,15/05/2020,PATIENTS INCONTINENCE,Medicine,NHS LOGISTICS,1121016036,0.47,
Department of Health,Salisbury NHS Foundation Trust,15/05/2020,MEDSURGCONS-OTHER,Medicine,NHS LOGISTICS,1121016036,2.03,
Department of Health,Salisbury NHS Foundation Trust,15/05/2020,DRESSINGS - PRE STERILE,Medicine,NHS LOGISTICS,1121016036,0.85,
Department of Health,Salisbury NHS Foundation Trust,15/05/2020,DRESSINGS  -  PROCEDURE PACKS,Medicine,NHS LOGISTICS,1121016036,1.4,
Department of Health,Salisbury NHS Foundation Trust,15/05/2020,MEDSURGCONS-OTHER,Medicine,NHS LOGISTICS,1121016036,4.5,
Department of Health,Salisbury NHS Foundation Trust,15/05/2020,MEDSURGCONS-OTHER,Medicine,NHS LOGISTICS,1121016036,1,
Department of Health,Salisbury NHS Foundation Trust,15/05/2020,MEDSURGCONS-OTHER,Medicine,NHS LOGISTICS,1121016036,13.8,
Department of Health,Salisbury NHS Foundation Trust,15/05/2020,OTHER MEDICAL SUPPLIES,Medicine,NHS LOGISTICS,1121016036,1.33,
Department of Health,Salisbury NHS Foundation Trust,15/05/2020,OTHER MEDICAL SUPPLIES,Medicine,NHS LOGISTICS,1121016036,0.85,
Department of Health,Salisbury NHS Foundation Trust,15/05/2020,DRESSINGS - PRE STERILE,Medicine,NHS LOGISTICS,1121016036,0.41,
Department of Health,Salisbury NHS Foundation Trust,15/05/2020,DRESSINGS - PRE STERILE,Medicine,NHS LOGISTICS,1121016036,1.1,
Department of Health,Salisbury NHS Foundation Trust,15/05/2020,MEDSURGCONS-OTHER,Medicine,NHS LOGISTICS,1121016036,2.56,
Department of Health,Salisbury NHS Foundation Trust,15/05/2020,MEDSURGCONS-OTHER,Medicine,NHS LOGISTICS,1121016036,1.55,
Department of Health,Salisbury NHS Foundation Trust,15/05/2020,NON DISPOSABLE BED LINEN,Medicine,NHS LOGISTICS,1121016036,0.56,
Department of Health,Salisbury NHS Foundation Trust,15/05/2020,MEDSURGCONS-OTHER,Facilities,NHS LOGISTICS,1121016036,31.5,
Department of Health,Salisbury NHS Foundation Trust,15/05/2020,MEDSURGCONS-OTHER,Corporate - Finance & Procurement,NHS LOGISTICS,1121016036,31.5,
Department of Health,Salisbury NHS Foundation Trust,15/05/2020,OTHER MEDICAL SUPPLIES,Clinical Support,NHS LOGISTICS,1121016036,8.5,
Department of Health,Salisbury NHS Foundation Trust,15/05/2020,OTHER MEDICAL SUPPLIES,Clinical Support,NHS LOGISTICS,1121016036,4.14,
Department of Health,Salisbury NHS Foundation Trust,15/05/2020,MEDSURGCONS-OTHER,Clinical Support,NHS LOGISTICS,1121016036,0.68,
Department of Health,Salisbury NHS Foundation Trust,15/05/2020,MEDSURGCONS-OTHER,Clinical Support,NHS LOGISTICS,1121016036,0.48,
Department of Health,Salisbury NHS Foundation Trust,15/05/2020,OTHER MEDICAL SUPPLIES,Clinical Support,NHS LOGISTICS,1121016036,6.52,
Department of Health,Salisbury NHS Foundation Trust,15/05/2020,MEDSURGCONS-OTHER,Corporate - Finance & Procurement,NHS LOGISTICS,1121016036,31.5,
Department of Health,Salisbury NHS Foundation Trust,15/05/2020,OTHER MEDICAL SUPPLIES,Clinical Support,NHS LOGISTICS,1121016036,11.8,
Department of Health,Salisbury NHS Foundation Trust,15/05/2020,OTHER MEDICAL SUPPLIES,Medicine,NHS LOGISTICS,1121016036,8.2,
Department of Health,Salisbury NHS Foundation Trust,15/05/2020,M & S EQUIPELECTEQUIPINST - OTHER,Medicine,NHS LOGISTICS,1121016036,40,
Department of Health,Salisbury NHS Foundation Trust,15/05/2020,DRESSINGS - PRE STERILE,Medicine,NHS LOGISTICS,1121016036,0.14,
Department of Health,Salisbury NHS Foundation Trust,15/05/2020,DRESSINGS - PRE STERILE,Medicine,NHS LOGISTICS,1121016036,0.65,
Department of Health,Salisbury NHS Foundation Trust,15/05/2020,MEDSURGCONS-OTHER,Medicine,NHS LOGISTICS,1121016036,9.9,
Department of Health,Salisbury NHS Foundation Trust,15/05/2020,DRESSINGS - PRE STERILE,Medicine,NHS LOGISTICS,1121016036,2.38,
Department of Health,Salisbury NHS Foundation Trust,15/05/2020,DRESSINGS - PRE STERILE,Medicine,NHS LOGISTICS,1121016036,0.84,
Department of Health,Salisbury NHS Foundation Trust,15/05/2020,MEDSURGCONS-OTHER,Medicine,NHS LOGISTICS,1121016036,8.98,
Department of Health,Salisbury NHS Foundation Trust,15/05/2020,M & S EQUIPELECTEQUIPINST - OTHER,Medicine,NHS LOGISTICS,1121016036,0.95,
Department of Health,Salisbury NHS Foundation Trust,15/05/2020,DRESSINGS - PRE STERILE,Medicine,NHS LOGISTICS,1121016036,0.28,
Department of Health,Salisbury NHS Foundation Trust,15/05/2020,MEDSURGCONS-OTHER,Medicine,NHS LOGISTICS,1121016036,4,
Department of Health,Salisbury NHS Foundation Trust,15/05/2020,OTHER MEDICAL SUPPLIES,Medicine,NHS LOGISTICS,1121016036,2.85,
Department of Health,Salisbury NHS Foundation Trust,15/05/2020,OTHER MEDICAL SUPPLIES,Medicine,NHS LOGISTICS,1121016036,1.07,
Department of Health,Salisbury NHS Foundation Trust,15/05/2020,SURGICAL INSTRUMENTS - DISPOSABLE,Medicine,NHS LOGISTICS,1121016036,1.8,
Department of Health,Salisbury NHS Foundation Trust,15/05/2020,DRESSINGS - PRE STERILE,Medicine,NHS LOGISTICS,1121016036,0.72,
Department of Health,Salisbury NHS Foundation Trust,15/05/2020,DRESSINGS - PRE STERILE,Medicine,NHS LOGISTICS,1121016036,0.72,
Department of Health,Salisbury NHS Foundation Trust,15/05/2020,DRESSINGS - PRE STERILE,Medicine,NHS LOGISTICS,1121016036,0.41,
Department of Health,Salisbury NHS Foundation Trust,15/05/2020,DRESSINGS - PRE STERILE,Medicine,NHS LOGISTICS,1121016036,0.34,
Department of Health,Salisbury NHS Foundation Trust,15/05/2020,MEDSURGCONS-OTHER,Medicine,NHS LOGISTICS,1121016036,0.31,
Department of Health,Salisbury NHS Foundation Trust,15/05/2020,DRESSINGS - PRE STERILE,Medicine,NHS LOGISTICS,1121016036,0.77,
Department of Health,Salisbury NHS Foundation Trust,15/05/2020,DISPOSABLE THEATRE DRAPES WIPES,Medicine,NHS LOGISTICS,1121016036,1.17,
